Period,Cost Centre,Responsible Unit,Service Division Categorisation,ServiceAreaCategorisation,Nominal,Narrative,Expense Sub Type,Expense Type,Value,Invoice Date,Cap/Rev,Supplier Name
3,100001,Chief Executive,Corporate Mangmt not separa,Corporate and Democratic Core,3804,Subscriptions,Grants and Subscriptions,Supplies and Services,"38,338.40",01-Jun-17,R,LOCAL GOVERNMENT ASSOCIATION
3,100020,AD Resources,SupS DOF,Non Distributed Costs (NDC),0075,Agency Staff - Off Contract,Direct EmployeeExpenses-Agency,Employees,"2,260.00",01-Jun-17,R,HAYS SPECIALIST RECRUITM'T LTD
3,100020,AD Resources,SupS DOF,Non Distributed Costs (NDC),0075,Agency Staff - Off Contract,Direct EmployeeExpenses-Agency,Employees,"2,260.00",01-Jun-17,R,HAYS SPECIALIST RECRUITM'T LTD
3,100020,AD Resources,SupS DOF,Non Distributed Costs (NDC),0075,Agency Staff - Off Contract,Direct EmployeeExpenses-Agency,Employees,"2,260.00",01-Jun-17,R,HAYS SPECIALIST RECRUITM'T LTD
3,100020,AD Resources,SupS DOF,Non Distributed Costs (NDC),0075,Agency Staff - Off Contract,Direct EmployeeExpenses-Agency,Employees,"2,260.00",01-Jun-17,R,HAYS SPECIALIST RECRUITM'T LTD
3,100020,AD Resources,SupS DOF,Non Distributed Costs (NDC),0075,Agency Staff - Off Contract,Direct EmployeeExpenses-Agency,Employees,"2,712.00",07-Jun-17,R,HAYS SPECIALIST RECRUITM'T LTD
3,100020,AD Resources,SupS DOF,Non Distributed Costs (NDC),0075,Agency Staff - Off Contract,Direct EmployeeExpenses-Agency,Employees,"2,712.00",05-Jun-17,R,HAYS SPECIALIST RECRUITM'T LTD
3,100020,AD Resources,SupS DOF,Non Distributed Costs (NDC),0075,Agency Staff - Off Contract,Direct EmployeeExpenses-Agency,Employees,"2,712.00",19-Jun-17,R,HAYS SPECIALIST RECRUITM'T LTD
3,100020,AD Resources,SupS DOF,Non Distributed Costs (NDC),0075,Agency Staff - Off Contract,Direct EmployeeExpenses-Agency,Employees,"3,390.00",05-Jun-17,R,HAYS SPECIALIST RECRUITM'T LTD
3,100020,AD Resources,SupS DOF,Non Distributed Costs (NDC),0075,Agency Staff - Off Contract,Direct EmployeeExpenses-Agency,Employees,"3,390.00",19-Jun-17,R,HAYS SPECIALIST RECRUITM'T LTD
3,100020,AD Resources,SupS DOF,Non Distributed Costs (NDC),0075,Agency Staff - Off Contract,Direct EmployeeExpenses-Agency,Employees,"3,390.00",05-Jun-17,R,HAYS SPECIALIST RECRUITM'T LTD
3,100020,AD Resources,SupS DOF,Non Distributed Costs (NDC),0075,Agency Staff - Off Contract,Direct EmployeeExpenses-Agency,Employees,"7,360.00",01-Jun-17,R,PUBLIC SECTOR CONSULTANTS
3,100020,AD Resources,SupS DOF,Non Distributed Costs (NDC),3414,Consultants,Services,Supplies and Services,"8,457.50",01-Jun-17,R,ADVANCED BUSINESS SOLUTIONS
3,100020,AD Resources,SupS DOF,Non Distributed Costs (NDC),3804,Subscriptions,Grants and Subscriptions,Supplies and Services,"3,750.00",01-Jun-17,R,CIPFA BUSINESS LTD
3,100070,Business Planning,SupS Strategic Finance,Non Distributed Costs (NDC),3522,IT Support Costs,Comms and Computing,Supplies and Services,618.4,01-Jun-17,R,REAL ASSET MANAGEMENT PLC
3,100071,Financial Information System,SupS Strategic Finance,Non Distributed Costs (NDC),3414,Consultants,Services,Supplies and Services,"46,765.00",01-Jun-17,R,ADVANCED BUSINESS SOLUTIONS
3,100071,Financial Information System,SupS Strategic Finance,Non Distributed Costs (NDC),3522,IT Support Costs,Comms and Computing,Supplies and Services,531,01-Jun-17,R,ADVANCED BUSINESS SOLUTIONS
3,100101,Local Strategic Partnership,SupS Comm and Member Servic,Non Distributed Costs (NDC),3425,School/Extra Curriculum Proj,Services,Supplies and Services,"1,000.00",08-Jun-17,R,MERTON VOLUNTARY SERV COUNCIL
3,100103,Voluntary Sector Coordination,Grants - Voluntary Groups,Central Services to the Public,3806,Grants,Grants and Subscriptions,Supplies and Services,"62,742.00",01-Jun-17,R,MERTON VOLUNTARY SERV COUNCIL
3,100150,Insurance Premiums & Funding,SupS  Risk and Insurance,Non Distributed Costs (NDC),3436,Insurance Premiums,Services,Supplies and Services,"2,814.24",01-Jun-17,R,JLT SPECIALTY LIMITED
3,100150,Insurance Premiums & Funding,SupS  Risk and Insurance,Non Distributed Costs (NDC),3436,Insurance Premiums,Services,Supplies and Services,"5,336.98",01-Jun-17,R,JLT SPECIALTY LIMITED
3,100150,Insurance Premiums & Funding,SupS  Risk and Insurance,Non Distributed Costs (NDC),3436,Insurance Premiums,Services,Supplies and Services,"39,584.68",20-Jun-17,R,ZURICH INSURANCE COMPANY
3,100170,Treasury & Insurance,SupS Strategic Finance,Non Distributed Costs (NDC),0075,Agency Staff - Off Contract,Direct EmployeeExpenses-Agency,Employees,"2,260.00",01-Jun-17,R,HAYS SPECIALIST RECRUITM'T LTD
3,100170,Treasury & Insurance,SupS Strategic Finance,Non Distributed Costs (NDC),0075,Agency Staff - Off Contract,Direct EmployeeExpenses-Agency,Employees,"2,260.00",19-Jun-17,R,HAYS SPECIALIST RECRUITM'T LTD
3,100310,Programme Office,SupS Comm and Member Services,Non Distributed Costs (NDC),0160,Recruitment Costs,Indirect Employee Expenses,Employees,830,01-Jun-17,R,JGP RES'RCG LTD-JOBS GO PUBLIC
3,100351,SCIS,SupS IT,Non Distributed Costs (NDC),0070,Agency Staff - Corp Contract,Direct EmployeeExpenses-Agency,Employees,"1,575.00",01-Jun-17,R,HAMPTON'S RESOURCING
3,100351,SCIS,SupS IT,Non Distributed Costs (NDC),0075,Agency Staff - Off Contract,Direct EmployeeExpenses-Agency,Employees,"1,450.00",06-Jun-17,R,NUMBER 10 INTERIM LTD
3,100351,SCIS,SupS IT,Non Distributed Costs (NDC),0075,Agency Staff - Off Contract,Direct EmployeeExpenses-Agency,Employees,"1,800.00",08-Jun-17,R,NUMBER 10 INTERIM LTD
3,100351,SCIS,SupS IT,Non Distributed Costs (NDC),0075,Agency Staff - Off Contract,Direct EmployeeExpenses-Agency,Employees,"2,250.00",01-Jun-17,R,NUMBER 10 INTERIM LTD
3,100351,SCIS,SupS IT,Non Distributed Costs (NDC),0075,Agency Staff - Off Contract,Direct EmployeeExpenses-Agency,Employees,"2,250.00",01-Jun-17,R,NUMBER 10 INTERIM LTD
3,100351,SCIS,SupS IT,Non Distributed Costs (NDC),0075,Agency Staff - Off Contract,Direct EmployeeExpenses-Agency,Employees,"2,300.00",01-Jun-17,R,RANDSTAD SOLUTIONS LTD
3,100351,SCIS,SupS IT,Non Distributed Costs (NDC),0075,Agency Staff - Off Contract,Direct EmployeeExpenses-Agency,Employees,"2,300.00",01-Jun-17,R,RANDSTAD SOLUTIONS LTD
3,100351,SCIS,SupS IT,Non Distributed Costs (NDC),0075,Agency Staff - Off Contract,Direct EmployeeExpenses-Agency,Employees,"2,300.00",01-Jun-17,R,RANDSTAD SOLUTIONS LTD
3,100351,SCIS,SupS IT,Non Distributed Costs (NDC),0075,Agency Staff - Off Contract,Direct EmployeeExpenses-Agency,Employees,"2,300.00",01-Jun-17,R,RANDSTAD SOLUTIONS LTD
3,100351,SCIS,SupS IT,Non Distributed Costs (NDC),0075,Agency Staff - Off Contract,Direct EmployeeExpenses-Agency,Employees,"4,600.00",01-Jun-17,R,RANDSTAD SOLUTIONS LTD
3,100351,SCIS,SupS IT,Non Distributed Costs (NDC),0075,Agency Staff - Off Contract,Direct EmployeeExpenses-Agency,Employees,"5,980.00",01-Jun-17,R,RANDSTAD SOLUTIONS LTD
3,100351,SCIS,SupS IT,Non Distributed Costs (NDC),0075,Agency Staff - Off Contract,Direct EmployeeExpenses-Agency,Employees,"6,900.00",01-Jun-17,R,RANDSTAD SOLUTIONS LTD
3,100351,SCIS,SupS IT,Non Distributed Costs (NDC),0075,Agency Staff - Off Contract,Direct EmployeeExpenses-Agency,Employees,"9,000.00",01-Jun-17,R,NUMBER 10 INTERIM LTD
3,100351,SCIS,SupS IT,Non Distributed Costs (NDC),0075,Agency Staff - Off Contract,Direct EmployeeExpenses-Agency,Employees,"10,000.00",01-Jun-17,R,NUMBER 10 INTERIM LTD
3,100351,SCIS,SupS IT,Non Distributed Costs (NDC),0075,Agency Staff - Off Contract,Direct EmployeeExpenses-Agency,Employees,"10,000.00",01-Jun-17,R,NUMBER 10 INTERIM LTD
3,100351,SCIS,SupS IT,Non Distributed Costs (NDC),0075,Agency Staff - Off Contract,Direct EmployeeExpenses-Agency,Employees,"15,400.00",01-Jun-17,R,NUMBER 10 INTERIM LTD
3,100410,Blue Badge,On-street parking,Highways Roads Transport Serv.,3525,Network Charges,Comms and Computing,Supplies and Services,"1,134.49",01-Jun-17,R,NORTHGATE PUBLIC SERVICES (UK)
3,100440,Reg of B. Deaths & Ms,Registn Birth/Death/Marriage,Central Services to the Public,1009,Security,RepairsAlterations&MtceOfBldgs,Premises Related Expenses,"6,857.20",02-Jun-17,R,SIGHT & SOUND
3,100450,Translation Service,T/A Corporate Services,Other Operating Inc & Expend,3417,Translation,Services,Supplies and Services,778,01-Jun-17,R,REDACTED
3,100450,Translation Service,T/A Corporate Services,Other Operating Inc & Expend,3417,Translation,Services,Supplies and Services,925,01-Jun-17,R,REDACTED
3,100500,Local Taxation Bailiffs,Council tax collection,Central Services to the Public,3403,Bailiffs Fees,Services,Supplies and Services,577,07-Jun-17,R,REDACTED
3,100500,Local Taxation Bailiffs,Council tax collection,Central Services to the Public,3403,Bailiffs Fees,Services,Supplies and Services,"1,283.06",01-Jun-17,R,HPI LIMITED
3,100501,Sutton Shared Bailiff Service,Council tax collection,Central Services to the Public,4020,Other Local Authority Payments,Other Local Authorities,Third Party Payments,"7,811.00",01-Jun-17,R,LONDON BOROUGH OF SUTTON
3,100501,Sutton Shared Bailiff Service,Council tax collection,Central Services to the Public,4020,Other Local Authority Payments,Other Local Authorities,Third Party Payments,"73,185.00",01-Jun-17,R,LONDON BOROUGH OF SUTTON
3,100501,Sutton Shared Bailiff Service,Council tax collection,Central Services to the Public,4020,Other Local Authority Payments,Other Local Authorities,Third Party Payments,"76,850.96",22-Jun-17,R,LONDON BOROUGH OF SUTTON
3,100501,Sutton Shared Bailiff Service,Council tax collection,Central Services to the Public,4020,Other Local Authority Payments,Other Local Authorities,Third Party Payments,"85,119.71",01-Jun-17,R,LONDON BOROUGH OF SUTTON
3,100540,Benefits Administration,HB Administration,General Fund Housing,3510,Computer Hardware - Purchased,Comms and Computing,Supplies and Services,"1,050.00",01-Jun-17,R,CIVICA UK LIMITED
3,100540,Benefits Administration,HB Administration,General Fund Housing,3521,IT licences - Applications,Comms and Computing,Supplies and Services,600,01-Jun-17,R,CIVICA UK LIMITED
3,100540,Benefits Administration,HB Administration,General Fund Housing,3521,IT licences - Applications,Comms and Computing,Supplies and Services,"3,000.00",01-Jun-17,R,CIVICA UK LIMITED
3,100542,Local Taxation Services,Council tax collection,Central Services to the Public,0160,Recruitment Costs,Indirect Employee Expenses,Employees,"157,825.18",13-Jun-17,R,LOVE WIMBLEDON LTD BUS.IMP.DIS
3,100542,Local Taxation Services,Council tax collection,Central Services to the Public,3510,Computer Hardware - Purchased,Comms and Computing,Supplies and Services,"1,075.00",01-Jun-17,R,CIVICA UK LIMITED
3,100542,Local Taxation Services,Council tax collection,Central Services to the Public,3521,IT licences - Applications,Comms and Computing,Supplies and Services,648.11,01-Jun-17,R,CIVICA UK LIMITED
3,100542,Local Taxation Services,Council tax collection,Central Services to the Public,3521,IT licences - Applications,Comms and Computing,Supplies and Services,"1,099.15",01-Jun-17,R,CIVICA UK LIMITED
3,100542,Local Taxation Services,Council tax collection,Central Services to the Public,3521,IT licences - Applications,Comms and Computing,Supplies and Services,"1,485.00",01-Jun-17,R,CIVICA UK LIMITED
3,100542,Local Taxation Services,Council tax collection,Central Services to the Public,3521,IT licences - Applications,Comms and Computing,Supplies and Services,"1,693.85",01-Jun-17,R,CIVICA UK LIMITED
3,100542,Local Taxation Services,Council tax collection,Central Services to the Public,3521,IT licences - Applications,Comms and Computing,Supplies and Services,"4,879.60",16-Jun-17,R,CIVICA UK LIMITED
3,100542,Local Taxation Services,Council tax collection,Central Services to the Public,3521,IT licences - Applications,Comms and Computing,Supplies and Services,"4,900.00",16-Jun-17,R,CIVICA UK LIMITED
3,100542,Local Taxation Services,Council tax collection,Central Services to the Public,3526,Online Resources,Comms and Computing,Supplies and Services,"2,500.00",14-Jun-17,R,INFORM CPI LTD
3,100600,Marketing & Communication,SupS Chief Execs,Non Distributed Costs (NDC),3431,Marketing/Advertising Non-Stat,Services,Supplies and Services,537.5,01-Jun-17,R,JCDECAUX UNITED KINGDOM
3,100600,Marketing & Communication,SupS Chief Execs,Non Distributed Costs (NDC),3431,Marketing/Advertising Non-Stat,Services,Supplies and Services,537.5,01-Jun-17,R,JCDECAUX UNITED KINGDOM
3,100600,Marketing & Communication,SupS Chief Execs,Non Distributed Costs (NDC),3431,Marketing/Advertising Non-Stat,Services,Supplies and Services,537.5,01-Jun-17,R,JCDECAUX UNITED KINGDOM
3,100600,Marketing & Communication,SupS Chief Execs,Non Distributed Costs (NDC),3432,Graphic Design,Services,Supplies and Services,600,01-Jun-17,R,PANACEA SOFTWARE LTD
3,100601,Press and Public Relations,SupS Chief Execs,Non Distributed Costs (NDC),3311,Council Magazine,Prntng Stnry Gen Off Exp,Supplies and Services,"3,968.00",01-Jun-17,R,LONDON LETTERBOX MARKETING
3,100620,Community Engagement,SupS Comm and Member Services,Non Distributed Costs (NDC),3413,Surveys,Services,Supplies and Services,"4,850.00",01-Jun-17,R,PEOPLE MATTERS NETWORK
3,100621,Healthwatch,SupS Chief Execs,Non Distributed Costs (NDC),3426,Advocacy & Mentoring Services,Services,Supplies and Services,552,01-Jun-17,R,VOICEABILITY
3,100621,Healthwatch,SupS Chief Execs,Non Distributed Costs (NDC),3426,Advocacy & Mentoring Services,Services,Supplies and Services,"2,954.00",01-Jun-17,R,VOICEABILITY
3,100621,Healthwatch,SupS Chief Execs,Non Distributed Costs (NDC),3996,(DO NOT USE) Contract Payments,Conversion,Supplies and Services,"10,423.75",01-Jun-17,R,MERTON VOLUNTARY SERV COUNCIL
3,100621,Healthwatch,SupS Chief Execs,Non Distributed Costs (NDC),3996,(DO NOT USE) Contract Payments,Conversion,Supplies and Services,"10,423.75",01-Jun-17,R,MERTON VOLUNTARY SERV COUNCIL
3,100621,Healthwatch,SupS Chief Execs,Non Distributed Costs (NDC),3996,(DO NOT USE) Contract Payments,Conversion,Supplies and Services,"10,423.75",01-Jun-17,R,MERTON VOLUNTARY SERV COUNCIL
3,100621,Healthwatch,SupS Chief Execs,Non Distributed Costs (NDC),3996,(DO NOT USE) Contract Payments,Conversion,Supplies and Services,"10,423.75",01-Jun-17,R,MERTON VOLUNTARY SERV COUNCIL
3,100621,Healthwatch,SupS Chief Execs,Non Distributed Costs (NDC),3996,(DO NOT USE) Contract Payments,Conversion,Supplies and Services,"10,423.75",01-Jun-17,R,MERTON VOLUNTARY SERV COUNCIL
3,100621,Healthwatch,SupS Chief Execs,Non Distributed Costs (NDC),4370,Direct Payments,Adult Social Care,Third Party Payments,"10,423.75",01-Jun-17,R,MERTON VOLUNTARY SERV COUNCIL
3,100720,Coroners Courts,Registn Birth/Death/Marriage,Central Services to the Public,3410,Court Fees,Services,Supplies and Services,"2,282.00",01-Jun-17,R,CITY OF WESTMINSTER
3,100720,Coroners Courts,Registn Birth/Death/Marriage,Central Services to the Public,3410,Court Fees,Services,Supplies and Services,"26,658.86",05-Jun-17,R,CITY OF WESTMINSTER
3,100810,Democracy Services,Officer support time,Corporate and Democratic Core,3712,Mayor Allowances,Expenses,Supplies and Services,"2,400.00",01-Jun-17,R,GOSTO FINO PORTUGAL PATISSERIE
3,100850,Election Expenses,Conducting elections,Central Services to the Public,1037,FM - Responsive External Build,RepairsAlterations&MtceOfBldgs,Premises Related Expenses,900,09-Jun-17,R,Grassform Plant Hire Ltd
3,100850,Election Expenses,Conducting elections,Central Services to the Public,1037,FM - Responsive External Build,RepairsAlterations&MtceOfBldgs,Premises Related Expenses,"2,730.00",09-Jun-17,R,Grassform Plant Hire Ltd
3,100850,Election Expenses,Conducting elections,Central Services to the Public,1202,Room Hire External,Rents,Premises Related Expenses,"7,282.00",01-Jun-17,R,GLL(GREENWICH LEISURE LTD )
3,100850,Election Expenses,Conducting elections,Central Services to the Public,3000,Equipment Hire,Equip Furniture/Materials,Supplies and Services,830.5,08-Jun-17,R,STITCHES MARQUEES
3,100850,Election Expenses,Conducting elections,Central Services to the Public,3304,Stationery,Prntng Stnry Gen Off Exp,Supplies and Services,"1,943.50",01-Jun-17,R,SHAW & SONS LTD
3,100850,Election Expenses,Conducting elections,Central Services to the Public,3306,Postage,Prntng Stnry Gen Off Exp,Supplies and Services,"2,341.76",12-Jun-17,R,ROYAL MAIL GROUP LTD
3,100850,Election Expenses,Conducting elections,Central Services to the Public,3308,Removals,Prntng Stnry Gen Off Exp,Supplies and Services,"8,860.00",21-Jun-17,R,EDE'S (U.K.) LTD
3,100951,Legal Shared Service,SupS Legal,Non Distributed Costs (NDC),0151,External Training Costs,Indirect Employee Expenses,Employees,750,01-Jun-17,R,Lawyers in Local Government
3,100951,Legal Shared Service,SupS Legal,Non Distributed Costs (NDC),0151,External Training Costs,Indirect Employee Expenses,Employees,"1,000.00",01-Jun-17,R,Pendulum Media Limited
3,100951,Legal Shared Service,SupS Legal,Non Distributed Costs (NDC),0160,Recruitment Costs,Indirect Employee Expenses,Employees,745,01-Jun-17,R,THE LAW SOCIETY (ADVERTS)
3,100951,Legal Shared Service,SupS Legal,Non Distributed Costs (NDC),0160,Recruitment Costs,Indirect Employee Expenses,Employees,"3,600.00",01-Jun-17,R,H B EDITORIAL SERV (LOCAL GOV
3,100951,Legal Shared Service,SupS Legal,Non Distributed Costs (NDC),3014,Books,Equip Furniture/Materials,Supplies and Services,505,01-Jun-17,R,LEXIS NEXIS
3,100951,Legal Shared Service,SupS Legal,Non Distributed Costs (NDC),3014,Books,Equip Furniture/Materials,Supplies and Services,"14,383.34",01-Jun-17,R,LEXIS NEXIS
3,100951,Legal Shared Service,SupS Legal,Non Distributed Costs (NDC),3305,Office Expenses,Prntng Stnry Gen Off Exp,Supplies and Services,712.59,01-Jun-17,R,RESTORE PLC
3,100951,Legal Shared Service,SupS Legal,Non Distributed Costs (NDC),3306,Postage,Prntng Stnry Gen Off Exp,Supplies and Services,500,01-Jun-17,R,NEOPOST FINANCE LIMITED [RM1 2AR]
3,100951,Legal Shared Service,SupS Legal,Non Distributed Costs (NDC),3455,Solicitors Fees - External,Services,Supplies and Services,700,01-Jun-17,R,LEWIS SILKIN LLP
3,100953,SLLP - Wandsworth,SupS Legal,Non Distributed Costs (NDC),1001,Building Improvements,RepairsAlterations&MtceOfBldgs,Premises Related Expenses,537,01-Jun-17,R,DMA SIGNS LTD
3,100953,SLLP - Wandsworth,SupS Legal,Non Distributed Costs (NDC),1001,Building Improvements,RepairsAlterations&MtceOfBldgs,Premises Related Expenses,537,01-Jun-17,R,DMA SIGNS LTD
3,100953,SLLP - Wandsworth,SupS Legal,Non Distributed Costs (NDC),3522,IT Support Costs,Comms and Computing,Supplies and Services,843.07,01-Jun-17,R,MARQUEST LIMITED
3,100953,SLLP - Wandsworth,SupS Legal,Non Distributed Costs (NDC),3522,IT Support Costs,Comms and Computing,Supplies and Services,"1,323.52",01-Jun-17,R,MARQUEST LIMITED
3,100953,SLLP - Wandsworth,SupS Legal,Non Distributed Costs (NDC),3522,IT Support Costs,Comms and Computing,Supplies and Services,"5,292.86",01-Jun-17,R,LEXIS NEXIS
3,100954,LBR Legal Income,SupS Legal,Non Distributed Costs (NDC),4020,Other Local Authority Payments,Other Local Authorities,Third Party Payments,"26,220.00",13-Jun-17,R,L.B OF RICHMOND UPON THAMES
3,100955,RBK & LBS Legal Income,SupS Legal,Non Distributed Costs (NDC),3452,Refund of Income To Clients,Services,Supplies and Services,500,19-Jun-17,R,LB WANDSWORTH GEN FUND ACCOUNT
3,100955,RBK & LBS Legal Income,SupS Legal,Non Distributed Costs (NDC),3452,Refund of Income To Clients,Services,Supplies and Services,"2,100.00",19-Jun-17,R,KINGSTON CORPORATION
3,100955,RBK & LBS Legal Income,SupS Legal,Non Distributed Costs (NDC),3452,Refund of Income To Clients,Services,Supplies and Services,"3,680.00",19-Jun-17,R,L.B OF RICHMOND UPON THAMES
3,100955,RBK & LBS Legal Income,SupS Legal,Non Distributed Costs (NDC),3452,Refund of Income To Clients,Services,Supplies and Services,"3,864.00",19-Jun-17,R,SUTTON HOUSING PARTNERSHIP LTD
3,100955,RBK & LBS Legal Income,SupS Legal,Non Distributed Costs (NDC),3452,Refund of Income To Clients,Services,Supplies and Services,"4,100.00",19-Jun-17,R,KINGSTON CORPORATION
3,100955,RBK & LBS Legal Income,SupS Legal,Non Distributed Costs (NDC),3452,Refund of Income To Clients,Services,Supplies and Services,"4,750.00",19-Jun-17,R,LONDON BOROUGH OF SUTTON
3,100955,RBK & LBS Legal Income,SupS Legal,Non Distributed Costs (NDC),3452,Refund of Income To Clients,Services,Supplies and Services,"6,525.00",19-Jun-17,R,L.B OF RICHMOND UPON THAMES
3,100955,RBK & LBS Legal Income,SupS Legal,Non Distributed Costs (NDC),3452,Refund of Income To Clients,Services,Supplies and Services,"10,107.50",19-Jun-17,R,LONDON BOROUGH OF SUTTON
3,100955,RBK & LBS Legal Income,SupS Legal,Non Distributed Costs (NDC),4020,Other Local Authority Payments,Other Local Authorities,Third Party Payments,"1,118.00",13-Jun-17,R,SUTTON HOUSING PARTNERSHIP LTD
3,100955,RBK & LBS Legal Income,SupS Legal,Non Distributed Costs (NDC),4020,Other Local Authority Payments,Other Local Authorities,Third Party Payments,"9,735.00",13-Jun-17,R,KINGSTON CORPORATION
3,100955,RBK & LBS Legal Income,SupS Legal,Non Distributed Costs (NDC),4020,Other Local Authority Payments,Other Local Authorities,Third Party Payments,"10,050.00",13-Jun-17,R,LONDON BOROUGH OF SUTTON
3,100970,SLLP - Disbursements,SupS Legal,Non Distributed Costs (NDC),3401,Medical Fees,Services,Supplies and Services,504,01-Jun-17,R,REDACTED
3,100970,SLLP - Disbursements,SupS Legal,Non Distributed Costs (NDC),3401,Medical Fees,Services,Supplies and Services,567,01-Jun-17,R,REDACTED
3,100970,SLLP - Disbursements,SupS Legal,Non Distributed Costs (NDC),3401,Medical Fees,Services,Supplies and Services,587.2,01-Jun-17,R,REDACTED
3,100970,SLLP - Disbursements,SupS Legal,Non Distributed Costs (NDC),3401,Medical Fees,Services,Supplies and Services,603.23,01-Jun-17,R,EXPERT IN MIND
3,100970,SLLP - Disbursements,SupS Legal,Non Distributed Costs (NDC),3401,Medical Fees,Services,Supplies and Services,675,01-Jun-17,R,REDACTED
3,100970,SLLP - Disbursements,SupS Legal,Non Distributed Costs (NDC),3401,Medical Fees,Services,Supplies and Services,716.04,01-Jun-17,R,PSYCHOLOGY DIRECT LTD
3,100970,SLLP - Disbursements,SupS Legal,Non Distributed Costs (NDC),3401,Medical Fees,Services,Supplies and Services,846,01-Jun-17,R,REDACTED
3,100970,SLLP - Disbursements,SupS Legal,Non Distributed Costs (NDC),3401,Medical Fees,Services,Supplies and Services,"1,000.00",01-Jun-17,R,OTKids Limited
3,100970,SLLP - Disbursements,SupS Legal,Non Distributed Costs (NDC),3401,Medical Fees,Services,Supplies and Services,"1,242.00",30-Jun-17,R,REDACTED
3,100970,SLLP - Disbursements,SupS Legal,Non Distributed Costs (NDC),3401,Medical Fees,Services,Supplies and Services,"1,429.60",01-Jun-17,R,REDACTED
3,100970,SLLP - Disbursements,SupS Legal,Non Distributed Costs (NDC),3401,Medical Fees,Services,Supplies and Services,"1,737.60",01-Jun-17,R,REDACTED
3,100970,SLLP - Disbursements,SupS Legal,Non Distributed Costs (NDC),3401,Medical Fees,Services,Supplies and Services,"1,913.40",01-Jun-17,R,REDACTED
3,100970,SLLP - Disbursements,SupS Legal,Non Distributed Costs (NDC),3401,Medical Fees,Services,Supplies and Services,"1,930.00",01-Jun-17,R,OTKids Limited
3,100970,SLLP - Disbursements,SupS Legal,Non Distributed Costs (NDC),3401,Medical Fees,Services,Supplies and Services,"2,386.25",01-Jun-17,R,REDACTED
3,100970,SLLP - Disbursements,SupS Legal,Non Distributed Costs (NDC),3409,Counsel Fees,Services,Supplies and Services,500,02-Jun-17,R,REDACTED
3,100970,SLLP - Disbursements,SupS Legal,Non Distributed Costs (NDC),3409,Counsel Fees,Services,Supplies and Services,500,01-Jun-17,R,REDACTED
3,100970,SLLP - Disbursements,SupS Legal,Non Distributed Costs (NDC),3409,Counsel Fees,Services,Supplies and Services,510,16-Jun-17,R,REDACTED
3,100970,SLLP - Disbursements,SupS Legal,Non Distributed Costs (NDC),3409,Counsel Fees,Services,Supplies and Services,513,01-Jun-17,R,REDACTED
3,100970,SLLP - Disbursements,SupS Legal,Non Distributed Costs (NDC),3409,Counsel Fees,Services,Supplies and Services,520,01-Jun-17,R,REDACTED
3,100970,SLLP - Disbursements,SupS Legal,Non Distributed Costs (NDC),3409,Counsel Fees,Services,Supplies and Services,550,01-Jun-17,R,REDACTED
3,100970,SLLP - Disbursements,SupS Legal,Non Distributed Costs (NDC),3409,Counsel Fees,Services,Supplies and Services,550,01-Jun-17,R,REDACTED
3,100970,SLLP - Disbursements,SupS Legal,Non Distributed Costs (NDC),3409,Counsel Fees,Services,Supplies and Services,600,01-Jun-17,R,REDACTED
3,100970,SLLP - Disbursements,SupS Legal,Non Distributed Costs (NDC),3409,Counsel Fees,Services,Supplies and Services,607.5,01-Jun-17,R,REDACTED
3,100970,SLLP - Disbursements,SupS Legal,Non Distributed Costs (NDC),3409,Counsel Fees,Services,Supplies and Services,610,01-Jun-17,R,REDACTED
3,100970,SLLP - Disbursements,SupS Legal,Non Distributed Costs (NDC),3409,Counsel Fees,Services,Supplies and Services,650,02-Jun-17,R,REDACTED
3,100970,SLLP - Disbursements,SupS Legal,Non Distributed Costs (NDC),3409,Counsel Fees,Services,Supplies and Services,675,01-Jun-17,R,REDACTED
3,100970,SLLP - Disbursements,SupS Legal,Non Distributed Costs (NDC),3409,Counsel Fees,Services,Supplies and Services,700,01-Jun-17,R,REDACTED
3,100970,SLLP - Disbursements,SupS Legal,Non Distributed Costs (NDC),3409,Counsel Fees,Services,Supplies and Services,750,01-Jun-17,R,REDACTED
3,100970,SLLP - Disbursements,SupS Legal,Non Distributed Costs (NDC),3409,Counsel Fees,Services,Supplies and Services,765,13-Jun-17,R,REDACTED
3,100970,SLLP - Disbursements,SupS Legal,Non Distributed Costs (NDC),3409,Counsel Fees,Services,Supplies and Services,800,01-Jun-17,R,REDACTED
3,100970,SLLP - Disbursements,SupS Legal,Non Distributed Costs (NDC),3409,Counsel Fees,Services,Supplies and Services,800,01-Jun-17,R,REDACTED
3,100970,SLLP - Disbursements,SupS Legal,Non Distributed Costs (NDC),3409,Counsel Fees,Services,Supplies and Services,900,01-Jun-17,R,REDACTED
3,100970,SLLP - Disbursements,SupS Legal,Non Distributed Costs (NDC),3409,Counsel Fees,Services,Supplies and Services,950,01-Jun-17,R,REDACTED
3,100970,SLLP - Disbursements,SupS Legal,Non Distributed Costs (NDC),3409,Counsel Fees,Services,Supplies and Services,998,01-Jun-17,R,REDACTED
3,100970,SLLP - Disbursements,SupS Legal,Non Distributed Costs (NDC),3409,Counsel Fees,Services,Supplies and Services,"1,000.00",01-Jun-17,R,REDACTED
3,100970,SLLP - Disbursements,SupS Legal,Non Distributed Costs (NDC),3409,Counsel Fees,Services,Supplies and Services,"1,075.50",12-Jun-17,R,REDACTED
3,100970,SLLP - Disbursements,SupS Legal,Non Distributed Costs (NDC),3409,Counsel Fees,Services,Supplies and Services,"1,125.00",01-Jun-17,R,REDACTED
3,100970,SLLP - Disbursements,SupS Legal,Non Distributed Costs (NDC),3409,Counsel Fees,Services,Supplies and Services,"1,140.00",01-Jun-17,R,REDACTED
3,100970,SLLP - Disbursements,SupS Legal,Non Distributed Costs (NDC),3409,Counsel Fees,Services,Supplies and Services,"1,245.00",01-Jun-17,R,REDACTED
3,100970,SLLP - Disbursements,SupS Legal,Non Distributed Costs (NDC),3409,Counsel Fees,Services,Supplies and Services,"1,250.00",15-Jun-17,R,REDACTED
3,100970,SLLP - Disbursements,SupS Legal,Non Distributed Costs (NDC),3409,Counsel Fees,Services,Supplies and Services,"1,500.00",08-Jun-17,R,REDACTED
3,100970,SLLP - Disbursements,SupS Legal,Non Distributed Costs (NDC),3409,Counsel Fees,Services,Supplies and Services,"1,600.00",01-Jun-17,R,REDACTED
3,100970,SLLP - Disbursements,SupS Legal,Non Distributed Costs (NDC),3409,Counsel Fees,Services,Supplies and Services,"1,645.83",01-Jun-17,R,REDACTED
3,100970,SLLP - Disbursements,SupS Legal,Non Distributed Costs (NDC),3409,Counsel Fees,Services,Supplies and Services,"1,901.00",01-Jun-17,R,REDACTED
3,100970,SLLP - Disbursements,SupS Legal,Non Distributed Costs (NDC),3409,Counsel Fees,Services,Supplies and Services,"2,175.00",01-Jun-17,R,REDACTED
3,100970,SLLP - Disbursements,SupS Legal,Non Distributed Costs (NDC),3409,Counsel Fees,Services,Supplies and Services,"2,375.00",01-Jun-17,R,REDACTED
3,100970,SLLP - Disbursements,SupS Legal,Non Distributed Costs (NDC),3409,Counsel Fees,Services,Supplies and Services,"2,655.00",01-Jun-17,R,REDACTED
3,100970,SLLP - Disbursements,SupS Legal,Non Distributed Costs (NDC),3409,Counsel Fees,Services,Supplies and Services,"3,000.00",01-Jun-17,R,REDACTED
3,100970,SLLP - Disbursements,SupS Legal,Non Distributed Costs (NDC),3409,Counsel Fees,Services,Supplies and Services,"3,000.00",01-Jun-17,R,REDACTED
3,100970,SLLP - Disbursements,SupS Legal,Non Distributed Costs (NDC),3409,Counsel Fees,Services,Supplies and Services,"3,375.00",01-Jun-17,R,REDACTED
3,100970,SLLP - Disbursements,SupS Legal,Non Distributed Costs (NDC),3409,Counsel Fees,Services,Supplies and Services,"3,450.00",01-Jun-17,R,REDACTED
3,100970,SLLP - Disbursements,SupS Legal,Non Distributed Costs (NDC),3409,Counsel Fees,Services,Supplies and Services,"3,500.00",01-Jun-17,R,REDACTED
3,100970,SLLP - Disbursements,SupS Legal,Non Distributed Costs (NDC),3409,Counsel Fees,Services,Supplies and Services,"5,100.00",01-Jun-17,R,REDACTED
3,100970,SLLP - Disbursements,SupS Legal,Non Distributed Costs (NDC),3409,Counsel Fees,Services,Supplies and Services,"11,000.00",01-Jun-17,R,REDACTED
3,100970,SLLP - Disbursements,SupS Legal,Non Distributed Costs (NDC),3455,Solicitors Fees - External,Services,Supplies and Services,"1,547.50",01-Jun-17,R,SHARPE PRITCHARD SOLICITORS
3,100970,SLLP - Disbursements,SupS Legal,Non Distributed Costs (NDC),3455,Solicitors Fees - External,Services,Supplies and Services,"2,013.00",01-Jun-17,R,SHARPE PRITCHARD SOLICITORS
3,100970,SLLP - Disbursements,SupS Legal,Non Distributed Costs (NDC),3455,Solicitors Fees - External,Services,Supplies and Services,"2,304.04",01-Jun-17,R,REDACTED
3,100970,SLLP - Disbursements,SupS Legal,Non Distributed Costs (NDC),3455,Solicitors Fees - External,Services,Supplies and Services,"2,636.00",01-Jun-17,R,SHARPE PRITCHARD SOLICITORS
3,100970,SLLP - Disbursements,SupS Legal,Non Distributed Costs (NDC),3455,Solicitors Fees - External,Services,Supplies and Services,"6,188.00",01-Jun-17,R,SHARPE PRITCHARD SOLICITORS
3,100970,SLLP - Disbursements,SupS Legal,Non Distributed Costs (NDC),3455,Solicitors Fees - External,Services,Supplies and Services,"6,737.00",01-Jun-17,R,SHARPE PRITCHARD SOLICITORS
3,100970,SLLP - Disbursements,SupS Legal,Non Distributed Costs (NDC),3455,Solicitors Fees - External,Services,Supplies and Services,"17,508.00",01-Jun-17,R,SHARPE PRITCHARD SOLICITORS
3,100970,SLLP - Disbursements,SupS Legal,Non Distributed Costs (NDC),3456,Solicitors Fees - Third Party,Services,Supplies and Services,550,01-Jun-17,R,Pitmans LLP
3,100970,SLLP - Disbursements,SupS Legal,Non Distributed Costs (NDC),3456,Solicitors Fees - Third Party,Services,Supplies and Services,850,08-Jun-17,R,Warnapala & Co
3,100970,SLLP - Disbursements,SupS Legal,Non Distributed Costs (NDC),3456,Solicitors Fees - Third Party,Services,Supplies and Services,"2,324.23",01-Jun-17,R,Venters Solicitors
3,100970,SLLP - Disbursements,SupS Legal,Non Distributed Costs (NDC),3502,Telephone - Call Charges,Comms and Computing,Supplies and Services,960,21-Jun-17,R,Central AV limited
3,100970,SLLP - Disbursements,SupS Legal,Non Distributed Costs (NDC),4217,Independent Social Care Expert,Private Contractors,Third Party Payments,"1,171.50",01-Jun-17,R,REDACTED
3,100970,SLLP - Disbursements,SupS Legal,Non Distributed Costs (NDC),4217,Independent Social Care Expert,Private Contractors,Third Party Payments,"1,760.80",01-Jun-17,R,NATIO RESOURCING LTD
3,100970,SLLP - Disbursements,SupS Legal,Non Distributed Costs (NDC),4217,Independent Social Care Expert,Private Contractors,Third Party Payments,"1,771.15",01-Jun-17,R,REDACTED
3,100970,SLLP - Disbursements,SupS Legal,Non Distributed Costs (NDC),4217,Independent Social Care Expert,Private Contractors,Third Party Payments,"2,752.50",01-Jun-17,R,REDACTED
3,100970,SLLP - Disbursements,SupS Legal,Non Distributed Costs (NDC),4217,Independent Social Care Expert,Private Contractors,Third Party Payments,"4,407.60",01-Jun-17,R,REDACTED
3,101070,Learning and Development,SupS Health & Safety,Non Distributed Costs (NDC),0151,External Training Costs,Indirect Employee Expenses,Employees,650,11-Jun-17,R,MEDI AID(UK) LTD
3,101070,Learning and Development,SupS Health & Safety,Non Distributed Costs (NDC),0151,External Training Costs,Indirect Employee Expenses,Employees,675,01-Jun-17,R,PEARLCATCHERS LIMITED
3,101070,Learning and Development,SupS Health & Safety,Non Distributed Costs (NDC),0151,External Training Costs,Indirect Employee Expenses,Employees,675,01-Jun-17,R,PEARLCATCHERS LIMITED
3,101070,Learning and Development,SupS Health & Safety,Non Distributed Costs (NDC),0151,External Training Costs,Indirect Employee Expenses,Employees,780,12-Jun-17,R,GEOPLACE
3,101070,Learning and Development,SupS Health & Safety,Non Distributed Costs (NDC),0151,External Training Costs,Indirect Employee Expenses,Employees,"1,500.00",01-Jun-17,R,Open University
3,101070,Learning and Development,SupS Health & Safety,Non Distributed Costs (NDC),0151,External Training Costs,Indirect Employee Expenses,Employees,"1,800.00",20-Jun-17,R,CHANGE CONSULTANCY
3,101070,Learning and Development,SupS Health & Safety,Non Distributed Costs (NDC),3700,Conferences,Expenses,Supplies and Services,"4,209.00",01-Jun-17,R,BOSTOCK MARKETING GROUP LTD
3,101070,Learning and Development,SupS Health & Safety,Non Distributed Costs (NDC),3700,Conferences,Expenses,Supplies and Services,"8,418.00",01-Jun-17,R,BOSTOCK MARKETING GROUP LTD
3,101090,Occupational Health,SupS Health & Safety,Non Distributed Costs (NDC),3401,Medical Fees,Services,Supplies and Services,"5,210.40",01-Jun-17,R,Health Management Ltd
3,101090,Occupational Health,SupS Health & Safety,Non Distributed Costs (NDC),3401,Medical Fees,Services,Supplies and Services,"15,773.93",01-Jun-17,R,Health Management Ltd
3,101211,Civic Centre,SupS Facilities,Non Distributed Costs (NDC),1035,FM Planned Preventative Mtce,RepairsAlterations&MtceOfBldgs,Premises Related Expenses,"5,320.00",01-Jun-17,R,SALTASH ENTERPRISES LTD
3,101211,Civic Centre,SupS Facilities,Non Distributed Costs (NDC),1036,FM - Responsive Internal Build,RepairsAlterations&MtceOfBldgs,Premises Related Expenses,"1,940.40",01-Jun-17,R,FUTURE TECH
3,101211,Civic Centre,SupS Facilities,Non Distributed Costs (NDC),1036,FM - Responsive Internal Build,RepairsAlterations&MtceOfBldgs,Premises Related Expenses,"4,687.50",01-Jun-17,R,REDACTED
3,101211,Civic Centre,SupS Facilities,Non Distributed Costs (NDC),3419,Security Services,Services,Supplies and Services,530,01-Jun-17,R,SIGHT & SOUND
3,101212,Corporate Services Buildings,SupS Facilities,Non Distributed Costs (NDC),1002,Building Maintenance,RepairsAlterations&MtceOfBldgs,Premises Related Expenses,"2,567.25",01-Jun-17,R,APLEONA HSG LIMITED
3,101212,Corporate Services Buildings,SupS Facilities,Non Distributed Costs (NDC),1003,Building Maint - Mechanical,RepairsAlterations&MtceOfBldgs,Premises Related Expenses,"7,806.26",01-Jun-17,R,FUTURE TECH
3,101212,Corporate Services Buildings,SupS Facilities,Non Distributed Costs (NDC),1004,Building Maint - Electrical,RepairsAlterations&MtceOfBldgs,Premises Related Expenses,682.56,01-Jun-17,R,EDMUNDSON ELECTRICAL LTD
3,101212,Corporate Services Buildings,SupS Facilities,Non Distributed Costs (NDC),1009,Security,RepairsAlterations&MtceOfBldgs,Premises Related Expenses,"3,550.26",01-Jun-17,R,SIGHT & SOUND
3,101212,Corporate Services Buildings,SupS Facilities,Non Distributed Costs (NDC),1402,Use of Water,Water Services,Premises Related Expenses,731.9,01-Jun-17,R,SES BUSINESS WATER
3,101212,Corporate Services Buildings,SupS Facilities,Non Distributed Costs (NDC),1402,Use of Water,Water Services,Premises Related Expenses,861.17,06-Jun-17,R,SES BUSINESS WATER
3,101250,C & H Buildings,OP 65 & Over Day Care,Physical/ Sensory Support,1001,Building Improvements,RepairsAlterations&MtceOfBldgs,Premises Related Expenses,820.71,01-Jun-17,R,SALTASH ENTERPRISES LTD
3,101250,C & H Buildings,OP 65 & Over Day Care,Physical/ Sensory Support,1036,FM - Responsive Internal Build,RepairsAlterations&MtceOfBldgs,Premises Related Expenses,614.51,21-Jun-17,R,APLEONA HSG LIMITED
3,101250,C & H Buildings,OP 65 & Over Day Care,Physical/ Sensory Support,1039,FM - Responsive Services,RepairsAlterations&MtceOfBldgs,Premises Related Expenses,579.55,01-Jun-17,R,Stealth Fire and Security Limited
3,101280,CSF Buildings,Strategic Management,Children's Social Care,1001,Building Improvements,RepairsAlterations&MtceOfBldgs,Premises Related Expenses,"2,004.00",01-Jun-17,R,SALTASH ENTERPRISES LTD
3,101310,E & R Buildings,Parks & Open Spaces,Cultural and Related Services,1003,Building Maint - Mechanical,RepairsAlterations&MtceOfBldgs,Premises Related Expenses,542.52,01-Jun-17,R,APLEONA HSG LIMITED
3,101310,E & R Buildings,Parks & Open Spaces,Cultural and Related Services,1036,FM - Responsive Internal Build,RepairsAlterations&MtceOfBldgs,Premises Related Expenses,609.08,08-Jun-17,R,APLEONA HSG LIMITED
3,101311,Leisure Buildings,Parks & Open Spaces,Cultural and Related Services,1001,Building Improvements,RepairsAlterations&MtceOfBldgs,Premises Related Expenses,"1,110.40",01-Jun-17,R,SALTASH ENTERPRISES LTD
3,101311,Leisure Buildings,Parks & Open Spaces,Cultural and Related Services,1001,Building Improvements,RepairsAlterations&MtceOfBldgs,Premises Related Expenses,"3,220.00",01-Jun-17,R,SALTASH ENTERPRISES LTD
3,101311,Leisure Buildings,Parks & Open Spaces,Cultural and Related Services,1004,Building Maint - Electrical,RepairsAlterations&MtceOfBldgs,Premises Related Expenses,"1,142.82",08-Jun-17,R,APLEONA HSG LIMITED
3,101350,Facilities,SupS Facilities,Non Distributed Costs (NDC),1002,Building Maintenance,RepairsAlterations&MtceOfBldgs,Premises Related Expenses,"1,135.20",01-Jun-17,R,SALTASH ENTERPRISES LTD
3,101350,Facilities,SupS Facilities,Non Distributed Costs (NDC),1041,Energy Conservation Works,RepairsAlterations&MtceOfBldgs,Premises Related Expenses,500,01-Jun-17,R,JOJU SOLA
3,101350,Facilities,SupS Facilities,Non Distributed Costs (NDC),1041,Energy Conservation Works,RepairsAlterations&MtceOfBldgs,Premises Related Expenses,664.72,01-Jun-17,R,STARK SOFTWARE INTERNATIONAL
3,101350,Facilities,SupS Facilities,Non Distributed Costs (NDC),1041,Energy Conservation Works,RepairsAlterations&MtceOfBldgs,Premises Related Expenses,664.72,01-Jun-17,R,STARK SOFTWARE INTERNATIONAL
3,101350,Facilities,SupS Facilities,Non Distributed Costs (NDC),1041,Energy Conservation Works,RepairsAlterations&MtceOfBldgs,Premises Related Expenses,"1,000.00",14-Jun-17,R,KINECT ENERGY UK LTD
3,101350,Facilities,SupS Facilities,Non Distributed Costs (NDC),1041,Energy Conservation Works,RepairsAlterations&MtceOfBldgs,Premises Related Expenses,"1,000.00",14-Jun-17,R,KINECT ENERGY UK LTD
3,101350,Facilities,SupS Facilities,Non Distributed Costs (NDC),1041,Energy Conservation Works,RepairsAlterations&MtceOfBldgs,Premises Related Expenses,"1,160.00",01-Jun-17,R,NDA CONSULTING
3,101350,Facilities,SupS Facilities,Non Distributed Costs (NDC),1041,Energy Conservation Works,RepairsAlterations&MtceOfBldgs,Premises Related Expenses,"3,200.00",01-Jun-17,R,POWER DATA ASSOCIATES LTD
3,101350,Facilities,SupS Facilities,Non Distributed Costs (NDC),1041,Energy Conservation Works,RepairsAlterations&MtceOfBldgs,Premises Related Expenses,"7,750.00",14-Jun-17,R,KINECT ENERGY UK LTD
3,101350,Facilities,SupS Facilities,Non Distributed Costs (NDC),1101,Gas,Energy Costs,Premises Related Expenses,566.3,01-Jun-17,R,ENERGY ASSETS LIMITED
3,101350,Facilities,SupS Facilities,Non Distributed Costs (NDC),1101,Gas,Energy Costs,Premises Related Expenses,612.78,16-Jun-17,R,ENERGY ASSETS LIMITED
3,101350,Facilities,SupS Facilities,Non Distributed Costs (NDC),1102,Electricity,Energy Costs,Premises Related Expenses,500,01-Jun-17,R,EDF CUSTOMER FIELD SERVICES
3,101350,Facilities,SupS Facilities,Non Distributed Costs (NDC),3305,Office Expenses,Prntng Stnry Gen Off Exp,Supplies and Services,"1,679.78",01-Jun-17,R,Metering Technology Solutions
3,101352,Corporate Contracts - FM,SupS Facilities,Non Distributed Costs (NDC),1002,Building Maintenance,RepairsAlterations&MtceOfBldgs,Premises Related Expenses,690,01-Jun-17,R,INDEPTH HYGIENE SERVICES LTD
3,101352,Corporate Contracts - FM,SupS Facilities,Non Distributed Costs (NDC),1600,Corporate Cleaning Contract,Cleaning and Domestic Supplies,Premises Related Expenses,865.12,01-Jun-17,R,BIRKIN CLEANING SERVICES LTD
3,101352,Corporate Contracts - FM,SupS Facilities,Non Distributed Costs (NDC),1600,Corporate Cleaning Contract,Cleaning and Domestic Supplies,Premises Related Expenses,885.31,01-Jun-17,R,BIRKIN CLEANING SERVICES LTD
3,101352,Corporate Contracts - FM,SupS Facilities,Non Distributed Costs (NDC),1600,Corporate Cleaning Contract,Cleaning and Domestic Supplies,Premises Related Expenses,913.32,01-Jun-17,R,BIRKIN CLEANING SERVICES LTD
3,101352,Corporate Contracts - FM,SupS Facilities,Non Distributed Costs (NDC),1600,Corporate Cleaning Contract,Cleaning and Domestic Supplies,Premises Related Expenses,"1,304.95",01-Jun-17,R,BIRKIN CLEANING SERVICES LTD
3,101352,Corporate Contracts - FM,SupS Facilities,Non Distributed Costs (NDC),1600,Corporate Cleaning Contract,Cleaning and Domestic Supplies,Premises Related Expenses,"1,497.38",01-Jun-17,R,BIRKIN CLEANING SERVICES LTD
3,101352,Corporate Contracts - FM,SupS Facilities,Non Distributed Costs (NDC),1600,Corporate Cleaning Contract,Cleaning and Domestic Supplies,Premises Related Expenses,"1,623.45",01-Jun-17,R,BIRKIN CLEANING SERVICES LTD
3,101352,Corporate Contracts - FM,SupS Facilities,Non Distributed Costs (NDC),1600,Corporate Cleaning Contract,Cleaning and Domestic Supplies,Premises Related Expenses,"1,628.42",01-Jun-17,R,BIRKIN CLEANING SERVICES LTD
3,101352,Corporate Contracts - FM,SupS Facilities,Non Distributed Costs (NDC),1600,Corporate Cleaning Contract,Cleaning and Domestic Supplies,Premises Related Expenses,"1,764.19",01-Jun-17,R,BIRKIN CLEANING SERVICES LTD
3,101352,Corporate Contracts - FM,SupS Facilities,Non Distributed Costs (NDC),1600,Corporate Cleaning Contract,Cleaning and Domestic Supplies,Premises Related Expenses,"5,336.01",01-Jun-17,R,BIRKIN CLEANING SERVICES LTD
3,101352,Corporate Contracts - FM,SupS Facilities,Non Distributed Costs (NDC),1600,Corporate Cleaning Contract,Cleaning and Domestic Supplies,Premises Related Expenses,"5,336.01",01-Jun-17,R,BIRKIN CLEANING SERVICES LTD
3,101352,Corporate Contracts - FM,SupS Facilities,Non Distributed Costs (NDC),1600,Corporate Cleaning Contract,Cleaning and Domestic Supplies,Premises Related Expenses,"7,302.68",01-Jun-17,R,BIRKIN CLEANING SERVICES LTD
3,101352,Corporate Contracts - FM,SupS Facilities,Non Distributed Costs (NDC),1600,Corporate Cleaning Contract,Cleaning and Domestic Supplies,Premises Related Expenses,"16,434.66",01-Jun-17,R,BIRKIN CLEANING SERVICES LTD
3,101352,Corporate Contracts - FM,SupS Facilities,Non Distributed Costs (NDC),1600,Corporate Cleaning Contract,Cleaning and Domestic Supplies,Premises Related Expenses,"16,434.66",01-Jun-17,R,BIRKIN CLEANING SERVICES LTD
3,101352,Corporate Contracts - FM,SupS Facilities,Non Distributed Costs (NDC),3005,Cleaning Materials,Equip Furniture/Materials,Supplies and Services,504,02-Jun-17,R,GREENHAM TRADING LTD
3,101352,Corporate Contracts - FM,SupS Facilities,Non Distributed Costs (NDC),3005,Cleaning Materials,Equip Furniture/Materials,Supplies and Services,735.68,05-Jun-17,R,NERCON LTD
3,101353,Utilities Recharge,SupS Facilities,Non Distributed Costs (NDC),1102,Electricity,Energy Costs,Premises Related Expenses,"2,044.75",20-Jun-17,R,SCOTTISH POWER
3,101353,Utilities Recharge,SupS Facilities,Non Distributed Costs (NDC),1102,Electricity,Energy Costs,Premises Related Expenses,"29,538.00",20-Jun-17,R,SCOTTISH POWER
3,101370,Buildings Maintenance,SupS IT,Non Distributed Costs (NDC),1001,Building Improvements,RepairsAlterations&MtceOfBldgs,Premises Related Expenses,"1,221.00",05-Jun-17,R,SALTASH ENTERPRISES LTD
3,101370,Buildings Maintenance,SupS IT,Non Distributed Costs (NDC),1001,Building Improvements,RepairsAlterations&MtceOfBldgs,Premises Related Expenses,"2,868.80",01-Jun-17,R,APLEONA HSG LIMITED
3,101370,Buildings Maintenance,SupS IT,Non Distributed Costs (NDC),1001,Building Improvements,RepairsAlterations&MtceOfBldgs,Premises Related Expenses,"9,962.50",01-Jun-17,R,SALTASH ENTERPRISES LTD
3,101370,Buildings Maintenance,SupS IT,Non Distributed Costs (NDC),1001,Building Improvements,RepairsAlterations&MtceOfBldgs,Premises Related Expenses,"11,720.00",05-Jun-17,R,SALTASH ENTERPRISES LTD
3,101370,Buildings Maintenance,SupS IT,Non Distributed Costs (NDC),1002,Building Maintenance,RepairsAlterations&MtceOfBldgs,Premises Related Expenses,"4,244.86",21-Jun-17,R,APLEONA HSG LIMITED
3,101370,Buildings Maintenance,SupS IT,Non Distributed Costs (NDC),1036,FM - Responsive Internal Build,RepairsAlterations&MtceOfBldgs,Premises Related Expenses,"1,322.37",01-Jun-17,R,SALTASH ENTERPRISES LTD
3,101370,Buildings Maintenance,SupS IT,Non Distributed Costs (NDC),1036,FM - Responsive Internal Build,RepairsAlterations&MtceOfBldgs,Premises Related Expenses,"1,850.53",01-Jun-17,R,SOUTHERN FIRE DOORS LTD
3,101370,Buildings Maintenance,SupS IT,Non Distributed Costs (NDC),1036,FM - Responsive Internal Build,RepairsAlterations&MtceOfBldgs,Premises Related Expenses,"2,000.00",01-Jun-17,R,P W Industrial Services Ltd
3,101370,Buildings Maintenance,SupS IT,Non Distributed Costs (NDC),1036,FM - Responsive Internal Build,RepairsAlterations&MtceOfBldgs,Premises Related Expenses,"2,450.00",01-Jun-17,R,KH FLOORING LTD
3,101370,Buildings Maintenance,SupS IT,Non Distributed Costs (NDC),1036,FM - Responsive Internal Build,RepairsAlterations&MtceOfBldgs,Premises Related Expenses,"5,370.00",01-Jun-17,R,SUNA COMMUNICATION
3,101370,Buildings Maintenance,SupS IT,Non Distributed Costs (NDC),1037,FM - Responsive External Build,RepairsAlterations&MtceOfBldgs,Premises Related Expenses,"5,648.00",01-Jun-17,R,SALTASH ENTERPRISES LTD
3,101370,Buildings Maintenance,SupS IT,Non Distributed Costs (NDC),3001,Equipment/Tools Purchase,Equip Furniture/Materials,Supplies and Services,"1,636.00",01-Jun-17,R,BROXAP LIMITED
3,101390,Security Services,SupS Facilities,Non Distributed Costs (NDC),1009,Security,RepairsAlterations&MtceOfBldgs,Premises Related Expenses,"9,364.52",01-Jun-17,R,SIGHT & SOUND
3,101410,PDC,Strategic Management,Children's Social Care,1600,Corporate Cleaning Contract,Cleaning and Domestic Supplies,Premises Related Expenses,"1,621.71",01-Jun-17,R,JULIUS RUTHERFOORD & CO LTD
3,101410,PDC,Strategic Management,Children's Social Care,1600,Corporate Cleaning Contract,Cleaning and Domestic Supplies,Premises Related Expenses,"1,853.32",01-Jun-17,R,JULIUS RUTHERFOORD & CO LTD
3,101590,IT Service Delivery,SupS IT,Non Distributed Costs (NDC),3521,IT licences - Applications,Comms and Computing,Supplies and Services,"5,000.00",01-Jun-17,R,QUOVADIS ONLINE SECURITY LTD
3,101590,IT Service Delivery,SupS IT,Non Distributed Costs (NDC),3521,IT licences - Applications,Comms and Computing,Supplies and Services,"18,585.51",01-Jun-17,R,WELLDATA LTD
3,101591,CHAS IT projects,SupS IT,Non Distributed Costs (NDC),0070,Agency Staff - Corp Contract,Direct EmployeeExpenses-Agency,Employees,"6,890.00",05-Jun-17,R,MARCUS DONALD PEOPLE LTD
3,101591,CHAS IT projects,SupS IT,Non Distributed Costs (NDC),0070,Agency Staff - Corp Contract,Direct EmployeeExpenses-Agency,Employees,"7,420.00",05-Jun-17,R,MARCUS DONALD PEOPLE LTD
3,101610,IT-Telecomms,SupS IT,Non Distributed Costs (NDC),3500,Telephone - Hardware,Comms and Computing,Supplies and Services,"1,408.50",01-Jun-17,R,COLT TECHNOLOGY SERVICES
3,101610,IT-Telecomms,SupS IT,Non Distributed Costs (NDC),3502,Telephone - Call Charges,Comms and Computing,Supplies and Services,564.24,01-Jun-17,R,T MOBILE (UK)
3,101610,IT-Telecomms,SupS IT,Non Distributed Costs (NDC),3502,Telephone - Call Charges,Comms and Computing,Supplies and Services,"1,348.57",01-Jun-17,R,COLT TECHNOLOGY SERVICES
3,101610,IT-Telecomms,SupS IT,Non Distributed Costs (NDC),3502,Telephone - Call Charges,Comms and Computing,Supplies and Services,"1,595.58",01-Jun-17,R,COLT TECHNOLOGY SERVICES
3,101610,IT-Telecomms,SupS IT,Non Distributed Costs (NDC),3502,Telephone - Call Charges,Comms and Computing,Supplies and Services,"13,176.44",01-Jun-17,R,ORANGE P'MENT PRO'SING AIRTIME
3,101610,IT-Telecomms,SupS IT,Non Distributed Costs (NDC),3502,Telephone - Call Charges,Comms and Computing,Supplies and Services,"43,574.53",01-Jun-17,R,BRITISH TELECOMMUNICATIONS PLC
3,101610,IT-Telecomms,SupS IT,Non Distributed Costs (NDC),3512,Computer Hardware- Maintenance,Comms and Computing,Supplies and Services,"13,087.15",01-Jun-17,R,XCHANGING GLOBAL INSURANCE SER
3,101630,Post services,SupS Facilities,Non Distributed Costs (NDC),3306,Postage,Prntng Stnry Gen Off Exp,Supplies and Services,542,01-Jun-17,R,CHESSINGTON CARS AND COURIERS
3,101630,Post services,SupS Facilities,Non Distributed Costs (NDC),3306,Postage,Prntng Stnry Gen Off Exp,Supplies and Services,576.21,01-Jun-17,R,STREETWISE COURIERS
3,101630,Post services,SupS Facilities,Non Distributed Costs (NDC),3306,Postage,Prntng Stnry Gen Off Exp,Supplies and Services,662.41,01-Jun-17,R,STREETWISE COURIERS
3,101630,Post services,SupS Facilities,Non Distributed Costs (NDC),3306,Postage,Prntng Stnry Gen Off Exp,Supplies and Services,677.01,01-Jun-17,R,STREETWISE COURIERS
3,101630,Post services,SupS Facilities,Non Distributed Costs (NDC),3306,Postage,Prntng Stnry Gen Off Exp,Supplies and Services,"1,178.99",12-Jun-17,R,STREETWISE COURIERS
3,101630,Post services,SupS Facilities,Non Distributed Costs (NDC),3306,Postage,Prntng Stnry Gen Off Exp,Supplies and Services,"5,000.00",01-Jun-17,R,NEOPOST FINANCE LIMITED [RM1 2AR]
3,101630,Post services,SupS Facilities,Non Distributed Costs (NDC),3306,Postage,Prntng Stnry Gen Off Exp,Supplies and Services,"10,000.00",14-Jun-17,R,NEOPOST FINANCE LIMITED [RM1 2AR]
3,101650,Printing,T/A Corporate Services,Other Operating Inc & Expend,3012,Viewable Media,Equip Furniture/Materials,Supplies and Services,"1,176.25",01-Jun-17,R,MISL LTD
3,101650,Printing,T/A Corporate Services,Other Operating Inc & Expend,3012,Viewable Media,Equip Furniture/Materials,Supplies and Services,"4,090.78",01-Jun-17,R,MISL LTD
3,101650,Printing,T/A Corporate Services,Other Operating Inc & Expend,3300,Printing,Prntng Stnry Gen Off Exp,Supplies and Services,778,01-Jun-17,R,IMPRESS PRINT SERVICES LTD
3,101650,Printing,T/A Corporate Services,Other Operating Inc & Expend,3304,Stationery,Prntng Stnry Gen Off Exp,Supplies and Services,530,01-Jun-17,R,OFFICE DEPOT UK LTD
3,101651,PrintUnit-HighVolPhtcopying,T/A Corporate Services,Other Operating Inc & Expend,3303,Paper,Prntng Stnry Gen Off Exp,Supplies and Services,501.2,01-Jun-17,R,ANTALIS
3,101651,PrintUnit-HighVolPhtcopying,T/A Corporate Services,Other Operating Inc & Expend,3304,Stationery,Prntng Stnry Gen Off Exp,Supplies and Services,"1,150.70",01-Jun-17,R,ENCORE PACKAGING SOLUTION
3,101700,Procurement,SupS Comm and Member Services,Non Distributed Costs (NDC),0070,Agency Staff - Corp Contract,Direct EmployeeExpenses-Agency,Employees,"2,636.25",01-Jun-17,R,HAYS SPECIALIST RECRUITM'T LTD
3,101700,Procurement,SupS Comm and Member Services,Non Distributed Costs (NDC),0070,Agency Staff - Corp Contract,Direct EmployeeExpenses-Agency,Employees,"2,636.25",01-Jun-17,R,HAYS SPECIALIST RECRUITM'T LTD
3,101700,Procurement,SupS Comm and Member Services,Non Distributed Costs (NDC),0075,Agency Staff - Off Contract,Direct EmployeeExpenses-Agency,Employees,990,05-Jun-17,R,HAYS SPECIALIST RECRUITM'T LTD
3,101700,Procurement,SupS Comm and Member Services,Non Distributed Costs (NDC),0075,Agency Staff - Off Contract,Direct EmployeeExpenses-Agency,Employees,"1,361.94",01-Jun-17,R,HAYS SPECIALIST RECRUITM'T LTD
3,101700,Procurement,SupS Comm and Member Services,Non Distributed Costs (NDC),0075,Agency Staff - Off Contract,Direct EmployeeExpenses-Agency,Employees,"1,361.94",01-Jun-17,R,HAYS SPECIALIST RECRUITM'T LTD
3,101700,Procurement,SupS Comm and Member Services,Non Distributed Costs (NDC),0075,Agency Staff - Off Contract,Direct EmployeeExpenses-Agency,Employees,"1,361.94",01-Jun-17,R,HAYS SPECIALIST RECRUITM'T LTD
3,101700,Procurement,SupS Comm and Member Services,Non Distributed Costs (NDC),0075,Agency Staff - Off Contract,Direct EmployeeExpenses-Agency,Employees,"1,485.00",01-Jun-17,R,HAYS SPECIALIST RECRUITM'T LTD
3,101700,Procurement,SupS Comm and Member Services,Non Distributed Costs (NDC),0075,Agency Staff - Off Contract,Direct EmployeeExpenses-Agency,Employees,"1,485.00",06-Jun-17,R,HAYS SPECIALIST RECRUITM'T LTD
3,101700,Procurement,SupS Comm and Member Services,Non Distributed Costs (NDC),0075,Agency Staff - Off Contract,Direct EmployeeExpenses-Agency,Employees,"1,815.92",01-Jun-17,R,HAYS SPECIALIST RECRUITM'T LTD
3,101700,Procurement,SupS Comm and Member Services,Non Distributed Costs (NDC),0075,Agency Staff - Off Contract,Direct EmployeeExpenses-Agency,Employees,"1,815.92",01-Jun-17,R,HAYS SPECIALIST RECRUITM'T LTD
3,101700,Procurement,SupS Comm and Member Services,Non Distributed Costs (NDC),0075,Agency Staff - Off Contract,Direct EmployeeExpenses-Agency,Employees,"2,260.00",05-Jun-17,R,HAYS SPECIALIST RECRUITM'T LTD
3,101700,Procurement,SupS Comm and Member Services,Non Distributed Costs (NDC),0075,Agency Staff - Off Contract,Direct EmployeeExpenses-Agency,Employees,"2,260.00",01-Jun-17,R,HAYS SPECIALIST RECRUITM'T LTD
3,101700,Procurement,SupS Comm and Member Services,Non Distributed Costs (NDC),0075,Agency Staff - Off Contract,Direct EmployeeExpenses-Agency,Employees,"2,260.00",05-Jun-17,R,HAYS SPECIALIST RECRUITM'T LTD
3,101700,Procurement,SupS Comm and Member Services,Non Distributed Costs (NDC),0075,Agency Staff - Off Contract,Direct EmployeeExpenses-Agency,Employees,"2,260.00",19-Jun-17,R,HAYS SPECIALIST RECRUITM'T LTD
3,101700,Procurement,SupS Comm and Member Services,Non Distributed Costs (NDC),0075,Agency Staff - Off Contract,Direct EmployeeExpenses-Agency,Employees,"2,269.90",01-Jun-17,R,HAYS SPECIALIST RECRUITM'T LTD
3,101700,Procurement,SupS Comm and Member Services,Non Distributed Costs (NDC),0075,Agency Staff - Off Contract,Direct EmployeeExpenses-Agency,Employees,"2,475.00",01-Jun-17,R,HAYS SPECIALIST RECRUITM'T LTD
3,101700,Procurement,SupS Comm and Member Services,Non Distributed Costs (NDC),0075,Agency Staff - Off Contract,Direct EmployeeExpenses-Agency,Employees,"2,475.00",01-Jun-17,R,HAYS SPECIALIST RECRUITM'T LTD
3,101700,Procurement,SupS Comm and Member Services,Non Distributed Costs (NDC),0075,Agency Staff - Off Contract,Direct EmployeeExpenses-Agency,Employees,"2,475.00",06-Jun-17,R,HAYS SPECIALIST RECRUITM'T LTD
3,101700,Procurement,SupS Comm and Member Services,Non Distributed Costs (NDC),0075,Agency Staff - Off Contract,Direct EmployeeExpenses-Agency,Employees,"2,475.00",05-Jun-17,R,HAYS SPECIALIST RECRUITM'T LTD
3,101750,Client Finance Affairs,SupS IT,Non Distributed Costs (NDC),3435,Banking Costs,Services,Supplies and Services,"1,414.50",01-Jun-17,R,LLOYDS BANK PLC
3,200010,Director of Community& Housing,Hsg Dept Supp Staff & Costs,General Fund Housing,3401,Medical Fees,Services,Supplies and Services,"3,500.00",01-Jun-17,R,GATENBY SANDERSON LIMITED
3,200010,Director of Community& Housing,Hsg Dept Supp Staff & Costs,General Fund Housing,3409,Counsel Fees,Services,Supplies and Services,"3,125.00",01-Jun-17,R,REDACTED
3,200010,Director of Community& Housing,Hsg Dept Supp Staff & Costs,General Fund Housing,3456,Solicitors Fees - Third Party,Services,Supplies and Services,"1,830.00",01-Jun-17,R,GOODWIN MALATESTA LEGAL COSTS
3,200010,Director of Community& Housing,Hsg Dept Supp Staff & Costs,General Fund Housing,3804,Subscriptions,Grants and Subscriptions,Supplies and Services,"2,100.00",01-Jun-17,R,LONDON COUNCILS
3,200090,Bed & Breakfast - accomm,Bed / breakfast accommodation,General Fund Housing,3452,Refund of Income To Clients,Services,Supplies and Services,"1,221.65",23-Jun-17,R,REDACTED
3,200090,Bed & Breakfast - accomm,Bed / breakfast accommodation,General Fund Housing,3996,(DO NOT USE) Contract Payments,Conversion,Supplies and Services,"1,095.05",01-Jun-17,R,London Borough Of Merton - Council Tax
3,200090,Bed & Breakfast - accomm,Bed / breakfast accommodation,General Fund Housing,3996,(DO NOT USE) Contract Payments,Conversion,Supplies and Services,"1,550.00",01-Jun-17,R,REDACTED
3,200090,Bed & Breakfast - accomm,Bed / breakfast accommodation,General Fund Housing,3996,(DO NOT USE) Contract Payments,Conversion,Supplies and Services,"2,830.66",01-Jun-17,R,London Borough Of Merton - Council Tax
3,200090,Bed & Breakfast - accomm,Bed / breakfast accommodation,General Fund Housing,3996,(DO NOT USE) Contract Payments,Conversion,Supplies and Services,"7,641.50",01-Jun-17,R,FASTMOVE PROPERTIES
3,200090,Bed & Breakfast - accomm,Bed / breakfast accommodation,General Fund Housing,3996,(DO NOT USE) Contract Payments,Conversion,Supplies and Services,"106,600.00",01-Jun-17,R,ROOMS & STUDIOS MANAGEMENT
3,200090,Bed & Breakfast - accomm,Bed / breakfast accommodation,General Fund Housing,4706,Temporary Accommodation,Other Agencies,Third Party Payments,780,01-Jun-17,R,HYTYME B&B
3,200090,Bed & Breakfast - accomm,Bed / breakfast accommodation,General Fund Housing,4706,Temporary Accommodation,Other Agencies,Third Party Payments,930,01-Jun-17,R,EURO HOTEL - LONDON WEMBLEY
3,200090,Bed & Breakfast - accomm,Bed / breakfast accommodation,General Fund Housing,4706,Temporary Accommodation,Other Agencies,Third Party Payments,961,01-Jun-17,R,REDACTED
3,200090,Bed & Breakfast - accomm,Bed / breakfast accommodation,General Fund Housing,4706,Temporary Accommodation,Other Agencies,Third Party Payments,"1,116.00",01-Jun-17,R,EURO HOTELS (HOUNSLOW)
3,200090,Bed & Breakfast - accomm,Bed / breakfast accommodation,General Fund Housing,4706,Temporary Accommodation,Other Agencies,Third Party Payments,"1,147.00",01-Jun-17,R,NORBURY PROPERTY SERV LDN LTD
3,200090,Bed & Breakfast - accomm,Bed / breakfast accommodation,General Fund Housing,4706,Temporary Accommodation,Other Agencies,Third Party Payments,"1,236.90",01-Jun-17,R,REDACTED
3,200090,Bed & Breakfast - accomm,Bed / breakfast accommodation,General Fund Housing,4706,Temporary Accommodation,Other Agencies,Third Party Payments,"1,236.90",01-Jun-17,R,REDACTED
3,200090,Bed & Breakfast - accomm,Bed / breakfast accommodation,General Fund Housing,4706,Temporary Accommodation,Other Agencies,Third Party Payments,"1,236.90",01-Jun-17,R,REDACTED
3,200090,Bed & Breakfast - accomm,Bed / breakfast accommodation,General Fund Housing,4706,Temporary Accommodation,Other Agencies,Third Party Payments,"1,236.90",01-Jun-17,R,REDACTED
3,200090,Bed & Breakfast - accomm,Bed / breakfast accommodation,General Fund Housing,4706,Temporary Accommodation,Other Agencies,Third Party Payments,"1,236.90",01-Jun-17,R,REDACTED
3,200090,Bed & Breakfast - accomm,Bed / breakfast accommodation,General Fund Housing,4706,Temporary Accommodation,Other Agencies,Third Party Payments,"1,236.90",01-Jun-17,R,REDACTED
3,200090,Bed & Breakfast - accomm,Bed / breakfast accommodation,General Fund Housing,4706,Temporary Accommodation,Other Agencies,Third Party Payments,"1,240.00",01-Jun-17,R,NORBURY PROPERTY SERV LDN LTD
3,200090,Bed & Breakfast - accomm,Bed / breakfast accommodation,General Fund Housing,4706,Temporary Accommodation,Other Agencies,Third Party Payments,"1,380.00",01-Jun-17,R,REDACTED
3,200090,Bed & Breakfast - accomm,Bed / breakfast accommodation,General Fund Housing,4706,Temporary Accommodation,Other Agencies,Third Party Payments,"1,395.00",01-Jun-17,R,REDACTED
3,200090,Bed & Breakfast - accomm,Bed / breakfast accommodation,General Fund Housing,4706,Temporary Accommodation,Other Agencies,Third Party Payments,"1,484.90",01-Jun-17,R,EURO HOTELS (THORNTON HEATH)
3,200090,Bed & Breakfast - accomm,Bed / breakfast accommodation,General Fund Housing,4706,Temporary Accommodation,Other Agencies,Third Party Payments,"1,488.00",01-Jun-17,R,RENT CONNECT LLP
3,200090,Bed & Breakfast - accomm,Bed / breakfast accommodation,General Fund Housing,4706,Temporary Accommodation,Other Agencies,Third Party Payments,"1,546.90",01-Jun-17,R,NORBURY PROPERTY SERV LDN LTD
3,200090,Bed & Breakfast - accomm,Bed / breakfast accommodation,General Fund Housing,4706,Temporary Accommodation,Other Agencies,Third Party Payments,"1,550.00",01-Jun-17,R,NORBURY PROPERTY SERV LDN LTD
3,200090,Bed & Breakfast - accomm,Bed / breakfast accommodation,General Fund Housing,4706,Temporary Accommodation,Other Agencies,Third Party Payments,"1,550.00",01-Jun-17,R,REDACTED
3,200090,Bed & Breakfast - accomm,Bed / breakfast accommodation,General Fund Housing,4706,Temporary Accommodation,Other Agencies,Third Party Payments,"1,550.00",01-Jun-17,R,NORBURY PROPERTY SERV LDN LTD
3,200090,Bed & Breakfast - accomm,Bed / breakfast accommodation,General Fund Housing,4706,Temporary Accommodation,Other Agencies,Third Party Payments,"1,550.00",01-Jun-17,R,EURO HOTELS (HOUNSLOW)
3,200090,Bed & Breakfast - accomm,Bed / breakfast accommodation,General Fund Housing,4706,Temporary Accommodation,Other Agencies,Third Party Payments,"1,627.50",01-Jun-17,R,EURO HOTEL (LEYTON) LTD
3,200090,Bed & Breakfast - accomm,Bed / breakfast accommodation,General Fund Housing,4706,Temporary Accommodation,Other Agencies,Third Party Payments,"1,929.75",01-Jun-17,R,NORBURY PROPERTY SERV LDN LTD
3,200090,Bed & Breakfast - accomm,Bed / breakfast accommodation,General Fund Housing,4706,Temporary Accommodation,Other Agencies,Third Party Payments,"2,015.00",01-Jun-17,R,REDACTED
3,200090,Bed & Breakfast - accomm,Bed / breakfast accommodation,General Fund Housing,4706,Temporary Accommodation,Other Agencies,Third Party Payments,"2,015.00",01-Jun-17,R,REDACTED
3,200090,Bed & Breakfast - accomm,Bed / breakfast accommodation,General Fund Housing,4706,Temporary Accommodation,Other Agencies,Third Party Payments,"2,781.40",01-Jun-17,R,Homes2let
3,200090,Bed & Breakfast - accomm,Bed / breakfast accommodation,General Fund Housing,4706,Temporary Accommodation,Other Agencies,Third Party Payments,"4,486.40",01-Jun-17,R,APEX HOUSING SOLUTIONS
3,200090,Bed & Breakfast - accomm,Bed / breakfast accommodation,General Fund Housing,4706,Temporary Accommodation,Other Agencies,Third Party Payments,"5,224.75",01-Jun-17,R,SK HOUSING LTD
3,200090,Bed & Breakfast - accomm,Bed / breakfast accommodation,General Fund Housing,4706,Temporary Accommodation,Other Agencies,Third Party Payments,"8,980.08",01-Jun-17,R,QUARTZ PROPERTIES
3,200090,Bed & Breakfast - accomm,Bed / breakfast accommodation,General Fund Housing,4706,Temporary Accommodation,Other Agencies,Third Party Payments,"9,338.75",01-Jun-17,R,STENFORD PROPERTY LTD
3,200090,Bed & Breakfast - accomm,Bed / breakfast accommodation,General Fund Housing,4706,Temporary Accommodation,Other Agencies,Third Party Payments,"19,612.15",01-Jun-17,R,CREST MANOR LTD
3,200090,Bed & Breakfast - accomm,Bed / breakfast accommodation,General Fund Housing,4706,Temporary Accommodation,Other Agencies,Third Party Payments,"39,811.50",01-Jun-17,R,Cyberstyle Lettings Limited
3,200090,Bed & Breakfast - accomm,Bed / breakfast accommodation,General Fund Housing,4706,Temporary Accommodation,Other Agencies,Third Party Payments,"106,600.00",01-Jun-17,R,ROOMS & STUDIOS MANAGEMENT
3,200093,Homelessness Prevention,Bed / breakfast accommodation,General Fund Housing,5200,Rent Deposits,Housing Benefits,Transfer Payments,600,01-Jun-17,R,VISION HOUSING
3,200093,Homelessness Prevention,Bed / breakfast accommodation,General Fund Housing,5200,Rent Deposits,Housing Benefits,Transfer Payments,939.85,02-Jun-17,R,REDACTED
3,200093,Homelessness Prevention,Bed / breakfast accommodation,General Fund Housing,5200,Rent Deposits,Housing Benefits,Transfer Payments,"2,000.00",01-Jun-17,R,REDACTED
3,200093,Homelessness Prevention,Bed / breakfast accommodation,General Fund Housing,5200,Rent Deposits,Housing Benefits,Transfer Payments,"2,000.00",15-Jun-17,R,REDACTED
3,200093,Homelessness Prevention,Bed / breakfast accommodation,General Fund Housing,5200,Rent Deposits,Housing Benefits,Transfer Payments,"2,200.00",15-Jun-17,R,REDACTED
3,200093,Homelessness Prevention,Bed / breakfast accommodation,General Fund Housing,5200,Rent Deposits,Housing Benefits,Transfer Payments,"3,500.00",06-Jun-17,R,Bestate Properties
3,200093,Homelessness Prevention,Bed / breakfast accommodation,General Fund Housing,5200,Rent Deposits,Housing Benefits,Transfer Payments,"4,000.00",01-Jun-17,R,REDACTED
3,200093,Homelessness Prevention,Bed / breakfast accommodation,General Fund Housing,5200,Rent Deposits,Housing Benefits,Transfer Payments,"4,500.00",01-Jun-17,R,CIRCLE HOUSING MERTON PRIORY
3,200093,Homelessness Prevention,Bed / breakfast accommodation,General Fund Housing,5201,Rent Sanctuary Scheme,Housing Benefits,Transfer Payments,786.2,12-Jun-17,R,CIRCLE HOUSING MERTON PRIORY
3,200123,Housing Needs & Enablg-central,Hsg Dept Supp Staff & Costs,General Fund Housing,3401,Medical Fees,Services,Supplies and Services,"2,238.78",05-Jun-17,R,REDACTED
3,200123,Housing Needs & Enablg-central,Hsg Dept Supp Staff & Costs,General Fund Housing,3521,IT licences - Applications,Comms and Computing,Supplies and Services,"5,400.00",01-Jun-17,R,CAPITA BUSINESS SERVICES LTD
3,200123,Housing Needs & Enablg-central,Hsg Dept Supp Staff & Costs,General Fund Housing,3804,Subscriptions,Grants and Subscriptions,Supplies and Services,875,01-Jun-17,R,GREATER LONDON AUTHORITY
3,200200,Senior Management - ASC,Commissioning and Service Deli,Commissioning and Service Deli,0075,Agency Staff - Off Contract,Direct EmployeeExpenses-Agency,Employees,"13,216.00",01-Jun-17,R,GATENBY SANDERSON
3,200200,Senior Management - ASC,Commissioning and Service Deli,Commissioning and Service Deli,0170,Health Staff in PCT Pool,Indirect Employee Expenses,Employees,"11,427.37",01-Jun-17,R,NHS MERTON CCG
3,200200,Senior Management - ASC,Commissioning and Service Deli,Commissioning and Service Deli,0170,Health Staff in PCT Pool,Indirect Employee Expenses,Employees,"32,348.20",01-Jun-17,R,NHS MERTON CCG
3,200304,PH - NHS Health check,NHS Health Check Programme,Public Health,3401,Medical Fees,Services,Supplies and Services,525,01-Jun-17,R,TAMWORTH HOUSE MEDICAL CENTRE
3,200304,PH - NHS Health check,NHS Health Check Programme,Public Health,3401,Medical Fees,Services,Supplies and Services,525,01-Jun-17,R,CONCORDIA HEALTH LTD
3,200304,PH - NHS Health check,NHS Health Check Programme,Public Health,3401,Medical Fees,Services,Supplies and Services,550,01-Jun-17,R,THE HURLEY GROUP
3,200304,PH - NHS Health check,NHS Health Check Programme,Public Health,3401,Medical Fees,Services,Supplies and Services,575,01-Jun-17,R,THE VINEYARD HILL ROAD SURGERY
3,200304,PH - NHS Health check,NHS Health Check Programme,Public Health,3401,Medical Fees,Services,Supplies and Services,600,01-Jun-17,R,WIDE WAY MEDICAL CENTRE
3,200304,PH - NHS Health check,NHS Health Check Programme,Public Health,3401,Medical Fees,Services,Supplies and Services,725,01-Jun-17,R,MERTON MEDICAL PRACTICE
3,200304,PH - NHS Health check,NHS Health Check Programme,Public Health,3401,Medical Fees,Services,Supplies and Services,"1,550.00",01-Jun-17,R,CENTRAL MEDICAL CENTRE
3,200304,PH - NHS Health check,NHS Health Check Programme,Public Health,3401,Medical Fees,Services,Supplies and Services,"3,715.83",01-Jun-17,R,MERTON VOLUNTARY SERV COUNCIL
3,200304,PH - NHS Health check,NHS Health Check Programme,Public Health,3401,Medical Fees,Services,Supplies and Services,"3,715.83",01-Jun-17,R,MERTON VOLUNTARY SERV COUNCIL
3,200304,PH - NHS Health check,NHS Health Check Programme,Public Health,3430,Health Tests,Services,Supplies and Services,"16,230.18",01-Jun-17,R,QUALITY MEDICAL SOLUTION
3,200306,PH - Elderly Care Pilot,Other public health service,Public Health,4705,PH Commissioned Services,Other Agencies,Third Party Payments,"20,000.00",01-Jun-17,R,AGE UK MERTON LIMITED
3,200315,PH - Sexual Health,"Advice, prevention and promoti",Public Health,3429,Contraception Costs,Services,Supplies and Services,620,01-Jun-17,R,MORDEN HALL MEDICAL CENTRE
3,200315,PH - Sexual Health,"Advice, prevention and promoti",Public Health,3429,Contraception Costs,Services,Supplies and Services,760,01-Jun-17,R,CENTRAL MEDICAL CENTRE
3,200315,PH - Sexual Health,"Advice, prevention and promoti",Public Health,3429,Contraception Costs,Services,Supplies and Services,780,01-Jun-17,R,TAMWORTH HOUSE MEDICAL CENTRE
3,200315,PH - Sexual Health,"Advice, prevention and promoti",Public Health,3429,Contraception Costs,Services,Supplies and Services,"1,200.00",01-Jun-17,R,CENTRAL MEDICAL CENTRE
3,200315,PH - Sexual Health,"Advice, prevention and promoti",Public Health,3429,Contraception Costs,Services,Supplies and Services,"1,240.00",01-Jun-17,R,PRINCES ROAD SURGERY
3,200315,PH - Sexual Health,"Advice, prevention and promoti",Public Health,3429,Contraception Costs,Services,Supplies and Services,"1,820.00",01-Jun-17,R,LAMBTON ROAD MEDICAL PRACTICE
3,200315,PH - Sexual Health,"Advice, prevention and promoti",Public Health,3429,Contraception Costs,Services,Supplies and Services,"2,180.00",01-Jun-17,R,LAMBTON ROAD MEDICAL PRACTICE
3,200315,PH - Sexual Health,"Advice, prevention and promoti",Public Health,3429,Contraception Costs,Services,Supplies and Services,"2,180.00",01-Jun-17,R,LAMBTON ROAD MEDICAL PRACTICE
3,200315,PH - Sexual Health,"Advice, prevention and promoti",Public Health,3429,Contraception Costs,Services,Supplies and Services,"8,752.14",01-Jun-17,R,NHS MERTON CCG
3,200315,PH - Sexual Health,"Advice, prevention and promoti",Public Health,3429,Contraception Costs,Services,Supplies and Services,"9,447.91",01-Jun-17,R,NHS MERTON CCG
3,200315,PH - Sexual Health,"Advice, prevention and promoti",Public Health,3429,Contraception Costs,Services,Supplies and Services,"9,567.00",01-Jun-17,R,NHS MERTON CCG
3,200315,PH - Sexual Health,"Advice, prevention and promoti",Public Health,3429,Contraception Costs,Services,Supplies and Services,"10,501.68",01-Jun-17,R,NHS MERTON CCG
3,200315,PH - Sexual Health,"Advice, prevention and promoti",Public Health,3429,Contraception Costs,Services,Supplies and Services,"12,842.44",01-Jun-17,R,NHS MERTON CCG
3,200315,PH - Sexual Health,"Advice, prevention and promoti",Public Health,3430,Health Tests,Services,Supplies and Services,"1,242.00",01-Jun-17,R,KINGS COLLEGE NHS FNDAT'N TST
3,200315,PH - Sexual Health,"Advice, prevention and promoti",Public Health,3430,Health Tests,Services,Supplies and Services,"1,256.00",01-Jun-17,R,IMPERIAL COLLEGE H'THCARE NHS
3,200315,PH - Sexual Health,"Advice, prevention and promoti",Public Health,3430,Health Tests,Services,Supplies and Services,"1,265.00",01-Jun-17,R,KINGS COLLEGE NHS FNDAT'N TST
3,200315,PH - Sexual Health,"Advice, prevention and promoti",Public Health,3430,Health Tests,Services,Supplies and Services,"1,655.00",01-Jun-17,R,KINGS COLLEGE NHS FNDAT'N TST
3,200315,PH - Sexual Health,"Advice, prevention and promoti",Public Health,3430,Health Tests,Services,Supplies and Services,"1,919.00",01-Jun-17,R,KINGS COLLEGE NHS FNDAT'N TST
3,200315,PH - Sexual Health,"Advice, prevention and promoti",Public Health,3430,Health Tests,Services,Supplies and Services,"2,068.00",01-Jun-17,R,KINGS COLLEGE NHS FNDAT'N TST
3,200315,PH - Sexual Health,"Advice, prevention and promoti",Public Health,3430,Health Tests,Services,Supplies and Services,"2,262.00",01-Jun-17,R,PREVENTX LIMITED
3,200315,PH - Sexual Health,"Advice, prevention and promoti",Public Health,3430,Health Tests,Services,Supplies and Services,"2,938.00",01-Jun-17,R,IMPERIAL COLLEGE H'THCARE NHS
3,200315,PH - Sexual Health,"Advice, prevention and promoti",Public Health,3430,Health Tests,Services,Supplies and Services,"7,326.26",01-Jun-17,R,GUY'S & ST THOMAS' NHS FND'TN
3,200315,PH - Sexual Health,"Advice, prevention and promoti",Public Health,3430,Health Tests,Services,Supplies and Services,"7,326.26",01-Jun-17,R,GUY'S & ST THOMAS' NHS FND'TN
3,200315,PH - Sexual Health,"Advice, prevention and promoti",Public Health,3430,Health Tests,Services,Supplies and Services,"8,232.00",01-Jun-17,R,IMPERIAL COLLEGE H'THCARE NHS
3,200315,PH - Sexual Health,"Advice, prevention and promoti",Public Health,3430,Health Tests,Services,Supplies and Services,"19,603.91",01-Jun-17,R,CHELSEA & WESTMINSTER HOSPITAL
3,200315,PH - Sexual Health,"Advice, prevention and promoti",Public Health,3430,Health Tests,Services,Supplies and Services,"71,627.50",01-Jun-17,R,ST GEORGES UNI HOSP NHS F'DN T
3,200315,PH - Sexual Health,"Advice, prevention and promoti",Public Health,3430,Health Tests,Services,Supplies and Services,"73,465.98",01-Jun-17,R,ST GEORGES UNI HOSP NHS F'DN T
3,200340,PH - Substance Misuse,Accident prevention,Public Health,4510,Public Health Payments,Adult Social Care,Third Party Payments,"2,250.00",03-Jun-17,R,EQUINOX
3,200340,PH - Substance Misuse,Accident prevention,Public Health,4510,Public Health Payments,Adult Social Care,Third Party Payments,"2,250.00",01-Jun-17,R,EQUINOX
3,200340,PH - Substance Misuse,Accident prevention,Public Health,4510,Public Health Payments,Adult Social Care,Third Party Payments,"2,250.00",01-Jun-17,R,EQUINOX
3,200340,PH - Substance Misuse,Accident prevention,Public Health,4510,Public Health Payments,Adult Social Care,Third Party Payments,"2,250.00",03-Jun-17,R,EQUINOX
3,200340,PH - Substance Misuse,Accident prevention,Public Health,4510,Public Health Payments,Adult Social Care,Third Party Payments,"2,570.00",01-Jun-17,R,CRANSTOUN DRUG SERVICES
3,200340,PH - Substance Misuse,Accident prevention,Public Health,4510,Public Health Payments,Adult Social Care,Third Party Payments,"5,200.00",01-Jun-17,R,CRANSTOUN DRUG SERVICES
3,200340,PH - Substance Misuse,Accident prevention,Public Health,4510,Public Health Payments,Adult Social Care,Third Party Payments,"9,500.00",01-Jun-17,R,Alcohol Health Network
3,200340,PH - Substance Misuse,Accident prevention,Public Health,4510,Public Health Payments,Adult Social Care,Third Party Payments,"106,250.00",02-Jun-17,R,SW LONDON ST GEORGES NHS TRUST
3,200340,PH - Substance Misuse,Accident prevention,Public Health,4510,Public Health Payments,Adult Social Care,Third Party Payments,"106,250.00",01-Jun-17,R,SW LONDON ST GEORGES NHS TRUST
3,200341,PH - Prevention,Health Protection,Public Health,3996,(DO NOT USE) Contract Payments,Conversion,Supplies and Services,"19,117.08",02-Jun-17,R,HOUNSLOW & RICHM'D COMM H'CARE
3,200341,PH - Prevention,Health Protection,Public Health,4510,Public Health Payments,Adult Social Care,Third Party Payments,"1,125.00",01-Jun-17,R,South East CSU NHS
3,200650,AE Commissioning Team,Vocational - Adult Education,Non School Funding,3408,Affiliation Fees,Services,Supplies and Services,"1,819.00",01-Jun-17,R,Assessment Services Ltd
3,200650,AE Commissioning Team,Vocational - Adult Education,Non School Funding,3414,Consultants,Services,Supplies and Services,"1,118.00",01-Jun-17,R,TMS Learning and Skills Support
3,200800,Senior Management - Libraries,Library DoS not split,Cultural and Related Services,3522,IT Support Costs,Comms and Computing,Supplies and Services,"10,711.00",01-Jun-17,R,LONDON GRID FOR LEARNING TRUST
3,200821,Libraries Service-Civic Centre,Library DoS not split,Cultural and Related Services,1009,Security,RepairsAlterations&MtceOfBldgs,Premises Related Expenses,"7,655.80",01-Jun-17,R,SIGHT & SOUND
3,200821,Libraries Service-Civic Centre,Library DoS not split,Cultural and Related Services,1009,Security,RepairsAlterations&MtceOfBldgs,Premises Related Expenses,"13,947.10",01-Jun-17,R,SIGHT & SOUND
3,200821,Libraries Service-Civic Centre,Library DoS not split,Cultural and Related Services,1009,Security,RepairsAlterations&MtceOfBldgs,Premises Related Expenses,"16,218.89",01-Jun-17,R,SIGHT & SOUND
3,200821,Libraries Service-Civic Centre,Library DoS not split,Cultural and Related Services,3306,Postage,Prntng Stnry Gen Off Exp,Supplies and Services,780.29,01-Jun-17,R,AXIELL
3,200821,Libraries Service-Civic Centre,Library DoS not split,Cultural and Related Services,3419,Security Services,Services,Supplies and Services,"7,739.21",01-Jun-17,R,SIGHT & SOUND
3,200823,Mitcham Library,Library DoS not split,Cultural and Related Services,1600,Corporate Cleaning Contract,Cleaning and Domestic Supplies,Premises Related Expenses,"1,014.56",01-Jun-17,R,BIRKIN CLEANING SERVICES LTD
3,200823,Mitcham Library,Library DoS not split,Cultural and Related Services,1600,Corporate Cleaning Contract,Cleaning and Domestic Supplies,Premises Related Expenses,"1,014.56",01-Jun-17,R,BIRKIN CLEANING SERVICES LTD
3,200825,Pollards Hill Library,Library DoS not split,Cultural and Related Services,1600,Corporate Cleaning Contract,Cleaning and Domestic Supplies,Premises Related Expenses,"1,351.30",01-Jun-17,R,BIRKIN CLEANING SERVICES LTD
3,200825,Pollards Hill Library,Library DoS not split,Cultural and Related Services,1600,Corporate Cleaning Contract,Cleaning and Domestic Supplies,Premises Related Expenses,"1,351.30",01-Jun-17,R,BIRKIN CLEANING SERVICES LTD
3,200826,Media Fund,Library DoS not split,Cultural and Related Services,3014,Books,Equip Furniture/Materials,Supplies and Services,659.18,01-Jun-17,R,ASKEWS & HOLTS LIBRARY SRV LTD
3,200826,Media Fund,Library DoS not split,Cultural and Related Services,3014,Books,Equip Furniture/Materials,Supplies and Services,659.79,01-Jun-17,R,ASKEWS & HOLTS LIBRARY SRV LTD
3,200826,Media Fund,Library DoS not split,Cultural and Related Services,3014,Books,Equip Furniture/Materials,Supplies and Services,661.45,01-Jun-17,R,ASKEWS & HOLTS LIBRARY SRV LTD
3,200826,Media Fund,Library DoS not split,Cultural and Related Services,3014,Books,Equip Furniture/Materials,Supplies and Services,676.24,01-Jun-17,R,ASKEWS & HOLTS LIBRARY SRV LTD
3,200826,Media Fund,Library DoS not split,Cultural and Related Services,3014,Books,Equip Furniture/Materials,Supplies and Services,682.38,01-Jun-17,R,ASKEWS & HOLTS LIBRARY SRV LTD
3,200826,Media Fund,Library DoS not split,Cultural and Related Services,3014,Books,Equip Furniture/Materials,Supplies and Services,692.37,01-Jun-17,R,ASKEWS & HOLTS LIBRARY SRV LTD
3,200828,Morden Library,Library DoS not split,Cultural and Related Services,1600,Corporate Cleaning Contract,Cleaning and Domestic Supplies,Premises Related Expenses,"1,068.65",01-Jun-17,R,BIRKIN CLEANING SERVICES LTD
3,200828,Morden Library,Library DoS not split,Cultural and Related Services,1600,Corporate Cleaning Contract,Cleaning and Domestic Supplies,Premises Related Expenses,"1,068.65",01-Jun-17,R,BIRKIN CLEANING SERVICES LTD
3,200829,Raynes Park Library,Library DoS not split,Cultural and Related Services,1039,FM - Responsive Services,RepairsAlterations&MtceOfBldgs,Premises Related Expenses,"1,163.63",19-Jun-17,R,Stealth Fire and Security Limited
3,200829,Raynes Park Library,Library DoS not split,Cultural and Related Services,1600,Corporate Cleaning Contract,Cleaning and Domestic Supplies,Premises Related Expenses,789.92,01-Jun-17,R,BIRKIN CLEANING SERVICES LTD
3,200829,Raynes Park Library,Library DoS not split,Cultural and Related Services,1600,Corporate Cleaning Contract,Cleaning and Domestic Supplies,Premises Related Expenses,789.92,01-Jun-17,R,BIRKIN CLEANING SERVICES LTD
3,200830,Wimbledon Library,Library DoS not split,Cultural and Related Services,1600,Corporate Cleaning Contract,Cleaning and Domestic Supplies,Premises Related Expenses,673.35,01-Jun-17,R,BIRKIN CLEANING SERVICES LTD
3,200830,Wimbledon Library,Library DoS not split,Cultural and Related Services,1600,Corporate Cleaning Contract,Cleaning and Domestic Supplies,Premises Related Expenses,673.35,01-Jun-17,R,BIRKIN CLEANING SERVICES LTD
3,200830,Wimbledon Library,Library DoS not split,Cultural and Related Services,1600,Corporate Cleaning Contract,Cleaning and Domestic Supplies,Premises Related Expenses,"1,833.07",01-Jun-17,R,BIRKIN CLEANING SERVICES LTD
3,200830,Wimbledon Library,Library DoS not split,Cultural and Related Services,1600,Corporate Cleaning Contract,Cleaning and Domestic Supplies,Premises Related Expenses,"1,833.07",01-Jun-17,R,BIRKIN CLEANING SERVICES LTD
3,221001,Older People Placements - East,OP 65&Over NursingCarePlacemts,Physical/ Sensory Support,4350,Residential Homes External,Adult Social Care,Third Party Payments,500,30-Jun-17,R,SOUTHPARK RESIDENTIAL HOME
3,221001,Older People Placements - East,OP 65&Over NursingCarePlacemts,Physical/ Sensory Support,4350,Residential Homes External,Adult Social Care,Third Party Payments,500,30-Jun-17,R,SOUTHPARK RESIDENTIAL HOME
3,221001,Older People Placements - East,OP 65&Over NursingCarePlacemts,Physical/ Sensory Support,4350,Residential Homes External,Adult Social Care,Third Party Payments,500,30-Jun-17,R,SOUTHPARK RESIDENTIAL HOME
3,221001,Older People Placements - East,OP 65&Over NursingCarePlacemts,Physical/ Sensory Support,4350,Residential Homes External,Adult Social Care,Third Party Payments,500,30-Jun-17,R,SOUTHPARK RESIDENTIAL HOME
3,221001,Older People Placements - East,OP 65&Over NursingCarePlacemts,Physical/ Sensory Support,4350,Residential Homes External,Adult Social Care,Third Party Payments,500,19-Jun-17,R,BEECHWOOD HOUSE
3,221001,Older People Placements - East,OP 65&Over NursingCarePlacemts,Physical/ Sensory Support,4350,Residential Homes External,Adult Social Care,Third Party Payments,500,19-Jun-17,R,BEECHWOOD HOUSE
3,221001,Older People Placements - East,OP 65&Over NursingCarePlacemts,Physical/ Sensory Support,4350,Residential Homes External,Adult Social Care,Third Party Payments,500,19-Jun-17,R,BEECHWOOD HOUSE
3,221001,Older People Placements - East,OP 65&Over NursingCarePlacemts,Physical/ Sensory Support,4350,Residential Homes External,Adult Social Care,Third Party Payments,500,19-Jun-17,R,BEECHWOOD HOUSE
3,221001,Older People Placements - East,OP 65&Over NursingCarePlacemts,Physical/ Sensory Support,4350,Residential Homes External,Adult Social Care,Third Party Payments,500,19-Jun-17,R,BEECHWOOD HOUSE
3,221001,Older People Placements - East,OP 65&Over NursingCarePlacemts,Physical/ Sensory Support,4350,Residential Homes External,Adult Social Care,Third Party Payments,500,19-Jun-17,R,BEECHWOOD HOUSE
3,221001,Older People Placements - East,OP 65&Over NursingCarePlacemts,Physical/ Sensory Support,4350,Residential Homes External,Adult Social Care,Third Party Payments,500,19-Jun-17,R,BEECHWOOD HOUSE
3,221001,Older People Placements - East,OP 65&Over NursingCarePlacemts,Physical/ Sensory Support,4350,Residential Homes External,Adult Social Care,Third Party Payments,500,19-Jun-17,R,BEECHWOOD HOUSE
3,221001,Older People Placements - East,OP 65&Over NursingCarePlacemts,Physical/ Sensory Support,4350,Residential Homes External,Adult Social Care,Third Party Payments,500,19-Jun-17,R,BEECHWOOD HOUSE
3,221001,Older People Placements - East,OP 65&Over NursingCarePlacemts,Physical/ Sensory Support,4350,Residential Homes External,Adult Social Care,Third Party Payments,500,19-Jun-17,R,BEECHWOOD HOUSE
3,221001,Older People Placements - East,OP 65&Over NursingCarePlacemts,Physical/ Sensory Support,4350,Residential Homes External,Adult Social Care,Third Party Payments,500,19-Jun-17,R,BEECHWOOD HOUSE
3,221001,Older People Placements - East,OP 65&Over NursingCarePlacemts,Physical/ Sensory Support,4350,Residential Homes External,Adult Social Care,Third Party Payments,500,19-Jun-17,R,BEECHWOOD HOUSE
3,221001,Older People Placements - East,OP 65&Over NursingCarePlacemts,Physical/ Sensory Support,4350,Residential Homes External,Adult Social Care,Third Party Payments,500,19-Jun-17,R,BEECHWOOD HOUSE
3,221001,Older People Placements - East,OP 65&Over NursingCarePlacemts,Physical/ Sensory Support,4350,Residential Homes External,Adult Social Care,Third Party Payments,500,19-Jun-17,R,BEECHWOOD HOUSE
3,221001,Older People Placements - East,OP 65&Over NursingCarePlacemts,Physical/ Sensory Support,4350,Residential Homes External,Adult Social Care,Third Party Payments,500,19-Jun-17,R,BEECHWOOD HOUSE
3,221001,Older People Placements - East,OP 65&Over NursingCarePlacemts,Physical/ Sensory Support,4350,Residential Homes External,Adult Social Care,Third Party Payments,500,19-Jun-17,R,BEECHWOOD HOUSE
3,221001,Older People Placements - East,OP 65&Over NursingCarePlacemts,Physical/ Sensory Support,4350,Residential Homes External,Adult Social Care,Third Party Payments,500,19-Jun-17,R,BEECHWOOD HOUSE
3,221001,Older People Placements - East,OP 65&Over NursingCarePlacemts,Physical/ Sensory Support,4350,Residential Homes External,Adult Social Care,Third Party Payments,500,19-Jun-17,R,BEECHWOOD HOUSE
3,221001,Older People Placements - East,OP 65&Over NursingCarePlacemts,Physical/ Sensory Support,4350,Residential Homes External,Adult Social Care,Third Party Payments,500,19-Jun-17,R,BEECHWOOD HOUSE
3,221001,Older People Placements - East,OP 65&Over NursingCarePlacemts,Physical/ Sensory Support,4350,Residential Homes External,Adult Social Care,Third Party Payments,500,19-Jun-17,R,BEECHWOOD HOUSE
3,221001,Older People Placements - East,OP 65&Over NursingCarePlacemts,Physical/ Sensory Support,4350,Residential Homes External,Adult Social Care,Third Party Payments,500,19-Jun-17,R,BEECHWOOD HOUSE
3,221001,Older People Placements - East,OP 65&Over NursingCarePlacemts,Physical/ Sensory Support,4350,Residential Homes External,Adult Social Care,Third Party Payments,500,19-Jun-17,R,BEECHWOOD HOUSE
3,221001,Older People Placements - East,OP 65&Over NursingCarePlacemts,Physical/ Sensory Support,4350,Residential Homes External,Adult Social Care,Third Party Payments,500,19-Jun-17,R,BEECHWOOD HOUSE
3,221001,Older People Placements - East,OP 65&Over NursingCarePlacemts,Physical/ Sensory Support,4350,Residential Homes External,Adult Social Care,Third Party Payments,500,19-Jun-17,R,BEECHWOOD HOUSE
3,221001,Older People Placements - East,OP 65&Over NursingCarePlacemts,Physical/ Sensory Support,4350,Residential Homes External,Adult Social Care,Third Party Payments,500,19-Jun-17,R,BEECHWOOD HOUSE
3,221001,Older People Placements - East,OP 65&Over NursingCarePlacemts,Physical/ Sensory Support,4350,Residential Homes External,Adult Social Care,Third Party Payments,500,19-Jun-17,R,BEECHWOOD HOUSE
3,221001,Older People Placements - East,OP 65&Over NursingCarePlacemts,Physical/ Sensory Support,4350,Residential Homes External,Adult Social Care,Third Party Payments,500,19-Jun-17,R,BEECHWOOD HOUSE
3,221001,Older People Placements - East,OP 65&Over NursingCarePlacemts,Physical/ Sensory Support,4350,Residential Homes External,Adult Social Care,Third Party Payments,500,19-Jun-17,R,BEECHWOOD HOUSE
3,221001,Older People Placements - East,OP 65&Over NursingCarePlacemts,Physical/ Sensory Support,4350,Residential Homes External,Adult Social Care,Third Party Payments,500,19-Jun-17,R,BEECHWOOD HOUSE
3,221001,Older People Placements - East,OP 65&Over NursingCarePlacemts,Physical/ Sensory Support,4350,Residential Homes External,Adult Social Care,Third Party Payments,500,19-Jun-17,R,BEECHWOOD HOUSE
3,221001,Older People Placements - East,OP 65&Over NursingCarePlacemts,Physical/ Sensory Support,4350,Residential Homes External,Adult Social Care,Third Party Payments,500,19-Jun-17,R,BEECHWOOD HOUSE
3,221001,Older People Placements - East,OP 65&Over NursingCarePlacemts,Physical/ Sensory Support,4350,Residential Homes External,Adult Social Care,Third Party Payments,500,19-Jun-17,R,BEECHWOOD HOUSE
3,221001,Older People Placements - East,OP 65&Over NursingCarePlacemts,Physical/ Sensory Support,4350,Residential Homes External,Adult Social Care,Third Party Payments,500,19-Jun-17,R,BEECHWOOD HOUSE
3,221001,Older People Placements - East,OP 65&Over NursingCarePlacemts,Physical/ Sensory Support,4350,Residential Homes External,Adult Social Care,Third Party Payments,500,19-Jun-17,R,BEECHWOOD HOUSE
3,221001,Older People Placements - East,OP 65&Over NursingCarePlacemts,Physical/ Sensory Support,4350,Residential Homes External,Adult Social Care,Third Party Payments,500,19-Jun-17,R,BEECHWOOD HOUSE
3,221001,Older People Placements - East,OP 65&Over NursingCarePlacemts,Physical/ Sensory Support,4350,Residential Homes External,Adult Social Care,Third Party Payments,500,19-Jun-17,R,BEECHWOOD HOUSE
3,221001,Older People Placements - East,OP 65&Over NursingCarePlacemts,Physical/ Sensory Support,4350,Residential Homes External,Adult Social Care,Third Party Payments,500,19-Jun-17,R,BEECHWOOD HOUSE
3,221001,Older People Placements - East,OP 65&Over NursingCarePlacemts,Physical/ Sensory Support,4350,Residential Homes External,Adult Social Care,Third Party Payments,500,19-Jun-17,R,BEECHWOOD HOUSE
3,221001,Older People Placements - East,OP 65&Over NursingCarePlacemts,Physical/ Sensory Support,4350,Residential Homes External,Adult Social Care,Third Party Payments,500,19-Jun-17,R,BEECHWOOD HOUSE
3,221001,Older People Placements - East,OP 65&Over NursingCarePlacemts,Physical/ Sensory Support,4350,Residential Homes External,Adult Social Care,Third Party Payments,500,19-Jun-17,R,BEECHWOOD HOUSE
3,221001,Older People Placements - East,OP 65&Over NursingCarePlacemts,Physical/ Sensory Support,4350,Residential Homes External,Adult Social Care,Third Party Payments,500,19-Jun-17,R,BEECHWOOD HOUSE
3,221001,Older People Placements - East,OP 65&Over NursingCarePlacemts,Physical/ Sensory Support,4350,Residential Homes External,Adult Social Care,Third Party Payments,500,19-Jun-17,R,BEECHWOOD HOUSE
3,221001,Older People Placements - East,OP 65&Over NursingCarePlacemts,Physical/ Sensory Support,4350,Residential Homes External,Adult Social Care,Third Party Payments,500,19-Jun-17,R,BEECHWOOD HOUSE
3,221001,Older People Placements - East,OP 65&Over NursingCarePlacemts,Physical/ Sensory Support,4350,Residential Homes External,Adult Social Care,Third Party Payments,500,19-Jun-17,R,BEECHWOOD HOUSE
3,221001,Older People Placements - East,OP 65&Over NursingCarePlacemts,Physical/ Sensory Support,4350,Residential Homes External,Adult Social Care,Third Party Payments,500,19-Jun-17,R,BEECHWOOD HOUSE
3,221001,Older People Placements - East,OP 65&Over NursingCarePlacemts,Physical/ Sensory Support,4350,Residential Homes External,Adult Social Care,Third Party Payments,500,19-Jun-17,R,BEECHWOOD HOUSE
3,221001,Older People Placements - East,OP 65&Over NursingCarePlacemts,Physical/ Sensory Support,4350,Residential Homes External,Adult Social Care,Third Party Payments,500,19-Jun-17,R,BEECHWOOD HOUSE
3,221001,Older People Placements - East,OP 65&Over NursingCarePlacemts,Physical/ Sensory Support,4350,Residential Homes External,Adult Social Care,Third Party Payments,500,19-Jun-17,R,BEECHWOOD HOUSE
3,221001,Older People Placements - East,OP 65&Over NursingCarePlacemts,Physical/ Sensory Support,4350,Residential Homes External,Adult Social Care,Third Party Payments,500,19-Jun-17,R,BEECHWOOD HOUSE
3,221001,Older People Placements - East,OP 65&Over NursingCarePlacemts,Physical/ Sensory Support,4350,Residential Homes External,Adult Social Care,Third Party Payments,500,19-Jun-17,R,BEECHWOOD HOUSE
3,221001,Older People Placements - East,OP 65&Over NursingCarePlacemts,Physical/ Sensory Support,4350,Residential Homes External,Adult Social Care,Third Party Payments,500,19-Jun-17,R,BEECHWOOD HOUSE
3,221001,Older People Placements - East,OP 65&Over NursingCarePlacemts,Physical/ Sensory Support,4350,Residential Homes External,Adult Social Care,Third Party Payments,500,19-Jun-17,R,BEECHWOOD HOUSE
3,221001,Older People Placements - East,OP 65&Over NursingCarePlacemts,Physical/ Sensory Support,4350,Residential Homes External,Adult Social Care,Third Party Payments,500,19-Jun-17,R,BEECHWOOD HOUSE
3,221001,Older People Placements - East,OP 65&Over NursingCarePlacemts,Physical/ Sensory Support,4350,Residential Homes External,Adult Social Care,Third Party Payments,500,19-Jun-17,R,BEECHWOOD HOUSE
3,221001,Older People Placements - East,OP 65&Over NursingCarePlacemts,Physical/ Sensory Support,4350,Residential Homes External,Adult Social Care,Third Party Payments,500,19-Jun-17,R,BEECHWOOD HOUSE
3,221001,Older People Placements - East,OP 65&Over NursingCarePlacemts,Physical/ Sensory Support,4350,Residential Homes External,Adult Social Care,Third Party Payments,500,19-Jun-17,R,BEECHWOOD HOUSE
3,221001,Older People Placements - East,OP 65&Over NursingCarePlacemts,Physical/ Sensory Support,4350,Residential Homes External,Adult Social Care,Third Party Payments,500,19-Jun-17,R,BEECHWOOD HOUSE
3,221001,Older People Placements - East,OP 65&Over NursingCarePlacemts,Physical/ Sensory Support,4350,Residential Homes External,Adult Social Care,Third Party Payments,500,19-Jun-17,R,BEECHWOOD HOUSE
3,221001,Older People Placements - East,OP 65&Over NursingCarePlacemts,Physical/ Sensory Support,4350,Residential Homes External,Adult Social Care,Third Party Payments,500,19-Jun-17,R,BEECHWOOD HOUSE
3,221001,Older People Placements - East,OP 65&Over NursingCarePlacemts,Physical/ Sensory Support,4350,Residential Homes External,Adult Social Care,Third Party Payments,500,07-Jun-17,R,ALBURY HOUSE CARE HOME
3,221001,Older People Placements - East,OP 65&Over NursingCarePlacemts,Physical/ Sensory Support,4350,Residential Homes External,Adult Social Care,Third Party Payments,500,07-Jun-17,R,ALBURY HOUSE CARE HOME
3,221001,Older People Placements - East,OP 65&Over NursingCarePlacemts,Physical/ Sensory Support,4350,Residential Homes External,Adult Social Care,Third Party Payments,500,07-Jun-17,R,ALBURY HOUSE CARE HOME
3,221001,Older People Placements - East,OP 65&Over NursingCarePlacemts,Physical/ Sensory Support,4350,Residential Homes External,Adult Social Care,Third Party Payments,500,07-Jun-17,R,ALBURY HOUSE CARE HOME
3,221001,Older People Placements - East,OP 65&Over NursingCarePlacemts,Physical/ Sensory Support,4350,Residential Homes External,Adult Social Care,Third Party Payments,500,07-Jun-17,R,BEECHWOOD HOUSE
3,221001,Older People Placements - East,OP 65&Over NursingCarePlacemts,Physical/ Sensory Support,4350,Residential Homes External,Adult Social Care,Third Party Payments,500,07-Jun-17,R,BEECHWOOD HOUSE
3,221001,Older People Placements - East,OP 65&Over NursingCarePlacemts,Physical/ Sensory Support,4350,Residential Homes External,Adult Social Care,Third Party Payments,500,07-Jun-17,R,BEECHWOOD HOUSE
3,221001,Older People Placements - East,OP 65&Over NursingCarePlacemts,Physical/ Sensory Support,4350,Residential Homes External,Adult Social Care,Third Party Payments,500,07-Jun-17,R,BEECHWOOD HOUSE
3,221001,Older People Placements - East,OP 65&Over NursingCarePlacemts,Physical/ Sensory Support,4350,Residential Homes External,Adult Social Care,Third Party Payments,500,07-Jun-17,R,ST MARY'S LODGE
3,221001,Older People Placements - East,OP 65&Over NursingCarePlacemts,Physical/ Sensory Support,4350,Residential Homes External,Adult Social Care,Third Party Payments,500,07-Jun-17,R,ST MARY'S LODGE
3,221001,Older People Placements - East,OP 65&Over NursingCarePlacemts,Physical/ Sensory Support,4350,Residential Homes External,Adult Social Care,Third Party Payments,500,07-Jun-17,R,ST MARY'S LODGE
3,221001,Older People Placements - East,OP 65&Over NursingCarePlacemts,Physical/ Sensory Support,4350,Residential Homes External,Adult Social Care,Third Party Payments,500,07-Jun-17,R,ST MARY'S LODGE
3,221001,Older People Placements - East,OP 65&Over NursingCarePlacemts,Physical/ Sensory Support,4350,Residential Homes External,Adult Social Care,Third Party Payments,500,07-Jun-17,R,ST MARY'S LODGE
3,221001,Older People Placements - East,OP 65&Over NursingCarePlacemts,Physical/ Sensory Support,4350,Residential Homes External,Adult Social Care,Third Party Payments,500,07-Jun-17,R,ST MARY'S LODGE
3,221001,Older People Placements - East,OP 65&Over NursingCarePlacemts,Physical/ Sensory Support,4350,Residential Homes External,Adult Social Care,Third Party Payments,500,07-Jun-17,R,ST MARY'S LODGE
3,221001,Older People Placements - East,OP 65&Over NursingCarePlacemts,Physical/ Sensory Support,4350,Residential Homes External,Adult Social Care,Third Party Payments,500,07-Jun-17,R,ST MARY'S LODGE
3,221001,Older People Placements - East,OP 65&Over NursingCarePlacemts,Physical/ Sensory Support,4350,Residential Homes External,Adult Social Care,Third Party Payments,500,07-Jun-17,R,ST MARY'S LODGE
3,221001,Older People Placements - East,OP 65&Over NursingCarePlacemts,Physical/ Sensory Support,4350,Residential Homes External,Adult Social Care,Third Party Payments,500,07-Jun-17,R,ST MARY'S LODGE
3,221001,Older People Placements - East,OP 65&Over NursingCarePlacemts,Physical/ Sensory Support,4350,Residential Homes External,Adult Social Care,Third Party Payments,500,07-Jun-17,R,ST MARY'S LODGE
3,221001,Older People Placements - East,OP 65&Over NursingCarePlacemts,Physical/ Sensory Support,4350,Residential Homes External,Adult Social Care,Third Party Payments,500,07-Jun-17,R,ST MARY'S LODGE
3,221001,Older People Placements - East,OP 65&Over NursingCarePlacemts,Physical/ Sensory Support,4350,Residential Homes External,Adult Social Care,Third Party Payments,500,07-Jun-17,R,THE FRANCES TAYLOR FOUNDATION
3,221001,Older People Placements - East,OP 65&Over NursingCarePlacemts,Physical/ Sensory Support,4350,Residential Homes External,Adult Social Care,Third Party Payments,500,07-Jun-17,R,THE FRANCES TAYLOR FOUNDATION
3,221001,Older People Placements - East,OP 65&Over NursingCarePlacemts,Physical/ Sensory Support,4350,Residential Homes External,Adult Social Care,Third Party Payments,500,07-Jun-17,R,THE FRANCES TAYLOR FOUNDATION
3,221001,Older People Placements - East,OP 65&Over NursingCarePlacemts,Physical/ Sensory Support,4350,Residential Homes External,Adult Social Care,Third Party Payments,500,07-Jun-17,R,THE FRANCES TAYLOR FOUNDATION
3,221001,Older People Placements - East,OP 65&Over NursingCarePlacemts,Physical/ Sensory Support,4350,Residential Homes External,Adult Social Care,Third Party Payments,500,07-Jun-17,R,ST MARY'S LODGE
3,221001,Older People Placements - East,OP 65&Over NursingCarePlacemts,Physical/ Sensory Support,4350,Residential Homes External,Adult Social Care,Third Party Payments,500,07-Jun-17,R,ST MARY'S LODGE
3,221001,Older People Placements - East,OP 65&Over NursingCarePlacemts,Physical/ Sensory Support,4350,Residential Homes External,Adult Social Care,Third Party Payments,500,07-Jun-17,R,ST MARY'S LODGE
3,221001,Older People Placements - East,OP 65&Over NursingCarePlacemts,Physical/ Sensory Support,4350,Residential Homes External,Adult Social Care,Third Party Payments,500,07-Jun-17,R,ST MARY'S LODGE
3,221001,Older People Placements - East,OP 65&Over NursingCarePlacemts,Physical/ Sensory Support,4350,Residential Homes External,Adult Social Care,Third Party Payments,500,07-Jun-17,R,ST MARY'S LODGE
3,221001,Older People Placements - East,OP 65&Over NursingCarePlacemts,Physical/ Sensory Support,4350,Residential Homes External,Adult Social Care,Third Party Payments,500,07-Jun-17,R,CLOYDA LTD
3,221001,Older People Placements - East,OP 65&Over NursingCarePlacemts,Physical/ Sensory Support,4350,Residential Homes External,Adult Social Care,Third Party Payments,500,07-Jun-17,R,CLOYDA LTD
3,221001,Older People Placements - East,OP 65&Over NursingCarePlacemts,Physical/ Sensory Support,4350,Residential Homes External,Adult Social Care,Third Party Payments,500,07-Jun-17,R,CLOYDA LTD
3,221001,Older People Placements - East,OP 65&Over NursingCarePlacemts,Physical/ Sensory Support,4350,Residential Homes External,Adult Social Care,Third Party Payments,500,07-Jun-17,R,CLOYDA LTD
3,221001,Older People Placements - East,OP 65&Over NursingCarePlacemts,Physical/ Sensory Support,4350,Residential Homes External,Adult Social Care,Third Party Payments,500,07-Jun-17,R,ST MARY'S LODGE
3,221001,Older People Placements - East,OP 65&Over NursingCarePlacemts,Physical/ Sensory Support,4350,Residential Homes External,Adult Social Care,Third Party Payments,500,07-Jun-17,R,ST MARY'S LODGE
3,221001,Older People Placements - East,OP 65&Over NursingCarePlacemts,Physical/ Sensory Support,4350,Residential Homes External,Adult Social Care,Third Party Payments,500,07-Jun-17,R,ST MARY'S LODGE
3,221001,Older People Placements - East,OP 65&Over NursingCarePlacemts,Physical/ Sensory Support,4350,Residential Homes External,Adult Social Care,Third Party Payments,518.1,07-Jun-17,R,ROYAL BANK OF SCOTLAND
3,221001,Older People Placements - East,OP 65&Over NursingCarePlacemts,Physical/ Sensory Support,4350,Residential Homes External,Adult Social Care,Third Party Payments,518.1,07-Jun-17,R,ROYAL BANK OF SCOTLAND
3,221001,Older People Placements - East,OP 65&Over NursingCarePlacemts,Physical/ Sensory Support,4350,Residential Homes External,Adult Social Care,Third Party Payments,518.1,07-Jun-17,R,ROYAL BANK OF SCOTLAND
3,221001,Older People Placements - East,OP 65&Over NursingCarePlacemts,Physical/ Sensory Support,4350,Residential Homes External,Adult Social Care,Third Party Payments,518.1,07-Jun-17,R,ROYAL BANK OF SCOTLAND
3,221001,Older People Placements - East,OP 65&Over NursingCarePlacemts,Physical/ Sensory Support,4350,Residential Homes External,Adult Social Care,Third Party Payments,520,30-Jun-17,R,SOUTHPARK RESIDENTIAL HOME
3,221001,Older People Placements - East,OP 65&Over NursingCarePlacemts,Physical/ Sensory Support,4350,Residential Homes External,Adult Social Care,Third Party Payments,520,30-Jun-17,R,SOUTHPARK RESIDENTIAL HOME
3,221001,Older People Placements - East,OP 65&Over NursingCarePlacemts,Physical/ Sensory Support,4350,Residential Homes External,Adult Social Care,Third Party Payments,520,30-Jun-17,R,SOUTHPARK RESIDENTIAL HOME
3,221001,Older People Placements - East,OP 65&Over NursingCarePlacemts,Physical/ Sensory Support,4350,Residential Homes External,Adult Social Care,Third Party Payments,520,30-Jun-17,R,SOUTHPARK RESIDENTIAL HOME
3,221001,Older People Placements - East,OP 65&Over NursingCarePlacemts,Physical/ Sensory Support,4350,Residential Homes External,Adult Social Care,Third Party Payments,520,30-Jun-17,R,SOUTHPARK RESIDENTIAL HOME
3,221001,Older People Placements - East,OP 65&Over NursingCarePlacemts,Physical/ Sensory Support,4350,Residential Homes External,Adult Social Care,Third Party Payments,520,30-Jun-17,R,SOUTHPARK RESIDENTIAL HOME
3,221001,Older People Placements - East,OP 65&Over NursingCarePlacemts,Physical/ Sensory Support,4350,Residential Homes External,Adult Social Care,Third Party Payments,520,30-Jun-17,R,SOUTHPARK RESIDENTIAL HOME
3,221001,Older People Placements - East,OP 65&Over NursingCarePlacemts,Physical/ Sensory Support,4350,Residential Homes External,Adult Social Care,Third Party Payments,520,30-Jun-17,R,SOUTHPARK RESIDENTIAL HOME
3,221001,Older People Placements - East,OP 65&Over NursingCarePlacemts,Physical/ Sensory Support,4350,Residential Homes External,Adult Social Care,Third Party Payments,520,30-Jun-17,R,SOUTHPARK RESIDENTIAL HOME
3,221001,Older People Placements - East,OP 65&Over NursingCarePlacemts,Physical/ Sensory Support,4350,Residential Homes External,Adult Social Care,Third Party Payments,520,30-Jun-17,R,SOUTHPARK RESIDENTIAL HOME
3,221001,Older People Placements - East,OP 65&Over NursingCarePlacemts,Physical/ Sensory Support,4350,Residential Homes External,Adult Social Care,Third Party Payments,520,30-Jun-17,R,SOUTHPARK RESIDENTIAL HOME
3,221001,Older People Placements - East,OP 65&Over NursingCarePlacemts,Physical/ Sensory Support,4350,Residential Homes External,Adult Social Care,Third Party Payments,520,30-Jun-17,R,SOUTHPARK RESIDENTIAL HOME
3,221001,Older People Placements - East,OP 65&Over NursingCarePlacemts,Physical/ Sensory Support,4350,Residential Homes External,Adult Social Care,Third Party Payments,520,30-Jun-17,R,SOUTHPARK RESIDENTIAL HOME
3,221001,Older People Placements - East,OP 65&Over NursingCarePlacemts,Physical/ Sensory Support,4350,Residential Homes External,Adult Social Care,Third Party Payments,520,30-Jun-17,R,SOUTHPARK RESIDENTIAL HOME
3,221001,Older People Placements - East,OP 65&Over NursingCarePlacemts,Physical/ Sensory Support,4350,Residential Homes External,Adult Social Care,Third Party Payments,520,30-Jun-17,R,SOUTHPARK RESIDENTIAL HOME
3,221001,Older People Placements - East,OP 65&Over NursingCarePlacemts,Physical/ Sensory Support,4350,Residential Homes External,Adult Social Care,Third Party Payments,520,30-Jun-17,R,SOUTHPARK RESIDENTIAL HOME
3,221001,Older People Placements - East,OP 65&Over NursingCarePlacemts,Physical/ Sensory Support,4350,Residential Homes External,Adult Social Care,Third Party Payments,520,30-Jun-17,R,SOUTHPARK RESIDENTIAL HOME
3,221001,Older People Placements - East,OP 65&Over NursingCarePlacemts,Physical/ Sensory Support,4350,Residential Homes External,Adult Social Care,Third Party Payments,520,30-Jun-17,R,SOUTHPARK RESIDENTIAL HOME
3,221001,Older People Placements - East,OP 65&Over NursingCarePlacemts,Physical/ Sensory Support,4350,Residential Homes External,Adult Social Care,Third Party Payments,520,30-Jun-17,R,SOUTHPARK RESIDENTIAL HOME
3,221001,Older People Placements - East,OP 65&Over NursingCarePlacemts,Physical/ Sensory Support,4350,Residential Homes External,Adult Social Care,Third Party Payments,520,30-Jun-17,R,SOUTHPARK RESIDENTIAL HOME
3,221001,Older People Placements - East,OP 65&Over NursingCarePlacemts,Physical/ Sensory Support,4350,Residential Homes External,Adult Social Care,Third Party Payments,520,30-Jun-17,R,SOUTHPARK RESIDENTIAL HOME
3,221001,Older People Placements - East,OP 65&Over NursingCarePlacemts,Physical/ Sensory Support,4350,Residential Homes External,Adult Social Care,Third Party Payments,520,30-Jun-17,R,SOUTHPARK RESIDENTIAL HOME
3,221001,Older People Placements - East,OP 65&Over NursingCarePlacemts,Physical/ Sensory Support,4350,Residential Homes External,Adult Social Care,Third Party Payments,520,30-Jun-17,R,SOUTHPARK RESIDENTIAL HOME
3,221001,Older People Placements - East,OP 65&Over NursingCarePlacemts,Physical/ Sensory Support,4350,Residential Homes External,Adult Social Care,Third Party Payments,520,30-Jun-17,R,SOUTHPARK RESIDENTIAL HOME
3,221001,Older People Placements - East,OP 65&Over NursingCarePlacemts,Physical/ Sensory Support,4350,Residential Homes External,Adult Social Care,Third Party Payments,520,30-Jun-17,R,SOUTHPARK RESIDENTIAL HOME
3,221001,Older People Placements - East,OP 65&Over NursingCarePlacemts,Physical/ Sensory Support,4350,Residential Homes External,Adult Social Care,Third Party Payments,520,30-Jun-17,R,SOUTHPARK RESIDENTIAL HOME
3,221001,Older People Placements - East,OP 65&Over NursingCarePlacemts,Physical/ Sensory Support,4350,Residential Homes External,Adult Social Care,Third Party Payments,520,30-Jun-17,R,SOUTHPARK RESIDENTIAL HOME
3,221001,Older People Placements - East,OP 65&Over NursingCarePlacemts,Physical/ Sensory Support,4350,Residential Homes External,Adult Social Care,Third Party Payments,520,07-Jun-17,R,SOUTHPARK RESIDENTIAL HOME
3,221001,Older People Placements - East,OP 65&Over NursingCarePlacemts,Physical/ Sensory Support,4350,Residential Homes External,Adult Social Care,Third Party Payments,520,07-Jun-17,R,SOUTHPARK RESIDENTIAL HOME
3,221001,Older People Placements - East,OP 65&Over NursingCarePlacemts,Physical/ Sensory Support,4350,Residential Homes External,Adult Social Care,Third Party Payments,520,07-Jun-17,R,SOUTHPARK RESIDENTIAL HOME
3,221001,Older People Placements - East,OP 65&Over NursingCarePlacemts,Physical/ Sensory Support,4350,Residential Homes External,Adult Social Care,Third Party Payments,520,07-Jun-17,R,SOUTHPARK RESIDENTIAL HOME
3,221001,Older People Placements - East,OP 65&Over NursingCarePlacemts,Physical/ Sensory Support,4350,Residential Homes External,Adult Social Care,Third Party Payments,520,07-Jun-17,R,SOUTHPARK RESIDENTIAL HOME
3,221001,Older People Placements - East,OP 65&Over NursingCarePlacemts,Physical/ Sensory Support,4350,Residential Homes External,Adult Social Care,Third Party Payments,520,07-Jun-17,R,SOUTHPARK RESIDENTIAL HOME
3,221001,Older People Placements - East,OP 65&Over NursingCarePlacemts,Physical/ Sensory Support,4350,Residential Homes External,Adult Social Care,Third Party Payments,520,07-Jun-17,R,SOUTHPARK RESIDENTIAL HOME
3,221001,Older People Placements - East,OP 65&Over NursingCarePlacemts,Physical/ Sensory Support,4350,Residential Homes External,Adult Social Care,Third Party Payments,520,07-Jun-17,R,SOUTHPARK RESIDENTIAL HOME
3,221001,Older People Placements - East,OP 65&Over NursingCarePlacemts,Physical/ Sensory Support,4350,Residential Homes External,Adult Social Care,Third Party Payments,520,07-Jun-17,R,SOUTHPARK RESIDENTIAL HOME
3,221001,Older People Placements - East,OP 65&Over NursingCarePlacemts,Physical/ Sensory Support,4350,Residential Homes External,Adult Social Care,Third Party Payments,520,07-Jun-17,R,SOUTHPARK RESIDENTIAL HOME
3,221001,Older People Placements - East,OP 65&Over NursingCarePlacemts,Physical/ Sensory Support,4350,Residential Homes External,Adult Social Care,Third Party Payments,520,07-Jun-17,R,SOUTHPARK RESIDENTIAL HOME
3,221001,Older People Placements - East,OP 65&Over NursingCarePlacemts,Physical/ Sensory Support,4350,Residential Homes External,Adult Social Care,Third Party Payments,520,07-Jun-17,R,SOUTHPARK RESIDENTIAL HOME
3,221001,Older People Placements - East,OP 65&Over NursingCarePlacemts,Physical/ Sensory Support,4350,Residential Homes External,Adult Social Care,Third Party Payments,524.22,07-Jun-17,R,BHAKTI SHYAMA CARE CENTRE
3,221001,Older People Placements - East,OP 65&Over NursingCarePlacemts,Physical/ Sensory Support,4350,Residential Homes External,Adult Social Care,Third Party Payments,524.22,07-Jun-17,R,BHAKTI SHYAMA CARE CENTRE
3,221001,Older People Placements - East,OP 65&Over NursingCarePlacemts,Physical/ Sensory Support,4350,Residential Homes External,Adult Social Care,Third Party Payments,524.22,07-Jun-17,R,BHAKTI SHYAMA CARE CENTRE
3,221001,Older People Placements - East,OP 65&Over NursingCarePlacemts,Physical/ Sensory Support,4350,Residential Homes External,Adult Social Care,Third Party Payments,524.22,07-Jun-17,R,BHAKTI SHYAMA CARE CENTRE
3,221001,Older People Placements - East,OP 65&Over NursingCarePlacemts,Physical/ Sensory Support,4350,Residential Homes External,Adult Social Care,Third Party Payments,525,07-Jun-17,R,ST MARY'S LODGE
3,221001,Older People Placements - East,OP 65&Over NursingCarePlacemts,Physical/ Sensory Support,4350,Residential Homes External,Adult Social Care,Third Party Payments,525,07-Jun-17,R,ST MARY'S LODGE
3,221001,Older People Placements - East,OP 65&Over NursingCarePlacemts,Physical/ Sensory Support,4350,Residential Homes External,Adult Social Care,Third Party Payments,525,07-Jun-17,R,ST MARY'S LODGE
3,221001,Older People Placements - East,OP 65&Over NursingCarePlacemts,Physical/ Sensory Support,4350,Residential Homes External,Adult Social Care,Third Party Payments,525,07-Jun-17,R,ST MARY'S LODGE
3,221001,Older People Placements - East,OP 65&Over NursingCarePlacemts,Physical/ Sensory Support,4350,Residential Homes External,Adult Social Care,Third Party Payments,540,19-Jun-17,R,BEECHWOOD HOUSE
3,221001,Older People Placements - East,OP 65&Over NursingCarePlacemts,Physical/ Sensory Support,4350,Residential Homes External,Adult Social Care,Third Party Payments,540,19-Jun-17,R,BEECHWOOD HOUSE
3,221001,Older People Placements - East,OP 65&Over NursingCarePlacemts,Physical/ Sensory Support,4350,Residential Homes External,Adult Social Care,Third Party Payments,540,19-Jun-17,R,BEECHWOOD HOUSE
3,221001,Older People Placements - East,OP 65&Over NursingCarePlacemts,Physical/ Sensory Support,4350,Residential Homes External,Adult Social Care,Third Party Payments,540,19-Jun-17,R,BEECHWOOD HOUSE
3,221001,Older People Placements - East,OP 65&Over NursingCarePlacemts,Physical/ Sensory Support,4350,Residential Homes External,Adult Social Care,Third Party Payments,540,19-Jun-17,R,BEECHWOOD HOUSE
3,221001,Older People Placements - East,OP 65&Over NursingCarePlacemts,Physical/ Sensory Support,4350,Residential Homes External,Adult Social Care,Third Party Payments,540,19-Jun-17,R,BEECHWOOD HOUSE
3,221001,Older People Placements - East,OP 65&Over NursingCarePlacemts,Physical/ Sensory Support,4350,Residential Homes External,Adult Social Care,Third Party Payments,540,19-Jun-17,R,BEECHWOOD HOUSE
3,221001,Older People Placements - East,OP 65&Over NursingCarePlacemts,Physical/ Sensory Support,4350,Residential Homes External,Adult Social Care,Third Party Payments,540,19-Jun-17,R,BEECHWOOD HOUSE
3,221001,Older People Placements - East,OP 65&Over NursingCarePlacemts,Physical/ Sensory Support,4350,Residential Homes External,Adult Social Care,Third Party Payments,540,19-Jun-17,R,BEECHWOOD HOUSE
3,221001,Older People Placements - East,OP 65&Over NursingCarePlacemts,Physical/ Sensory Support,4350,Residential Homes External,Adult Social Care,Third Party Payments,540,19-Jun-17,R,BEECHWOOD HOUSE
3,221001,Older People Placements - East,OP 65&Over NursingCarePlacemts,Physical/ Sensory Support,4350,Residential Homes External,Adult Social Care,Third Party Payments,540,19-Jun-17,R,BEECHWOOD HOUSE
3,221001,Older People Placements - East,OP 65&Over NursingCarePlacemts,Physical/ Sensory Support,4350,Residential Homes External,Adult Social Care,Third Party Payments,540,19-Jun-17,R,BEECHWOOD HOUSE
3,221001,Older People Placements - East,OP 65&Over NursingCarePlacemts,Physical/ Sensory Support,4350,Residential Homes External,Adult Social Care,Third Party Payments,540,19-Jun-17,R,BEECHWOOD HOUSE
3,221001,Older People Placements - East,OP 65&Over NursingCarePlacemts,Physical/ Sensory Support,4350,Residential Homes External,Adult Social Care,Third Party Payments,540,19-Jun-17,R,BEECHWOOD HOUSE
3,221001,Older People Placements - East,OP 65&Over NursingCarePlacemts,Physical/ Sensory Support,4350,Residential Homes External,Adult Social Care,Third Party Payments,540,19-Jun-17,R,BEECHWOOD HOUSE
3,221001,Older People Placements - East,OP 65&Over NursingCarePlacemts,Physical/ Sensory Support,4350,Residential Homes External,Adult Social Care,Third Party Payments,540,19-Jun-17,R,BEECHWOOD HOUSE
3,221001,Older People Placements - East,OP 65&Over NursingCarePlacemts,Physical/ Sensory Support,4350,Residential Homes External,Adult Social Care,Third Party Payments,540,19-Jun-17,R,BEECHWOOD HOUSE
3,221001,Older People Placements - East,OP 65&Over NursingCarePlacemts,Physical/ Sensory Support,4350,Residential Homes External,Adult Social Care,Third Party Payments,540,19-Jun-17,R,BEECHWOOD HOUSE
3,221001,Older People Placements - East,OP 65&Over NursingCarePlacemts,Physical/ Sensory Support,4350,Residential Homes External,Adult Social Care,Third Party Payments,540,19-Jun-17,R,BEECHWOOD HOUSE
3,221001,Older People Placements - East,OP 65&Over NursingCarePlacemts,Physical/ Sensory Support,4350,Residential Homes External,Adult Social Care,Third Party Payments,540,19-Jun-17,R,BEECHWOOD HOUSE
3,221001,Older People Placements - East,OP 65&Over NursingCarePlacemts,Physical/ Sensory Support,4350,Residential Homes External,Adult Social Care,Third Party Payments,540,19-Jun-17,R,BEECHWOOD HOUSE
3,221001,Older People Placements - East,OP 65&Over NursingCarePlacemts,Physical/ Sensory Support,4350,Residential Homes External,Adult Social Care,Third Party Payments,540,19-Jun-17,R,BEECHWOOD HOUSE
3,221001,Older People Placements - East,OP 65&Over NursingCarePlacemts,Physical/ Sensory Support,4350,Residential Homes External,Adult Social Care,Third Party Payments,540,19-Jun-17,R,BEECHWOOD HOUSE
3,221001,Older People Placements - East,OP 65&Over NursingCarePlacemts,Physical/ Sensory Support,4350,Residential Homes External,Adult Social Care,Third Party Payments,540,19-Jun-17,R,BEECHWOOD HOUSE
3,221001,Older People Placements - East,OP 65&Over NursingCarePlacemts,Physical/ Sensory Support,4350,Residential Homes External,Adult Social Care,Third Party Payments,540,19-Jun-17,R,BEECHWOOD HOUSE
3,221001,Older People Placements - East,OP 65&Over NursingCarePlacemts,Physical/ Sensory Support,4350,Residential Homes External,Adult Social Care,Third Party Payments,540,19-Jun-17,R,BEECHWOOD HOUSE
3,221001,Older People Placements - East,OP 65&Over NursingCarePlacemts,Physical/ Sensory Support,4350,Residential Homes External,Adult Social Care,Third Party Payments,540,19-Jun-17,R,BEECHWOOD HOUSE
3,221001,Older People Placements - East,OP 65&Over NursingCarePlacemts,Physical/ Sensory Support,4350,Residential Homes External,Adult Social Care,Third Party Payments,540,19-Jun-17,R,BEECHWOOD HOUSE
3,221001,Older People Placements - East,OP 65&Over NursingCarePlacemts,Physical/ Sensory Support,4350,Residential Homes External,Adult Social Care,Third Party Payments,540,19-Jun-17,R,BEECHWOOD HOUSE
3,221001,Older People Placements - East,OP 65&Over NursingCarePlacemts,Physical/ Sensory Support,4350,Residential Homes External,Adult Social Care,Third Party Payments,540,19-Jun-17,R,BEECHWOOD HOUSE
3,221001,Older People Placements - East,OP 65&Over NursingCarePlacemts,Physical/ Sensory Support,4350,Residential Homes External,Adult Social Care,Third Party Payments,540,19-Jun-17,R,BEECHWOOD HOUSE
3,221001,Older People Placements - East,OP 65&Over NursingCarePlacemts,Physical/ Sensory Support,4350,Residential Homes External,Adult Social Care,Third Party Payments,540,19-Jun-17,R,BEECHWOOD HOUSE
3,221001,Older People Placements - East,OP 65&Over NursingCarePlacemts,Physical/ Sensory Support,4350,Residential Homes External,Adult Social Care,Third Party Payments,540,19-Jun-17,R,BEECHWOOD HOUSE
3,221001,Older People Placements - East,OP 65&Over NursingCarePlacemts,Physical/ Sensory Support,4350,Residential Homes External,Adult Social Care,Third Party Payments,540,19-Jun-17,R,BEECHWOOD HOUSE
3,221001,Older People Placements - East,OP 65&Over NursingCarePlacemts,Physical/ Sensory Support,4350,Residential Homes External,Adult Social Care,Third Party Payments,540,19-Jun-17,R,BEECHWOOD HOUSE
3,221001,Older People Placements - East,OP 65&Over NursingCarePlacemts,Physical/ Sensory Support,4350,Residential Homes External,Adult Social Care,Third Party Payments,540,19-Jun-17,R,BEECHWOOD HOUSE
3,221001,Older People Placements - East,OP 65&Over NursingCarePlacemts,Physical/ Sensory Support,4350,Residential Homes External,Adult Social Care,Third Party Payments,540,19-Jun-17,R,BEECHWOOD HOUSE
3,221001,Older People Placements - East,OP 65&Over NursingCarePlacemts,Physical/ Sensory Support,4350,Residential Homes External,Adult Social Care,Third Party Payments,540,19-Jun-17,R,BEECHWOOD HOUSE
3,221001,Older People Placements - East,OP 65&Over NursingCarePlacemts,Physical/ Sensory Support,4350,Residential Homes External,Adult Social Care,Third Party Payments,540,19-Jun-17,R,BEECHWOOD HOUSE
3,221001,Older People Placements - East,OP 65&Over NursingCarePlacemts,Physical/ Sensory Support,4350,Residential Homes External,Adult Social Care,Third Party Payments,540,19-Jun-17,R,BEECHWOOD HOUSE
3,221001,Older People Placements - East,OP 65&Over NursingCarePlacemts,Physical/ Sensory Support,4350,Residential Homes External,Adult Social Care,Third Party Payments,540,19-Jun-17,R,BEECHWOOD HOUSE
3,221001,Older People Placements - East,OP 65&Over NursingCarePlacemts,Physical/ Sensory Support,4350,Residential Homes External,Adult Social Care,Third Party Payments,540,19-Jun-17,R,BEECHWOOD HOUSE
3,221001,Older People Placements - East,OP 65&Over NursingCarePlacemts,Physical/ Sensory Support,4350,Residential Homes External,Adult Social Care,Third Party Payments,540,19-Jun-17,R,BEECHWOOD HOUSE
3,221001,Older People Placements - East,OP 65&Over NursingCarePlacemts,Physical/ Sensory Support,4350,Residential Homes External,Adult Social Care,Third Party Payments,540,19-Jun-17,R,BEECHWOOD HOUSE
3,221001,Older People Placements - East,OP 65&Over NursingCarePlacemts,Physical/ Sensory Support,4350,Residential Homes External,Adult Social Care,Third Party Payments,540,19-Jun-17,R,BEECHWOOD HOUSE
3,221001,Older People Placements - East,OP 65&Over NursingCarePlacemts,Physical/ Sensory Support,4350,Residential Homes External,Adult Social Care,Third Party Payments,540,19-Jun-17,R,BEECHWOOD HOUSE
3,221001,Older People Placements - East,OP 65&Over NursingCarePlacemts,Physical/ Sensory Support,4350,Residential Homes External,Adult Social Care,Third Party Payments,540,19-Jun-17,R,BEECHWOOD HOUSE
3,221001,Older People Placements - East,OP 65&Over NursingCarePlacemts,Physical/ Sensory Support,4350,Residential Homes External,Adult Social Care,Third Party Payments,540,19-Jun-17,R,BEECHWOOD HOUSE
3,221001,Older People Placements - East,OP 65&Over NursingCarePlacemts,Physical/ Sensory Support,4350,Residential Homes External,Adult Social Care,Third Party Payments,540,19-Jun-17,R,BEECHWOOD HOUSE
3,221001,Older People Placements - East,OP 65&Over NursingCarePlacemts,Physical/ Sensory Support,4350,Residential Homes External,Adult Social Care,Third Party Payments,540,19-Jun-17,R,BEECHWOOD HOUSE
3,221001,Older People Placements - East,OP 65&Over NursingCarePlacemts,Physical/ Sensory Support,4350,Residential Homes External,Adult Social Care,Third Party Payments,540,19-Jun-17,R,BEECHWOOD HOUSE
3,221001,Older People Placements - East,OP 65&Over NursingCarePlacemts,Physical/ Sensory Support,4350,Residential Homes External,Adult Social Care,Third Party Payments,540,19-Jun-17,R,BEECHWOOD HOUSE
3,221001,Older People Placements - East,OP 65&Over NursingCarePlacemts,Physical/ Sensory Support,4350,Residential Homes External,Adult Social Care,Third Party Payments,540,19-Jun-17,R,BEECHWOOD HOUSE
3,221001,Older People Placements - East,OP 65&Over NursingCarePlacemts,Physical/ Sensory Support,4350,Residential Homes External,Adult Social Care,Third Party Payments,540,19-Jun-17,R,BEECHWOOD HOUSE
3,221001,Older People Placements - East,OP 65&Over NursingCarePlacemts,Physical/ Sensory Support,4350,Residential Homes External,Adult Social Care,Third Party Payments,540,19-Jun-17,R,BEECHWOOD HOUSE
3,221001,Older People Placements - East,OP 65&Over NursingCarePlacemts,Physical/ Sensory Support,4350,Residential Homes External,Adult Social Care,Third Party Payments,540,19-Jun-17,R,BEECHWOOD HOUSE
3,221001,Older People Placements - East,OP 65&Over NursingCarePlacemts,Physical/ Sensory Support,4350,Residential Homes External,Adult Social Care,Third Party Payments,540,19-Jun-17,R,BEECHWOOD HOUSE
3,221001,Older People Placements - East,OP 65&Over NursingCarePlacemts,Physical/ Sensory Support,4350,Residential Homes External,Adult Social Care,Third Party Payments,540,19-Jun-17,R,BEECHWOOD HOUSE
3,221001,Older People Placements - East,OP 65&Over NursingCarePlacemts,Physical/ Sensory Support,4350,Residential Homes External,Adult Social Care,Third Party Payments,540,19-Jun-17,R,BEECHWOOD HOUSE
3,221001,Older People Placements - East,OP 65&Over NursingCarePlacemts,Physical/ Sensory Support,4350,Residential Homes External,Adult Social Care,Third Party Payments,540,07-Jun-17,R,RUTLAND HOUSE CARE HOME
3,221001,Older People Placements - East,OP 65&Over NursingCarePlacemts,Physical/ Sensory Support,4350,Residential Homes External,Adult Social Care,Third Party Payments,540,07-Jun-17,R,RUTLAND HOUSE CARE HOME
3,221001,Older People Placements - East,OP 65&Over NursingCarePlacemts,Physical/ Sensory Support,4350,Residential Homes External,Adult Social Care,Third Party Payments,540,07-Jun-17,R,RUTLAND HOUSE CARE HOME
3,221001,Older People Placements - East,OP 65&Over NursingCarePlacemts,Physical/ Sensory Support,4350,Residential Homes External,Adult Social Care,Third Party Payments,540,07-Jun-17,R,RUTLAND HOUSE CARE HOME
3,221001,Older People Placements - East,OP 65&Over NursingCarePlacemts,Physical/ Sensory Support,4350,Residential Homes External,Adult Social Care,Third Party Payments,540,07-Jun-17,R,RUTLAND HOUSE CARE HOME
3,221001,Older People Placements - East,OP 65&Over NursingCarePlacemts,Physical/ Sensory Support,4350,Residential Homes External,Adult Social Care,Third Party Payments,540,07-Jun-17,R,RUTLAND HOUSE CARE HOME
3,221001,Older People Placements - East,OP 65&Over NursingCarePlacemts,Physical/ Sensory Support,4350,Residential Homes External,Adult Social Care,Third Party Payments,540,07-Jun-17,R,RUTLAND HOUSE CARE HOME
3,221001,Older People Placements - East,OP 65&Over NursingCarePlacemts,Physical/ Sensory Support,4350,Residential Homes External,Adult Social Care,Third Party Payments,540,07-Jun-17,R,RUTLAND HOUSE CARE HOME
3,221001,Older People Placements - East,OP 65&Over NursingCarePlacemts,Physical/ Sensory Support,4350,Residential Homes External,Adult Social Care,Third Party Payments,540,07-Jun-17,R,RUTLAND HOUSE CARE HOME
3,221001,Older People Placements - East,OP 65&Over NursingCarePlacemts,Physical/ Sensory Support,4350,Residential Homes External,Adult Social Care,Third Party Payments,540,07-Jun-17,R,RUTLAND HOUSE CARE HOME
3,221001,Older People Placements - East,OP 65&Over NursingCarePlacemts,Physical/ Sensory Support,4350,Residential Homes External,Adult Social Care,Third Party Payments,540,07-Jun-17,R,RUTLAND HOUSE CARE HOME
3,221001,Older People Placements - East,OP 65&Over NursingCarePlacemts,Physical/ Sensory Support,4350,Residential Homes External,Adult Social Care,Third Party Payments,540,07-Jun-17,R,RUTLAND HOUSE CARE HOME
3,221001,Older People Placements - East,OP 65&Over NursingCarePlacemts,Physical/ Sensory Support,4350,Residential Homes External,Adult Social Care,Third Party Payments,540,07-Jun-17,R,RUTLAND HOUSE CARE HOME
3,221001,Older People Placements - East,OP 65&Over NursingCarePlacemts,Physical/ Sensory Support,4350,Residential Homes External,Adult Social Care,Third Party Payments,540,07-Jun-17,R,RUTLAND HOUSE CARE HOME
3,221001,Older People Placements - East,OP 65&Over NursingCarePlacemts,Physical/ Sensory Support,4350,Residential Homes External,Adult Social Care,Third Party Payments,540,07-Jun-17,R,RUTLAND HOUSE CARE HOME
3,221001,Older People Placements - East,OP 65&Over NursingCarePlacemts,Physical/ Sensory Support,4350,Residential Homes External,Adult Social Care,Third Party Payments,540,07-Jun-17,R,RUTLAND HOUSE CARE HOME
3,221001,Older People Placements - East,OP 65&Over NursingCarePlacemts,Physical/ Sensory Support,4350,Residential Homes External,Adult Social Care,Third Party Payments,540,07-Jun-17,R,RUTLAND HOUSE CARE HOME
3,221001,Older People Placements - East,OP 65&Over NursingCarePlacemts,Physical/ Sensory Support,4350,Residential Homes External,Adult Social Care,Third Party Payments,540,07-Jun-17,R,RUTLAND HOUSE CARE HOME
3,221001,Older People Placements - East,OP 65&Over NursingCarePlacemts,Physical/ Sensory Support,4350,Residential Homes External,Adult Social Care,Third Party Payments,540,07-Jun-17,R,RUTLAND HOUSE CARE HOME
3,221001,Older People Placements - East,OP 65&Over NursingCarePlacemts,Physical/ Sensory Support,4350,Residential Homes External,Adult Social Care,Third Party Payments,540,07-Jun-17,R,BEECHWOOD HOUSE
3,221001,Older People Placements - East,OP 65&Over NursingCarePlacemts,Physical/ Sensory Support,4350,Residential Homes External,Adult Social Care,Third Party Payments,540,07-Jun-17,R,RUTLAND HOUSE CARE HOME
3,221001,Older People Placements - East,OP 65&Over NursingCarePlacemts,Physical/ Sensory Support,4350,Residential Homes External,Adult Social Care,Third Party Payments,540,07-Jun-17,R,ST ANTONYS CARE HOME
3,221001,Older People Placements - East,OP 65&Over NursingCarePlacemts,Physical/ Sensory Support,4350,Residential Homes External,Adult Social Care,Third Party Payments,540,07-Jun-17,R,ST ANTONYS CARE HOME
3,221001,Older People Placements - East,OP 65&Over NursingCarePlacemts,Physical/ Sensory Support,4350,Residential Homes External,Adult Social Care,Third Party Payments,540,07-Jun-17,R,ST ANTONYS CARE HOME
3,221001,Older People Placements - East,OP 65&Over NursingCarePlacemts,Physical/ Sensory Support,4350,Residential Homes External,Adult Social Care,Third Party Payments,540,07-Jun-17,R,ST ANTONYS CARE HOME
3,221001,Older People Placements - East,OP 65&Over NursingCarePlacemts,Physical/ Sensory Support,4350,Residential Homes External,Adult Social Care,Third Party Payments,540,07-Jun-17,R,THE WILLOWS CARE HOME
3,221001,Older People Placements - East,OP 65&Over NursingCarePlacemts,Physical/ Sensory Support,4350,Residential Homes External,Adult Social Care,Third Party Payments,540,07-Jun-17,R,THE WILLOWS CARE HOME
3,221001,Older People Placements - East,OP 65&Over NursingCarePlacemts,Physical/ Sensory Support,4350,Residential Homes External,Adult Social Care,Third Party Payments,540,07-Jun-17,R,THE WILLOWS CARE HOME
3,221001,Older People Placements - East,OP 65&Over NursingCarePlacemts,Physical/ Sensory Support,4350,Residential Homes External,Adult Social Care,Third Party Payments,540,07-Jun-17,R,THE WILLOWS CARE HOME
3,221001,Older People Placements - East,OP 65&Over NursingCarePlacemts,Physical/ Sensory Support,4350,Residential Homes External,Adult Social Care,Third Party Payments,540,07-Jun-17,R,BEECHWOOD HOUSE
3,221001,Older People Placements - East,OP 65&Over NursingCarePlacemts,Physical/ Sensory Support,4350,Residential Homes External,Adult Social Care,Third Party Payments,540,07-Jun-17,R,BEECHWOOD HOUSE
3,221001,Older People Placements - East,OP 65&Over NursingCarePlacemts,Physical/ Sensory Support,4350,Residential Homes External,Adult Social Care,Third Party Payments,540,07-Jun-17,R,BEECHWOOD HOUSE
3,221001,Older People Placements - East,OP 65&Over NursingCarePlacemts,Physical/ Sensory Support,4350,Residential Homes External,Adult Social Care,Third Party Payments,540,07-Jun-17,R,ROYAL BANK OF SCOTLAND
3,221001,Older People Placements - East,OP 65&Over NursingCarePlacemts,Physical/ Sensory Support,4350,Residential Homes External,Adult Social Care,Third Party Payments,540,07-Jun-17,R,ROYAL BANK OF SCOTLAND
3,221001,Older People Placements - East,OP 65&Over NursingCarePlacemts,Physical/ Sensory Support,4350,Residential Homes External,Adult Social Care,Third Party Payments,540,07-Jun-17,R,ROYAL BANK OF SCOTLAND
3,221001,Older People Placements - East,OP 65&Over NursingCarePlacemts,Physical/ Sensory Support,4350,Residential Homes External,Adult Social Care,Third Party Payments,540,07-Jun-17,R,ROYAL BANK OF SCOTLAND
3,221001,Older People Placements - East,OP 65&Over NursingCarePlacemts,Physical/ Sensory Support,4350,Residential Homes External,Adult Social Care,Third Party Payments,543.71,07-Jun-17,R,HILLVIEW
3,221001,Older People Placements - East,OP 65&Over NursingCarePlacemts,Physical/ Sensory Support,4350,Residential Homes External,Adult Social Care,Third Party Payments,543.71,07-Jun-17,R,HILLVIEW
3,221001,Older People Placements - East,OP 65&Over NursingCarePlacemts,Physical/ Sensory Support,4350,Residential Homes External,Adult Social Care,Third Party Payments,543.71,07-Jun-17,R,HILLVIEW
3,221001,Older People Placements - East,OP 65&Over NursingCarePlacemts,Physical/ Sensory Support,4350,Residential Homes External,Adult Social Care,Third Party Payments,543.71,07-Jun-17,R,HILLVIEW
3,221001,Older People Placements - East,OP 65&Over NursingCarePlacemts,Physical/ Sensory Support,4350,Residential Homes External,Adult Social Care,Third Party Payments,545.19,07-Jun-17,R,ABBEY HOUSE RESIDENTIAL HOMES
3,221001,Older People Placements - East,OP 65&Over NursingCarePlacemts,Physical/ Sensory Support,4350,Residential Homes External,Adult Social Care,Third Party Payments,545.19,07-Jun-17,R,ABBEY HOUSE RESIDENTIAL HOMES
3,221001,Older People Placements - East,OP 65&Over NursingCarePlacemts,Physical/ Sensory Support,4350,Residential Homes External,Adult Social Care,Third Party Payments,545.19,07-Jun-17,R,ABBEY HOUSE RESIDENTIAL HOMES
3,221001,Older People Placements - East,OP 65&Over NursingCarePlacemts,Physical/ Sensory Support,4350,Residential Homes External,Adult Social Care,Third Party Payments,545.19,07-Jun-17,R,ABBEY HOUSE RESIDENTIAL HOMES
3,221001,Older People Placements - East,OP 65&Over NursingCarePlacemts,Physical/ Sensory Support,4350,Residential Homes External,Adult Social Care,Third Party Payments,550,07-Jun-17,R,KEW HOUSE
3,221001,Older People Placements - East,OP 65&Over NursingCarePlacemts,Physical/ Sensory Support,4350,Residential Homes External,Adult Social Care,Third Party Payments,550,07-Jun-17,R,KEW HOUSE
3,221001,Older People Placements - East,OP 65&Over NursingCarePlacemts,Physical/ Sensory Support,4350,Residential Homes External,Adult Social Care,Third Party Payments,550,07-Jun-17,R,KEW HOUSE
3,221001,Older People Placements - East,OP 65&Over NursingCarePlacemts,Physical/ Sensory Support,4350,Residential Homes External,Adult Social Care,Third Party Payments,550,07-Jun-17,R,KEW HOUSE
3,221001,Older People Placements - East,OP 65&Over NursingCarePlacemts,Physical/ Sensory Support,4350,Residential Homes External,Adult Social Care,Third Party Payments,550,07-Jun-17,R,GRANGE COTTAGE LIMITED
3,221001,Older People Placements - East,OP 65&Over NursingCarePlacemts,Physical/ Sensory Support,4350,Residential Homes External,Adult Social Care,Third Party Payments,550,07-Jun-17,R,GRANGE COTTAGE LIMITED
3,221001,Older People Placements - East,OP 65&Over NursingCarePlacemts,Physical/ Sensory Support,4350,Residential Homes External,Adult Social Care,Third Party Payments,550,07-Jun-17,R,GRANGE COTTAGE LIMITED
3,221001,Older People Placements - East,OP 65&Over NursingCarePlacemts,Physical/ Sensory Support,4350,Residential Homes External,Adult Social Care,Third Party Payments,550,07-Jun-17,R,GRANGE COTTAGE LIMITED
3,221001,Older People Placements - East,OP 65&Over NursingCarePlacemts,Physical/ Sensory Support,4350,Residential Homes External,Adult Social Care,Third Party Payments,572,07-Jun-17,R,ABBEY HOUSE RESIDENTIAL HOMES
3,221001,Older People Placements - East,OP 65&Over NursingCarePlacemts,Physical/ Sensory Support,4350,Residential Homes External,Adult Social Care,Third Party Payments,572,07-Jun-17,R,ABBEY HOUSE RESIDENTIAL HOMES
3,221001,Older People Placements - East,OP 65&Over NursingCarePlacemts,Physical/ Sensory Support,4350,Residential Homes External,Adult Social Care,Third Party Payments,572,07-Jun-17,R,ABBEY HOUSE RESIDENTIAL HOMES
3,221001,Older People Placements - East,OP 65&Over NursingCarePlacemts,Physical/ Sensory Support,4350,Residential Homes External,Adult Social Care,Third Party Payments,572,07-Jun-17,R,ABBEY HOUSE RESIDENTIAL HOMES
3,221001,Older People Placements - East,OP 65&Over NursingCarePlacemts,Physical/ Sensory Support,4350,Residential Homes External,Adult Social Care,Third Party Payments,572,07-Jun-17,R,ABBEY HOUSE RESIDENTIAL HOMES
3,221001,Older People Placements - East,OP 65&Over NursingCarePlacemts,Physical/ Sensory Support,4350,Residential Homes External,Adult Social Care,Third Party Payments,572,07-Jun-17,R,ABBEY HOUSE RESIDENTIAL HOMES
3,221001,Older People Placements - East,OP 65&Over NursingCarePlacemts,Physical/ Sensory Support,4350,Residential Homes External,Adult Social Care,Third Party Payments,572,07-Jun-17,R,ABBEY HOUSE RESIDENTIAL HOMES
3,221001,Older People Placements - East,OP 65&Over NursingCarePlacemts,Physical/ Sensory Support,4350,Residential Homes External,Adult Social Care,Third Party Payments,572,07-Jun-17,R,ABBEY HOUSE RESIDENTIAL HOMES
3,221001,Older People Placements - East,OP 65&Over NursingCarePlacemts,Physical/ Sensory Support,4350,Residential Homes External,Adult Social Care,Third Party Payments,575,20-Jun-17,R,GABLE LODGE
3,221001,Older People Placements - East,OP 65&Over NursingCarePlacemts,Physical/ Sensory Support,4350,Residential Homes External,Adult Social Care,Third Party Payments,575,20-Jun-17,R,GABLE LODGE
3,221001,Older People Placements - East,OP 65&Over NursingCarePlacemts,Physical/ Sensory Support,4350,Residential Homes External,Adult Social Care,Third Party Payments,575,20-Jun-17,R,GABLE LODGE
3,221001,Older People Placements - East,OP 65&Over NursingCarePlacemts,Physical/ Sensory Support,4350,Residential Homes External,Adult Social Care,Third Party Payments,575,20-Jun-17,R,GABLE LODGE
3,221001,Older People Placements - East,OP 65&Over NursingCarePlacemts,Physical/ Sensory Support,4350,Residential Homes External,Adult Social Care,Third Party Payments,575,20-Jun-17,R,GABLE LODGE
3,221001,Older People Placements - East,OP 65&Over NursingCarePlacemts,Physical/ Sensory Support,4350,Residential Homes External,Adult Social Care,Third Party Payments,575,20-Jun-17,R,GABLE LODGE
3,221001,Older People Placements - East,OP 65&Over NursingCarePlacemts,Physical/ Sensory Support,4350,Residential Homes External,Adult Social Care,Third Party Payments,575,20-Jun-17,R,GABLE LODGE
3,221001,Older People Placements - East,OP 65&Over NursingCarePlacemts,Physical/ Sensory Support,4350,Residential Homes External,Adult Social Care,Third Party Payments,575,20-Jun-17,R,GABLE LODGE
3,221001,Older People Placements - East,OP 65&Over NursingCarePlacemts,Physical/ Sensory Support,4350,Residential Homes External,Adult Social Care,Third Party Payments,575,20-Jun-17,R,GABLE LODGE
3,221001,Older People Placements - East,OP 65&Over NursingCarePlacemts,Physical/ Sensory Support,4350,Residential Homes External,Adult Social Care,Third Party Payments,575,20-Jun-17,R,GABLE LODGE
3,221001,Older People Placements - East,OP 65&Over NursingCarePlacemts,Physical/ Sensory Support,4350,Residential Homes External,Adult Social Care,Third Party Payments,575,20-Jun-17,R,GABLE LODGE
3,221001,Older People Placements - East,OP 65&Over NursingCarePlacemts,Physical/ Sensory Support,4350,Residential Homes External,Adult Social Care,Third Party Payments,575,20-Jun-17,R,GABLE LODGE
3,221001,Older People Placements - East,OP 65&Over NursingCarePlacemts,Physical/ Sensory Support,4350,Residential Homes External,Adult Social Care,Third Party Payments,575,20-Jun-17,R,GABLE LODGE
3,221001,Older People Placements - East,OP 65&Over NursingCarePlacemts,Physical/ Sensory Support,4350,Residential Homes External,Adult Social Care,Third Party Payments,575,20-Jun-17,R,GABLE LODGE
3,221001,Older People Placements - East,OP 65&Over NursingCarePlacemts,Physical/ Sensory Support,4350,Residential Homes External,Adult Social Care,Third Party Payments,575,20-Jun-17,R,GABLE LODGE
3,221001,Older People Placements - East,OP 65&Over NursingCarePlacemts,Physical/ Sensory Support,4350,Residential Homes External,Adult Social Care,Third Party Payments,575,20-Jun-17,R,GABLE LODGE
3,221001,Older People Placements - East,OP 65&Over NursingCarePlacemts,Physical/ Sensory Support,4350,Residential Homes External,Adult Social Care,Third Party Payments,575,20-Jun-17,R,GABLE LODGE
3,221001,Older People Placements - East,OP 65&Over NursingCarePlacemts,Physical/ Sensory Support,4350,Residential Homes External,Adult Social Care,Third Party Payments,575,20-Jun-17,R,GABLE LODGE
3,221001,Older People Placements - East,OP 65&Over NursingCarePlacemts,Physical/ Sensory Support,4350,Residential Homes External,Adult Social Care,Third Party Payments,575,20-Jun-17,R,GABLE LODGE
3,221001,Older People Placements - East,OP 65&Over NursingCarePlacemts,Physical/ Sensory Support,4350,Residential Homes External,Adult Social Care,Third Party Payments,575,20-Jun-17,R,GABLE LODGE
3,221001,Older People Placements - East,OP 65&Over NursingCarePlacemts,Physical/ Sensory Support,4350,Residential Homes External,Adult Social Care,Third Party Payments,575,20-Jun-17,R,GABLE LODGE
3,221001,Older People Placements - East,OP 65&Over NursingCarePlacemts,Physical/ Sensory Support,4350,Residential Homes External,Adult Social Care,Third Party Payments,575,20-Jun-17,R,GABLE LODGE
3,221001,Older People Placements - East,OP 65&Over NursingCarePlacemts,Physical/ Sensory Support,4350,Residential Homes External,Adult Social Care,Third Party Payments,575,20-Jun-17,R,GABLE LODGE
3,221001,Older People Placements - East,OP 65&Over NursingCarePlacemts,Physical/ Sensory Support,4350,Residential Homes External,Adult Social Care,Third Party Payments,575,20-Jun-17,R,GABLE LODGE
3,221001,Older People Placements - East,OP 65&Over NursingCarePlacemts,Physical/ Sensory Support,4350,Residential Homes External,Adult Social Care,Third Party Payments,575,20-Jun-17,R,GABLE LODGE
3,221001,Older People Placements - East,OP 65&Over NursingCarePlacemts,Physical/ Sensory Support,4350,Residential Homes External,Adult Social Care,Third Party Payments,575,20-Jun-17,R,GABLE LODGE
3,221001,Older People Placements - East,OP 65&Over NursingCarePlacemts,Physical/ Sensory Support,4350,Residential Homes External,Adult Social Care,Third Party Payments,575,20-Jun-17,R,GABLE LODGE
3,221001,Older People Placements - East,OP 65&Over NursingCarePlacemts,Physical/ Sensory Support,4350,Residential Homes External,Adult Social Care,Third Party Payments,575,20-Jun-17,R,GABLE LODGE
3,221001,Older People Placements - East,OP 65&Over NursingCarePlacemts,Physical/ Sensory Support,4350,Residential Homes External,Adult Social Care,Third Party Payments,575,20-Jun-17,R,GABLE LODGE
3,221001,Older People Placements - East,OP 65&Over NursingCarePlacemts,Physical/ Sensory Support,4350,Residential Homes External,Adult Social Care,Third Party Payments,575,20-Jun-17,R,GABLE LODGE
3,221001,Older People Placements - East,OP 65&Over NursingCarePlacemts,Physical/ Sensory Support,4350,Residential Homes External,Adult Social Care,Third Party Payments,575,20-Jun-17,R,GABLE LODGE
3,221001,Older People Placements - East,OP 65&Over NursingCarePlacemts,Physical/ Sensory Support,4350,Residential Homes External,Adult Social Care,Third Party Payments,575,20-Jun-17,R,GABLE LODGE
3,221001,Older People Placements - East,OP 65&Over NursingCarePlacemts,Physical/ Sensory Support,4350,Residential Homes External,Adult Social Care,Third Party Payments,575,20-Jun-17,R,GABLE LODGE
3,221001,Older People Placements - East,OP 65&Over NursingCarePlacemts,Physical/ Sensory Support,4350,Residential Homes External,Adult Social Care,Third Party Payments,575,20-Jun-17,R,GABLE LODGE
3,221001,Older People Placements - East,OP 65&Over NursingCarePlacemts,Physical/ Sensory Support,4350,Residential Homes External,Adult Social Care,Third Party Payments,575,20-Jun-17,R,GABLE LODGE
3,221001,Older People Placements - East,OP 65&Over NursingCarePlacemts,Physical/ Sensory Support,4350,Residential Homes External,Adult Social Care,Third Party Payments,575,20-Jun-17,R,GABLE LODGE
3,221001,Older People Placements - East,OP 65&Over NursingCarePlacemts,Physical/ Sensory Support,4350,Residential Homes External,Adult Social Care,Third Party Payments,575,20-Jun-17,R,GABLE LODGE
3,221001,Older People Placements - East,OP 65&Over NursingCarePlacemts,Physical/ Sensory Support,4350,Residential Homes External,Adult Social Care,Third Party Payments,575,20-Jun-17,R,GABLE LODGE
3,221001,Older People Placements - East,OP 65&Over NursingCarePlacemts,Physical/ Sensory Support,4350,Residential Homes External,Adult Social Care,Third Party Payments,575,20-Jun-17,R,GABLE LODGE
3,221001,Older People Placements - East,OP 65&Over NursingCarePlacemts,Physical/ Sensory Support,4350,Residential Homes External,Adult Social Care,Third Party Payments,575,20-Jun-17,R,GABLE LODGE
3,221001,Older People Placements - East,OP 65&Over NursingCarePlacemts,Physical/ Sensory Support,4350,Residential Homes External,Adult Social Care,Third Party Payments,575,20-Jun-17,R,GABLE LODGE
3,221001,Older People Placements - East,OP 65&Over NursingCarePlacemts,Physical/ Sensory Support,4350,Residential Homes External,Adult Social Care,Third Party Payments,575,20-Jun-17,R,GABLE LODGE
3,221001,Older People Placements - East,OP 65&Over NursingCarePlacemts,Physical/ Sensory Support,4350,Residential Homes External,Adult Social Care,Third Party Payments,575,20-Jun-17,R,GABLE LODGE
3,221001,Older People Placements - East,OP 65&Over NursingCarePlacemts,Physical/ Sensory Support,4350,Residential Homes External,Adult Social Care,Third Party Payments,575,20-Jun-17,R,GABLE LODGE
3,221001,Older People Placements - East,OP 65&Over NursingCarePlacemts,Physical/ Sensory Support,4350,Residential Homes External,Adult Social Care,Third Party Payments,575,20-Jun-17,R,GABLE LODGE
3,221001,Older People Placements - East,OP 65&Over NursingCarePlacemts,Physical/ Sensory Support,4350,Residential Homes External,Adult Social Care,Third Party Payments,575,20-Jun-17,R,GABLE LODGE
3,221001,Older People Placements - East,OP 65&Over NursingCarePlacemts,Physical/ Sensory Support,4350,Residential Homes External,Adult Social Care,Third Party Payments,575,20-Jun-17,R,GABLE LODGE
3,221001,Older People Placements - East,OP 65&Over NursingCarePlacemts,Physical/ Sensory Support,4350,Residential Homes External,Adult Social Care,Third Party Payments,575,20-Jun-17,R,GABLE LODGE
3,221001,Older People Placements - East,OP 65&Over NursingCarePlacemts,Physical/ Sensory Support,4350,Residential Homes External,Adult Social Care,Third Party Payments,575,20-Jun-17,R,GABLE LODGE
3,221001,Older People Placements - East,OP 65&Over NursingCarePlacemts,Physical/ Sensory Support,4350,Residential Homes External,Adult Social Care,Third Party Payments,575,20-Jun-17,R,GABLE LODGE
3,221001,Older People Placements - East,OP 65&Over NursingCarePlacemts,Physical/ Sensory Support,4350,Residential Homes External,Adult Social Care,Third Party Payments,575,20-Jun-17,R,GABLE LODGE
3,221001,Older People Placements - East,OP 65&Over NursingCarePlacemts,Physical/ Sensory Support,4350,Residential Homes External,Adult Social Care,Third Party Payments,575,07-Jun-17,R,KEYCHANGE CHARITY
3,221001,Older People Placements - East,OP 65&Over NursingCarePlacemts,Physical/ Sensory Support,4350,Residential Homes External,Adult Social Care,Third Party Payments,575,07-Jun-17,R,KEYCHANGE CHARITY
3,221001,Older People Placements - East,OP 65&Over NursingCarePlacemts,Physical/ Sensory Support,4350,Residential Homes External,Adult Social Care,Third Party Payments,575,07-Jun-17,R,KEYCHANGE CHARITY
3,221001,Older People Placements - East,OP 65&Over NursingCarePlacemts,Physical/ Sensory Support,4350,Residential Homes External,Adult Social Care,Third Party Payments,575,07-Jun-17,R,KEYCHANGE CHARITY
3,221001,Older People Placements - East,OP 65&Over NursingCarePlacemts,Physical/ Sensory Support,4350,Residential Homes External,Adult Social Care,Third Party Payments,578,07-Jun-17,R,LIFESTYLE CARE MANAGEMENT LTD
3,221001,Older People Placements - East,OP 65&Over NursingCarePlacemts,Physical/ Sensory Support,4350,Residential Homes External,Adult Social Care,Third Party Payments,578,07-Jun-17,R,LIFESTYLE CARE MANAGEMENT LTD
3,221001,Older People Placements - East,OP 65&Over NursingCarePlacemts,Physical/ Sensory Support,4350,Residential Homes External,Adult Social Care,Third Party Payments,578,07-Jun-17,R,LIFESTYLE CARE MANAGEMENT LTD
3,221001,Older People Placements - East,OP 65&Over NursingCarePlacemts,Physical/ Sensory Support,4350,Residential Homes External,Adult Social Care,Third Party Payments,578,07-Jun-17,R,LIFESTYLE CARE MANAGEMENT LTD
3,221001,Older People Placements - East,OP 65&Over NursingCarePlacemts,Physical/ Sensory Support,4350,Residential Homes External,Adult Social Care,Third Party Payments,578,07-Jun-17,R,LIFESTYLE CARE MANAGEMENT LTD
3,221001,Older People Placements - East,OP 65&Over NursingCarePlacemts,Physical/ Sensory Support,4350,Residential Homes External,Adult Social Care,Third Party Payments,578,07-Jun-17,R,LIFESTYLE CARE MANAGEMENT LTD
3,221001,Older People Placements - East,OP 65&Over NursingCarePlacemts,Physical/ Sensory Support,4350,Residential Homes External,Adult Social Care,Third Party Payments,578,07-Jun-17,R,LIFESTYLE CARE MANAGEMENT LTD
3,221001,Older People Placements - East,OP 65&Over NursingCarePlacemts,Physical/ Sensory Support,4350,Residential Homes External,Adult Social Care,Third Party Payments,578,07-Jun-17,R,LIFESTYLE CARE MANAGEMENT LTD
3,221001,Older People Placements - East,OP 65&Over NursingCarePlacemts,Physical/ Sensory Support,4350,Residential Homes External,Adult Social Care,Third Party Payments,578,07-Jun-17,R,LIFESTYLE CARE MANAGEMENT LTD
3,221001,Older People Placements - East,OP 65&Over NursingCarePlacemts,Physical/ Sensory Support,4350,Residential Homes External,Adult Social Care,Third Party Payments,578,07-Jun-17,R,LIFESTYLE CARE MANAGEMENT LTD
3,221001,Older People Placements - East,OP 65&Over NursingCarePlacemts,Physical/ Sensory Support,4350,Residential Homes External,Adult Social Care,Third Party Payments,578,07-Jun-17,R,LIFESTYLE CARE MANAGEMENT LTD
3,221001,Older People Placements - East,OP 65&Over NursingCarePlacemts,Physical/ Sensory Support,4350,Residential Homes External,Adult Social Care,Third Party Payments,578,07-Jun-17,R,LIFESTYLE CARE MANAGEMENT LTD
3,221001,Older People Placements - East,OP 65&Over NursingCarePlacemts,Physical/ Sensory Support,4350,Residential Homes External,Adult Social Care,Third Party Payments,578,07-Jun-17,R,LIFESTYLE CARE MANAGEMENT LTD
3,221001,Older People Placements - East,OP 65&Over NursingCarePlacemts,Physical/ Sensory Support,4350,Residential Homes External,Adult Social Care,Third Party Payments,578,07-Jun-17,R,LIFESTYLE CARE MANAGEMENT LTD
3,221001,Older People Placements - East,OP 65&Over NursingCarePlacemts,Physical/ Sensory Support,4350,Residential Homes External,Adult Social Care,Third Party Payments,578,07-Jun-17,R,LIFESTYLE CARE MANAGEMENT LTD
3,221001,Older People Placements - East,OP 65&Over NursingCarePlacemts,Physical/ Sensory Support,4350,Residential Homes External,Adult Social Care,Third Party Payments,578,07-Jun-17,R,LIFESTYLE CARE MANAGEMENT LTD
3,221001,Older People Placements - East,OP 65&Over NursingCarePlacemts,Physical/ Sensory Support,4350,Residential Homes External,Adult Social Care,Third Party Payments,578,07-Jun-17,R,LIFESTYLE CARE MANAGEMENT LTD
3,221001,Older People Placements - East,OP 65&Over NursingCarePlacemts,Physical/ Sensory Support,4350,Residential Homes External,Adult Social Care,Third Party Payments,578,07-Jun-17,R,LIFESTYLE CARE MANAGEMENT LTD
3,221001,Older People Placements - East,OP 65&Over NursingCarePlacemts,Physical/ Sensory Support,4350,Residential Homes External,Adult Social Care,Third Party Payments,578,07-Jun-17,R,LIFESTYLE CARE MANAGEMENT LTD
3,221001,Older People Placements - East,OP 65&Over NursingCarePlacemts,Physical/ Sensory Support,4350,Residential Homes External,Adult Social Care,Third Party Payments,578,07-Jun-17,R,LIFESTYLE CARE MANAGEMENT LTD
3,221001,Older People Placements - East,OP 65&Over NursingCarePlacemts,Physical/ Sensory Support,4350,Residential Homes External,Adult Social Care,Third Party Payments,578,07-Jun-17,R,LIFESTYLE CARE MANAGEMENT LTD
3,221001,Older People Placements - East,OP 65&Over NursingCarePlacemts,Physical/ Sensory Support,4350,Residential Homes External,Adult Social Care,Third Party Payments,578,07-Jun-17,R,LIFESTYLE CARE MANAGEMENT LTD
3,221001,Older People Placements - East,OP 65&Over NursingCarePlacemts,Physical/ Sensory Support,4350,Residential Homes External,Adult Social Care,Third Party Payments,578,07-Jun-17,R,LIFESTYLE CARE MANAGEMENT LTD
3,221001,Older People Placements - East,OP 65&Over NursingCarePlacemts,Physical/ Sensory Support,4350,Residential Homes External,Adult Social Care,Third Party Payments,578,07-Jun-17,R,LIFESTYLE CARE MANAGEMENT LTD
3,221001,Older People Placements - East,OP 65&Over NursingCarePlacemts,Physical/ Sensory Support,4350,Residential Homes External,Adult Social Care,Third Party Payments,578,07-Jun-17,R,LIFESTYLE CARE MANAGEMENT LTD
3,221001,Older People Placements - East,OP 65&Over NursingCarePlacemts,Physical/ Sensory Support,4350,Residential Homes External,Adult Social Care,Third Party Payments,578,07-Jun-17,R,LIFESTYLE CARE MANAGEMENT LTD
3,221001,Older People Placements - East,OP 65&Over NursingCarePlacemts,Physical/ Sensory Support,4350,Residential Homes External,Adult Social Care,Third Party Payments,578,07-Jun-17,R,LIFESTYLE CARE MANAGEMENT LTD
3,221001,Older People Placements - East,OP 65&Over NursingCarePlacemts,Physical/ Sensory Support,4350,Residential Homes External,Adult Social Care,Third Party Payments,578,07-Jun-17,R,LIFESTYLE CARE MANAGEMENT LTD
3,221001,Older People Placements - East,OP 65&Over NursingCarePlacemts,Physical/ Sensory Support,4350,Residential Homes External,Adult Social Care,Third Party Payments,578,07-Jun-17,R,LIFESTYLE CARE MANAGEMENT LTD
3,221001,Older People Placements - East,OP 65&Over NursingCarePlacemts,Physical/ Sensory Support,4350,Residential Homes External,Adult Social Care,Third Party Payments,578,07-Jun-17,R,LIFESTYLE CARE MANAGEMENT LTD
3,221001,Older People Placements - East,OP 65&Over NursingCarePlacemts,Physical/ Sensory Support,4350,Residential Homes External,Adult Social Care,Third Party Payments,578,07-Jun-17,R,LIFESTYLE CARE MANAGEMENT LTD
3,221001,Older People Placements - East,OP 65&Over NursingCarePlacemts,Physical/ Sensory Support,4350,Residential Homes External,Adult Social Care,Third Party Payments,578,07-Jun-17,R,LIFESTYLE CARE MANAGEMENT LTD
3,221001,Older People Placements - East,OP 65&Over NursingCarePlacemts,Physical/ Sensory Support,4350,Residential Homes External,Adult Social Care,Third Party Payments,578,07-Jun-17,R,LIFESTYLE CARE MANAGEMENT LTD
3,221001,Older People Placements - East,OP 65&Over NursingCarePlacemts,Physical/ Sensory Support,4350,Residential Homes External,Adult Social Care,Third Party Payments,578,07-Jun-17,R,LIFESTYLE CARE MANAGEMENT LTD
3,221001,Older People Placements - East,OP 65&Over NursingCarePlacemts,Physical/ Sensory Support,4350,Residential Homes External,Adult Social Care,Third Party Payments,578,07-Jun-17,R,LIFESTYLE CARE MANAGEMENT LTD
3,221001,Older People Placements - East,OP 65&Over NursingCarePlacemts,Physical/ Sensory Support,4350,Residential Homes External,Adult Social Care,Third Party Payments,578,07-Jun-17,R,LIFESTYLE CARE MANAGEMENT LTD
3,221001,Older People Placements - East,OP 65&Over NursingCarePlacemts,Physical/ Sensory Support,4350,Residential Homes External,Adult Social Care,Third Party Payments,578,07-Jun-17,R,LIFESTYLE CARE MANAGEMENT LTD
3,221001,Older People Placements - East,OP 65&Over NursingCarePlacemts,Physical/ Sensory Support,4350,Residential Homes External,Adult Social Care,Third Party Payments,578,07-Jun-17,R,LIFESTYLE CARE MANAGEMENT LTD
3,221001,Older People Placements - East,OP 65&Over NursingCarePlacemts,Physical/ Sensory Support,4350,Residential Homes External,Adult Social Care,Third Party Payments,578,07-Jun-17,R,LIFESTYLE CARE MANAGEMENT LTD
3,221001,Older People Placements - East,OP 65&Over NursingCarePlacemts,Physical/ Sensory Support,4350,Residential Homes External,Adult Social Care,Third Party Payments,578,07-Jun-17,R,LIFESTYLE CARE MANAGEMENT LTD
3,221001,Older People Placements - East,OP 65&Over NursingCarePlacemts,Physical/ Sensory Support,4350,Residential Homes External,Adult Social Care,Third Party Payments,578,07-Jun-17,R,LIFESTYLE CARE MANAGEMENT LTD
3,221001,Older People Placements - East,OP 65&Over NursingCarePlacemts,Physical/ Sensory Support,4350,Residential Homes External,Adult Social Care,Third Party Payments,578,07-Jun-17,R,LIFESTYLE CARE MANAGEMENT LTD
3,221001,Older People Placements - East,OP 65&Over NursingCarePlacemts,Physical/ Sensory Support,4350,Residential Homes External,Adult Social Care,Third Party Payments,578,07-Jun-17,R,LIFESTYLE CARE MANAGEMENT LTD
3,221001,Older People Placements - East,OP 65&Over NursingCarePlacemts,Physical/ Sensory Support,4350,Residential Homes External,Adult Social Care,Third Party Payments,578,07-Jun-17,R,LIFESTYLE CARE MANAGEMENT LTD
3,221001,Older People Placements - East,OP 65&Over NursingCarePlacemts,Physical/ Sensory Support,4350,Residential Homes External,Adult Social Care,Third Party Payments,578,07-Jun-17,R,LIFESTYLE CARE MANAGEMENT LTD
3,221001,Older People Placements - East,OP 65&Over NursingCarePlacemts,Physical/ Sensory Support,4350,Residential Homes External,Adult Social Care,Third Party Payments,578,07-Jun-17,R,LIFESTYLE CARE MANAGEMENT LTD
3,221001,Older People Placements - East,OP 65&Over NursingCarePlacemts,Physical/ Sensory Support,4350,Residential Homes External,Adult Social Care,Third Party Payments,578,07-Jun-17,R,LIFESTYLE CARE MANAGEMENT LTD
3,221001,Older People Placements - East,OP 65&Over NursingCarePlacemts,Physical/ Sensory Support,4350,Residential Homes External,Adult Social Care,Third Party Payments,578,07-Jun-17,R,LIFESTYLE CARE MANAGEMENT LTD
3,221001,Older People Placements - East,OP 65&Over NursingCarePlacemts,Physical/ Sensory Support,4350,Residential Homes External,Adult Social Care,Third Party Payments,578,07-Jun-17,R,LIFESTYLE CARE MANAGEMENT LTD
3,221001,Older People Placements - East,OP 65&Over NursingCarePlacemts,Physical/ Sensory Support,4350,Residential Homes External,Adult Social Care,Third Party Payments,578,07-Jun-17,R,LIFESTYLE CARE MANAGEMENT LTD
3,221001,Older People Placements - East,OP 65&Over NursingCarePlacemts,Physical/ Sensory Support,4350,Residential Homes External,Adult Social Care,Third Party Payments,578,07-Jun-17,R,LIFESTYLE CARE MANAGEMENT LTD
3,221001,Older People Placements - East,OP 65&Over NursingCarePlacemts,Physical/ Sensory Support,4350,Residential Homes External,Adult Social Care,Third Party Payments,578,07-Jun-17,R,LIFESTYLE CARE MANAGEMENT LTD
3,221001,Older People Placements - East,OP 65&Over NursingCarePlacemts,Physical/ Sensory Support,4350,Residential Homes External,Adult Social Care,Third Party Payments,578,07-Jun-17,R,LIFESTYLE CARE MANAGEMENT LTD
3,221001,Older People Placements - East,OP 65&Over NursingCarePlacemts,Physical/ Sensory Support,4350,Residential Homes External,Adult Social Care,Third Party Payments,578,07-Jun-17,R,LIFESTYLE CARE MANAGEMENT LTD
3,221001,Older People Placements - East,OP 65&Over NursingCarePlacemts,Physical/ Sensory Support,4350,Residential Homes External,Adult Social Care,Third Party Payments,578,07-Jun-17,R,LIFESTYLE CARE MANAGEMENT LTD
3,221001,Older People Placements - East,OP 65&Over NursingCarePlacemts,Physical/ Sensory Support,4350,Residential Homes External,Adult Social Care,Third Party Payments,578,07-Jun-17,R,LIFESTYLE CARE MANAGEMENT LTD
3,221001,Older People Placements - East,OP 65&Over NursingCarePlacemts,Physical/ Sensory Support,4350,Residential Homes External,Adult Social Care,Third Party Payments,578,07-Jun-17,R,LIFESTYLE CARE MANAGEMENT LTD
3,221001,Older People Placements - East,OP 65&Over NursingCarePlacemts,Physical/ Sensory Support,4350,Residential Homes External,Adult Social Care,Third Party Payments,578,07-Jun-17,R,LIFESTYLE CARE MANAGEMENT LTD
3,221001,Older People Placements - East,OP 65&Over NursingCarePlacemts,Physical/ Sensory Support,4350,Residential Homes External,Adult Social Care,Third Party Payments,578,07-Jun-17,R,LIFESTYLE CARE MANAGEMENT LTD
3,221001,Older People Placements - East,OP 65&Over NursingCarePlacemts,Physical/ Sensory Support,4350,Residential Homes External,Adult Social Care,Third Party Payments,578,07-Jun-17,R,LIFESTYLE CARE MANAGEMENT LTD
3,221001,Older People Placements - East,OP 65&Over NursingCarePlacemts,Physical/ Sensory Support,4350,Residential Homes External,Adult Social Care,Third Party Payments,578,07-Jun-17,R,LIFESTYLE CARE MANAGEMENT LTD
3,221001,Older People Placements - East,OP 65&Over NursingCarePlacemts,Physical/ Sensory Support,4350,Residential Homes External,Adult Social Care,Third Party Payments,578,07-Jun-17,R,LIFESTYLE CARE MANAGEMENT LTD
3,221001,Older People Placements - East,OP 65&Over NursingCarePlacemts,Physical/ Sensory Support,4350,Residential Homes External,Adult Social Care,Third Party Payments,578,07-Jun-17,R,LIFESTYLE CARE MANAGEMENT LTD
3,221001,Older People Placements - East,OP 65&Over NursingCarePlacemts,Physical/ Sensory Support,4350,Residential Homes External,Adult Social Care,Third Party Payments,578,07-Jun-17,R,LIFESTYLE CARE MANAGEMENT LTD
3,221001,Older People Placements - East,OP 65&Over NursingCarePlacemts,Physical/ Sensory Support,4350,Residential Homes External,Adult Social Care,Third Party Payments,578,07-Jun-17,R,LIFESTYLE CARE MANAGEMENT LTD
3,221001,Older People Placements - East,OP 65&Over NursingCarePlacemts,Physical/ Sensory Support,4350,Residential Homes External,Adult Social Care,Third Party Payments,578,07-Jun-17,R,LIFESTYLE CARE MANAGEMENT LTD
3,221001,Older People Placements - East,OP 65&Over NursingCarePlacemts,Physical/ Sensory Support,4350,Residential Homes External,Adult Social Care,Third Party Payments,578,07-Jun-17,R,LIFESTYLE CARE MANAGEMENT LTD
3,221001,Older People Placements - East,OP 65&Over NursingCarePlacemts,Physical/ Sensory Support,4350,Residential Homes External,Adult Social Care,Third Party Payments,578,07-Jun-17,R,LIFESTYLE CARE MANAGEMENT LTD
3,221001,Older People Placements - East,OP 65&Over NursingCarePlacemts,Physical/ Sensory Support,4350,Residential Homes External,Adult Social Care,Third Party Payments,578,07-Jun-17,R,LIFESTYLE CARE MANAGEMENT LTD
3,221001,Older People Placements - East,OP 65&Over NursingCarePlacemts,Physical/ Sensory Support,4350,Residential Homes External,Adult Social Care,Third Party Payments,578,07-Jun-17,R,LIFESTYLE CARE MANAGEMENT LTD
3,221001,Older People Placements - East,OP 65&Over NursingCarePlacemts,Physical/ Sensory Support,4350,Residential Homes External,Adult Social Care,Third Party Payments,578,07-Jun-17,R,LIFESTYLE CARE MANAGEMENT LTD
3,221001,Older People Placements - East,OP 65&Over NursingCarePlacemts,Physical/ Sensory Support,4350,Residential Homes External,Adult Social Care,Third Party Payments,578,07-Jun-17,R,LIFESTYLE CARE MANAGEMENT LTD
3,221001,Older People Placements - East,OP 65&Over NursingCarePlacemts,Physical/ Sensory Support,4350,Residential Homes External,Adult Social Care,Third Party Payments,578,07-Jun-17,R,LIFESTYLE CARE MANAGEMENT LTD
3,221001,Older People Placements - East,OP 65&Over NursingCarePlacemts,Physical/ Sensory Support,4350,Residential Homes External,Adult Social Care,Third Party Payments,578,07-Jun-17,R,FREMINGTON MANOR
3,221001,Older People Placements - East,OP 65&Over NursingCarePlacemts,Physical/ Sensory Support,4350,Residential Homes External,Adult Social Care,Third Party Payments,578,07-Jun-17,R,FREMINGTON MANOR
3,221001,Older People Placements - East,OP 65&Over NursingCarePlacemts,Physical/ Sensory Support,4350,Residential Homes External,Adult Social Care,Third Party Payments,578,07-Jun-17,R,FREMINGTON MANOR
3,221001,Older People Placements - East,OP 65&Over NursingCarePlacemts,Physical/ Sensory Support,4350,Residential Homes External,Adult Social Care,Third Party Payments,578,07-Jun-17,R,FREMINGTON MANOR
3,221001,Older People Placements - East,OP 65&Over NursingCarePlacemts,Physical/ Sensory Support,4350,Residential Homes External,Adult Social Care,Third Party Payments,578,07-Jun-17,R,LIFESTYLE CARE MANAGEMENT LTD
3,221001,Older People Placements - East,OP 65&Over NursingCarePlacemts,Physical/ Sensory Support,4350,Residential Homes External,Adult Social Care,Third Party Payments,578,07-Jun-17,R,LIFESTYLE CARE MANAGEMENT LTD
3,221001,Older People Placements - East,OP 65&Over NursingCarePlacemts,Physical/ Sensory Support,4350,Residential Homes External,Adult Social Care,Third Party Payments,578,07-Jun-17,R,LIFESTYLE CARE MANAGEMENT LTD
3,221001,Older People Placements - East,OP 65&Over NursingCarePlacemts,Physical/ Sensory Support,4350,Residential Homes External,Adult Social Care,Third Party Payments,592,07-Jun-17,R,REDACTED
3,221001,Older People Placements - East,OP 65&Over NursingCarePlacemts,Physical/ Sensory Support,4350,Residential Homes External,Adult Social Care,Third Party Payments,592,07-Jun-17,R,REDACTED
3,221001,Older People Placements - East,OP 65&Over NursingCarePlacemts,Physical/ Sensory Support,4350,Residential Homes External,Adult Social Care,Third Party Payments,592,07-Jun-17,R,REDACTED
3,221001,Older People Placements - East,OP 65&Over NursingCarePlacemts,Physical/ Sensory Support,4350,Residential Homes External,Adult Social Care,Third Party Payments,592,07-Jun-17,R,REDACTED
3,221001,Older People Placements - East,OP 65&Over NursingCarePlacemts,Physical/ Sensory Support,4350,Residential Homes External,Adult Social Care,Third Party Payments,595,29-Jun-17,R,GABLE LODGE
3,221001,Older People Placements - East,OP 65&Over NursingCarePlacemts,Physical/ Sensory Support,4350,Residential Homes External,Adult Social Care,Third Party Payments,595,29-Jun-17,R,GABLE LODGE
3,221001,Older People Placements - East,OP 65&Over NursingCarePlacemts,Physical/ Sensory Support,4350,Residential Homes External,Adult Social Care,Third Party Payments,595,29-Jun-17,R,GABLE LODGE
3,221001,Older People Placements - East,OP 65&Over NursingCarePlacemts,Physical/ Sensory Support,4350,Residential Homes External,Adult Social Care,Third Party Payments,595,29-Jun-17,R,GABLE LODGE
3,221001,Older People Placements - East,OP 65&Over NursingCarePlacemts,Physical/ Sensory Support,4350,Residential Homes External,Adult Social Care,Third Party Payments,595,29-Jun-17,R,GABLE LODGE
3,221001,Older People Placements - East,OP 65&Over NursingCarePlacemts,Physical/ Sensory Support,4350,Residential Homes External,Adult Social Care,Third Party Payments,595,29-Jun-17,R,GABLE LODGE
3,221001,Older People Placements - East,OP 65&Over NursingCarePlacemts,Physical/ Sensory Support,4350,Residential Homes External,Adult Social Care,Third Party Payments,595,29-Jun-17,R,GABLE LODGE
3,221001,Older People Placements - East,OP 65&Over NursingCarePlacemts,Physical/ Sensory Support,4350,Residential Homes External,Adult Social Care,Third Party Payments,595,29-Jun-17,R,GABLE LODGE
3,221001,Older People Placements - East,OP 65&Over NursingCarePlacemts,Physical/ Sensory Support,4350,Residential Homes External,Adult Social Care,Third Party Payments,595,20-Jun-17,R,GABLE LODGE
3,221001,Older People Placements - East,OP 65&Over NursingCarePlacemts,Physical/ Sensory Support,4350,Residential Homes External,Adult Social Care,Third Party Payments,595,29-Jun-17,R,GABLE LODGE
3,221001,Older People Placements - East,OP 65&Over NursingCarePlacemts,Physical/ Sensory Support,4350,Residential Homes External,Adult Social Care,Third Party Payments,595,07-Jun-17,R,GABLE LODGE
3,221001,Older People Placements - East,OP 65&Over NursingCarePlacemts,Physical/ Sensory Support,4350,Residential Homes External,Adult Social Care,Third Party Payments,595,07-Jun-17,R,GABLE LODGE
3,221001,Older People Placements - East,OP 65&Over NursingCarePlacemts,Physical/ Sensory Support,4350,Residential Homes External,Adult Social Care,Third Party Payments,595,07-Jun-17,R,GABLE LODGE
3,221001,Older People Placements - East,OP 65&Over NursingCarePlacemts,Physical/ Sensory Support,4350,Residential Homes External,Adult Social Care,Third Party Payments,595,07-Jun-17,R,GABLE LODGE
3,221001,Older People Placements - East,OP 65&Over NursingCarePlacemts,Physical/ Sensory Support,4350,Residential Homes External,Adult Social Care,Third Party Payments,600,07-Jun-17,R,HASLINGTON RESIDENTIAL HOME
3,221001,Older People Placements - East,OP 65&Over NursingCarePlacemts,Physical/ Sensory Support,4350,Residential Homes External,Adult Social Care,Third Party Payments,600,07-Jun-17,R,HASLINGTON RESIDENTIAL HOME
3,221001,Older People Placements - East,OP 65&Over NursingCarePlacemts,Physical/ Sensory Support,4350,Residential Homes External,Adult Social Care,Third Party Payments,600,07-Jun-17,R,HASLINGTON RESIDENTIAL HOME
3,221001,Older People Placements - East,OP 65&Over NursingCarePlacemts,Physical/ Sensory Support,4350,Residential Homes External,Adult Social Care,Third Party Payments,600,07-Jun-17,R,HASLINGTON RESIDENTIAL HOME
3,221001,Older People Placements - East,OP 65&Over NursingCarePlacemts,Physical/ Sensory Support,4350,Residential Homes External,Adult Social Care,Third Party Payments,600,07-Jun-17,R,ABBEY HOUSE RESIDENTIAL HOMES
3,221001,Older People Placements - East,OP 65&Over NursingCarePlacemts,Physical/ Sensory Support,4350,Residential Homes External,Adult Social Care,Third Party Payments,600,07-Jun-17,R,ABBEY HOUSE RESIDENTIAL HOMES
3,221001,Older People Placements - East,OP 65&Over NursingCarePlacemts,Physical/ Sensory Support,4350,Residential Homes External,Adult Social Care,Third Party Payments,600,07-Jun-17,R,ABBEY HOUSE RESIDENTIAL HOMES
3,221001,Older People Placements - East,OP 65&Over NursingCarePlacemts,Physical/ Sensory Support,4350,Residential Homes External,Adult Social Care,Third Party Payments,600,07-Jun-17,R,ABBEY HOUSE RESIDENTIAL HOMES
3,221001,Older People Placements - East,OP 65&Over NursingCarePlacemts,Physical/ Sensory Support,4350,Residential Homes External,Adult Social Care,Third Party Payments,625,07-Jun-17,R,SUNNINGDALE HOUSE CARE HOME
3,221001,Older People Placements - East,OP 65&Over NursingCarePlacemts,Physical/ Sensory Support,4350,Residential Homes External,Adult Social Care,Third Party Payments,625,07-Jun-17,R,SUNNINGDALE HOUSE CARE HOME
3,221001,Older People Placements - East,OP 65&Over NursingCarePlacemts,Physical/ Sensory Support,4350,Residential Homes External,Adult Social Care,Third Party Payments,625,07-Jun-17,R,SUNNINGDALE HOUSE CARE HOME
3,221001,Older People Placements - East,OP 65&Over NursingCarePlacemts,Physical/ Sensory Support,4350,Residential Homes External,Adult Social Care,Third Party Payments,625,07-Jun-17,R,SUNNINGDALE HOUSE CARE HOME
3,221001,Older People Placements - East,OP 65&Over NursingCarePlacemts,Physical/ Sensory Support,4350,Residential Homes External,Adult Social Care,Third Party Payments,635,07-Jun-17,R,BUPA CARE HOMES
3,221001,Older People Placements - East,OP 65&Over NursingCarePlacemts,Physical/ Sensory Support,4350,Residential Homes External,Adult Social Care,Third Party Payments,635,07-Jun-17,R,BUPA CARE HOMES
3,221001,Older People Placements - East,OP 65&Over NursingCarePlacemts,Physical/ Sensory Support,4350,Residential Homes External,Adult Social Care,Third Party Payments,635,07-Jun-17,R,BUPA CARE HOMES
3,221001,Older People Placements - East,OP 65&Over NursingCarePlacemts,Physical/ Sensory Support,4350,Residential Homes External,Adult Social Care,Third Party Payments,635,07-Jun-17,R,BUPA CARE HOMES
3,221001,Older People Placements - East,OP 65&Over NursingCarePlacemts,Physical/ Sensory Support,4350,Residential Homes External,Adult Social Care,Third Party Payments,635,07-Jun-17,R,BUPA CARE HOMES
3,221001,Older People Placements - East,OP 65&Over NursingCarePlacemts,Physical/ Sensory Support,4350,Residential Homes External,Adult Social Care,Third Party Payments,635,07-Jun-17,R,BUPA CARE HOMES
3,221001,Older People Placements - East,OP 65&Over NursingCarePlacemts,Physical/ Sensory Support,4350,Residential Homes External,Adult Social Care,Third Party Payments,635,07-Jun-17,R,BUPA CARE HOMES
3,221001,Older People Placements - East,OP 65&Over NursingCarePlacemts,Physical/ Sensory Support,4350,Residential Homes External,Adult Social Care,Third Party Payments,635,07-Jun-17,R,BUPA CARE HOMES
3,221001,Older People Placements - East,OP 65&Over NursingCarePlacemts,Physical/ Sensory Support,4350,Residential Homes External,Adult Social Care,Third Party Payments,635,07-Jun-17,R,BUPA CARE HOMES
3,221001,Older People Placements - East,OP 65&Over NursingCarePlacemts,Physical/ Sensory Support,4350,Residential Homes External,Adult Social Care,Third Party Payments,635,07-Jun-17,R,BUPA CARE HOMES
3,221001,Older People Placements - East,OP 65&Over NursingCarePlacemts,Physical/ Sensory Support,4350,Residential Homes External,Adult Social Care,Third Party Payments,635,07-Jun-17,R,BUPA CARE HOMES
3,221001,Older People Placements - East,OP 65&Over NursingCarePlacemts,Physical/ Sensory Support,4350,Residential Homes External,Adult Social Care,Third Party Payments,635,07-Jun-17,R,BUPA CARE HOMES
3,221001,Older People Placements - East,OP 65&Over NursingCarePlacemts,Physical/ Sensory Support,4350,Residential Homes External,Adult Social Care,Third Party Payments,635,07-Jun-17,R,BUPA CARE HOMES
3,221001,Older People Placements - East,OP 65&Over NursingCarePlacemts,Physical/ Sensory Support,4350,Residential Homes External,Adult Social Care,Third Party Payments,635,07-Jun-17,R,BUPA CARE HOMES
3,221001,Older People Placements - East,OP 65&Over NursingCarePlacemts,Physical/ Sensory Support,4350,Residential Homes External,Adult Social Care,Third Party Payments,635,07-Jun-17,R,BUPA CARE HOMES
3,221001,Older People Placements - East,OP 65&Over NursingCarePlacemts,Physical/ Sensory Support,4350,Residential Homes External,Adult Social Care,Third Party Payments,635,07-Jun-17,R,BUPA CARE HOMES
3,221001,Older People Placements - East,OP 65&Over NursingCarePlacemts,Physical/ Sensory Support,4350,Residential Homes External,Adult Social Care,Third Party Payments,635,07-Jun-17,R,BUPA CARE HOMES
3,221001,Older People Placements - East,OP 65&Over NursingCarePlacemts,Physical/ Sensory Support,4350,Residential Homes External,Adult Social Care,Third Party Payments,635,07-Jun-17,R,BUPA CARE HOMES
3,221001,Older People Placements - East,OP 65&Over NursingCarePlacemts,Physical/ Sensory Support,4350,Residential Homes External,Adult Social Care,Third Party Payments,635,07-Jun-17,R,BUPA CARE HOMES
3,221001,Older People Placements - East,OP 65&Over NursingCarePlacemts,Physical/ Sensory Support,4350,Residential Homes External,Adult Social Care,Third Party Payments,635,07-Jun-17,R,BUPA CARE HOMES
3,221001,Older People Placements - East,OP 65&Over NursingCarePlacemts,Physical/ Sensory Support,4350,Residential Homes External,Adult Social Care,Third Party Payments,635,07-Jun-17,R,BUPA CARE HOMES
3,221001,Older People Placements - East,OP 65&Over NursingCarePlacemts,Physical/ Sensory Support,4350,Residential Homes External,Adult Social Care,Third Party Payments,635,07-Jun-17,R,BUPA CARE HOMES
3,221001,Older People Placements - East,OP 65&Over NursingCarePlacemts,Physical/ Sensory Support,4350,Residential Homes External,Adult Social Care,Third Party Payments,635,07-Jun-17,R,BUPA CARE HOMES
3,221001,Older People Placements - East,OP 65&Over NursingCarePlacemts,Physical/ Sensory Support,4350,Residential Homes External,Adult Social Care,Third Party Payments,635,07-Jun-17,R,BUPA CARE HOMES
3,221001,Older People Placements - East,OP 65&Over NursingCarePlacemts,Physical/ Sensory Support,4350,Residential Homes External,Adult Social Care,Third Party Payments,635,07-Jun-17,R,BUPA CARE HOMES
3,221001,Older People Placements - East,OP 65&Over NursingCarePlacemts,Physical/ Sensory Support,4350,Residential Homes External,Adult Social Care,Third Party Payments,635,07-Jun-17,R,BUPA CARE HOMES
3,221001,Older People Placements - East,OP 65&Over NursingCarePlacemts,Physical/ Sensory Support,4350,Residential Homes External,Adult Social Care,Third Party Payments,635,07-Jun-17,R,BUPA CARE HOMES
3,221001,Older People Placements - East,OP 65&Over NursingCarePlacemts,Physical/ Sensory Support,4350,Residential Homes External,Adult Social Care,Third Party Payments,635,07-Jun-17,R,BUPA CARE HOMES
3,221001,Older People Placements - East,OP 65&Over NursingCarePlacemts,Physical/ Sensory Support,4350,Residential Homes External,Adult Social Care,Third Party Payments,635,07-Jun-17,R,BUPA CARE HOMES
3,221001,Older People Placements - East,OP 65&Over NursingCarePlacemts,Physical/ Sensory Support,4350,Residential Homes External,Adult Social Care,Third Party Payments,635,07-Jun-17,R,BUPA CARE HOMES
3,221001,Older People Placements - East,OP 65&Over NursingCarePlacemts,Physical/ Sensory Support,4350,Residential Homes External,Adult Social Care,Third Party Payments,635,07-Jun-17,R,BUPA CARE HOMES
3,221001,Older People Placements - East,OP 65&Over NursingCarePlacemts,Physical/ Sensory Support,4350,Residential Homes External,Adult Social Care,Third Party Payments,635,07-Jun-17,R,BUPA CARE HOMES
3,221001,Older People Placements - East,OP 65&Over NursingCarePlacemts,Physical/ Sensory Support,4350,Residential Homes External,Adult Social Care,Third Party Payments,635,07-Jun-17,R,BUPA CARE HOMES
3,221001,Older People Placements - East,OP 65&Over NursingCarePlacemts,Physical/ Sensory Support,4350,Residential Homes External,Adult Social Care,Third Party Payments,635,07-Jun-17,R,BUPA CARE HOMES
3,221001,Older People Placements - East,OP 65&Over NursingCarePlacemts,Physical/ Sensory Support,4350,Residential Homes External,Adult Social Care,Third Party Payments,635,07-Jun-17,R,BUPA CARE HOMES
3,221001,Older People Placements - East,OP 65&Over NursingCarePlacemts,Physical/ Sensory Support,4350,Residential Homes External,Adult Social Care,Third Party Payments,635,07-Jun-17,R,BUPA CARE HOMES
3,221001,Older People Placements - East,OP 65&Over NursingCarePlacemts,Physical/ Sensory Support,4350,Residential Homes External,Adult Social Care,Third Party Payments,635,07-Jun-17,R,BUPA CARE HOMES
3,221001,Older People Placements - East,OP 65&Over NursingCarePlacemts,Physical/ Sensory Support,4350,Residential Homes External,Adult Social Care,Third Party Payments,635,07-Jun-17,R,BUPA CARE HOMES
3,221001,Older People Placements - East,OP 65&Over NursingCarePlacemts,Physical/ Sensory Support,4350,Residential Homes External,Adult Social Care,Third Party Payments,635,07-Jun-17,R,BUPA CARE HOMES
3,221001,Older People Placements - East,OP 65&Over NursingCarePlacemts,Physical/ Sensory Support,4350,Residential Homes External,Adult Social Care,Third Party Payments,635,07-Jun-17,R,BUPA CARE HOMES
3,221001,Older People Placements - East,OP 65&Over NursingCarePlacemts,Physical/ Sensory Support,4350,Residential Homes External,Adult Social Care,Third Party Payments,635,07-Jun-17,R,BUPA CARE HOMES
3,221001,Older People Placements - East,OP 65&Over NursingCarePlacemts,Physical/ Sensory Support,4350,Residential Homes External,Adult Social Care,Third Party Payments,635,07-Jun-17,R,BUPA CARE HOMES
3,221001,Older People Placements - East,OP 65&Over NursingCarePlacemts,Physical/ Sensory Support,4350,Residential Homes External,Adult Social Care,Third Party Payments,635,07-Jun-17,R,BUPA CARE HOMES
3,221001,Older People Placements - East,OP 65&Over NursingCarePlacemts,Physical/ Sensory Support,4350,Residential Homes External,Adult Social Care,Third Party Payments,635,07-Jun-17,R,BUPA CARE HOMES
3,221001,Older People Placements - East,OP 65&Over NursingCarePlacemts,Physical/ Sensory Support,4350,Residential Homes External,Adult Social Care,Third Party Payments,635,07-Jun-17,R,BUPA CARE HOMES
3,221001,Older People Placements - East,OP 65&Over NursingCarePlacemts,Physical/ Sensory Support,4350,Residential Homes External,Adult Social Care,Third Party Payments,635,07-Jun-17,R,BUPA CARE HOMES
3,221001,Older People Placements - East,OP 65&Over NursingCarePlacemts,Physical/ Sensory Support,4350,Residential Homes External,Adult Social Care,Third Party Payments,635,07-Jun-17,R,BUPA CARE HOMES
3,221001,Older People Placements - East,OP 65&Over NursingCarePlacemts,Physical/ Sensory Support,4350,Residential Homes External,Adult Social Care,Third Party Payments,635,07-Jun-17,R,BUPA CARE HOMES
3,221001,Older People Placements - East,OP 65&Over NursingCarePlacemts,Physical/ Sensory Support,4350,Residential Homes External,Adult Social Care,Third Party Payments,635,07-Jun-17,R,BUPA CARE HOMES
3,221001,Older People Placements - East,OP 65&Over NursingCarePlacemts,Physical/ Sensory Support,4350,Residential Homes External,Adult Social Care,Third Party Payments,635,07-Jun-17,R,BUPA CARE HOMES
3,221001,Older People Placements - East,OP 65&Over NursingCarePlacemts,Physical/ Sensory Support,4350,Residential Homes External,Adult Social Care,Third Party Payments,635,07-Jun-17,R,BUPA CARE HOMES
3,221001,Older People Placements - East,OP 65&Over NursingCarePlacemts,Physical/ Sensory Support,4350,Residential Homes External,Adult Social Care,Third Party Payments,635,07-Jun-17,R,BUPA CARE HOMES
3,221001,Older People Placements - East,OP 65&Over NursingCarePlacemts,Physical/ Sensory Support,4350,Residential Homes External,Adult Social Care,Third Party Payments,635,07-Jun-17,R,BUPA CARE HOMES
3,221001,Older People Placements - East,OP 65&Over NursingCarePlacemts,Physical/ Sensory Support,4350,Residential Homes External,Adult Social Care,Third Party Payments,635,07-Jun-17,R,BUPA CARE HOMES
3,221001,Older People Placements - East,OP 65&Over NursingCarePlacemts,Physical/ Sensory Support,4350,Residential Homes External,Adult Social Care,Third Party Payments,635,07-Jun-17,R,BUPA CARE HOMES
3,221001,Older People Placements - East,OP 65&Over NursingCarePlacemts,Physical/ Sensory Support,4350,Residential Homes External,Adult Social Care,Third Party Payments,635,07-Jun-17,R,BUPA CARE HOMES
3,221001,Older People Placements - East,OP 65&Over NursingCarePlacemts,Physical/ Sensory Support,4350,Residential Homes External,Adult Social Care,Third Party Payments,635,07-Jun-17,R,BUPA CARE HOMES
3,221001,Older People Placements - East,OP 65&Over NursingCarePlacemts,Physical/ Sensory Support,4350,Residential Homes External,Adult Social Care,Third Party Payments,635,07-Jun-17,R,BUPA CARE HOMES
3,221001,Older People Placements - East,OP 65&Over NursingCarePlacemts,Physical/ Sensory Support,4350,Residential Homes External,Adult Social Care,Third Party Payments,635,07-Jun-17,R,BUPA CARE HOMES
3,221001,Older People Placements - East,OP 65&Over NursingCarePlacemts,Physical/ Sensory Support,4350,Residential Homes External,Adult Social Care,Third Party Payments,635,07-Jun-17,R,BUPA CARE HOMES
3,221001,Older People Placements - East,OP 65&Over NursingCarePlacemts,Physical/ Sensory Support,4350,Residential Homes External,Adult Social Care,Third Party Payments,635,07-Jun-17,R,BUPA CARE HOMES
3,221001,Older People Placements - East,OP 65&Over NursingCarePlacemts,Physical/ Sensory Support,4350,Residential Homes External,Adult Social Care,Third Party Payments,635,07-Jun-17,R,BUPA CARE HOMES
3,221001,Older People Placements - East,OP 65&Over NursingCarePlacemts,Physical/ Sensory Support,4350,Residential Homes External,Adult Social Care,Third Party Payments,635,07-Jun-17,R,BUPA CARE HOMES
3,221001,Older People Placements - East,OP 65&Over NursingCarePlacemts,Physical/ Sensory Support,4350,Residential Homes External,Adult Social Care,Third Party Payments,635,07-Jun-17,R,BUPA CARE HOMES
3,221001,Older People Placements - East,OP 65&Over NursingCarePlacemts,Physical/ Sensory Support,4350,Residential Homes External,Adult Social Care,Third Party Payments,638.22,07-Jun-17,R,ROYAL BANK OF SCOTLAND
3,221001,Older People Placements - East,OP 65&Over NursingCarePlacemts,Physical/ Sensory Support,4350,Residential Homes External,Adult Social Care,Third Party Payments,638.22,07-Jun-17,R,ROYAL BANK OF SCOTLAND
3,221001,Older People Placements - East,OP 65&Over NursingCarePlacemts,Physical/ Sensory Support,4350,Residential Homes External,Adult Social Care,Third Party Payments,638.22,07-Jun-17,R,ROYAL BANK OF SCOTLAND
3,221001,Older People Placements - East,OP 65&Over NursingCarePlacemts,Physical/ Sensory Support,4350,Residential Homes External,Adult Social Care,Third Party Payments,638.22,07-Jun-17,R,ROYAL BANK OF SCOTLAND
3,221001,Older People Placements - East,OP 65&Over NursingCarePlacemts,Physical/ Sensory Support,4350,Residential Homes External,Adult Social Care,Third Party Payments,650,30-Jun-17,R,SOUTHPARK RESIDENTIAL HOME
3,221001,Older People Placements - East,OP 65&Over NursingCarePlacemts,Physical/ Sensory Support,4350,Residential Homes External,Adult Social Care,Third Party Payments,650,30-Jun-17,R,SOUTHPARK RESIDENTIAL HOME
3,221001,Older People Placements - East,OP 65&Over NursingCarePlacemts,Physical/ Sensory Support,4350,Residential Homes External,Adult Social Care,Third Party Payments,650,30-Jun-17,R,SOUTHPARK RESIDENTIAL HOME
3,221001,Older People Placements - East,OP 65&Over NursingCarePlacemts,Physical/ Sensory Support,4350,Residential Homes External,Adult Social Care,Third Party Payments,650,30-Jun-17,R,SOUTHPARK RESIDENTIAL HOME
3,221001,Older People Placements - East,OP 65&Over NursingCarePlacemts,Physical/ Sensory Support,4350,Residential Homes External,Adult Social Care,Third Party Payments,650,30-Jun-17,R,SOUTHPARK RESIDENTIAL HOME
3,221001,Older People Placements - East,OP 65&Over NursingCarePlacemts,Physical/ Sensory Support,4350,Residential Homes External,Adult Social Care,Third Party Payments,650,07-Jun-17,R,MANOR HOUSE RESIDENTIAL HOME
3,221001,Older People Placements - East,OP 65&Over NursingCarePlacemts,Physical/ Sensory Support,4350,Residential Homes External,Adult Social Care,Third Party Payments,650,07-Jun-17,R,MANOR HOUSE RESIDENTIAL HOME
3,221001,Older People Placements - East,OP 65&Over NursingCarePlacemts,Physical/ Sensory Support,4350,Residential Homes External,Adult Social Care,Third Party Payments,650,07-Jun-17,R,MANOR HOUSE RESIDENTIAL HOME
3,221001,Older People Placements - East,OP 65&Over NursingCarePlacemts,Physical/ Sensory Support,4350,Residential Homes External,Adult Social Care,Third Party Payments,650,07-Jun-17,R,MANOR HOUSE RESIDENTIAL HOME
3,221001,Older People Placements - East,OP 65&Over NursingCarePlacemts,Physical/ Sensory Support,4350,Residential Homes External,Adult Social Care,Third Party Payments,650,07-Jun-17,R,LIFESTYLE CARE MANAGEMENT LTD
3,221001,Older People Placements - East,OP 65&Over NursingCarePlacemts,Physical/ Sensory Support,4350,Residential Homes External,Adult Social Care,Third Party Payments,650,07-Jun-17,R,LIFESTYLE CARE MANAGEMENT LTD
3,221001,Older People Placements - East,OP 65&Over NursingCarePlacemts,Physical/ Sensory Support,4350,Residential Homes External,Adult Social Care,Third Party Payments,650,07-Jun-17,R,LIFESTYLE CARE MANAGEMENT LTD
3,221001,Older People Placements - East,OP 65&Over NursingCarePlacemts,Physical/ Sensory Support,4350,Residential Homes External,Adult Social Care,Third Party Payments,650,07-Jun-17,R,LIFESTYLE CARE MANAGEMENT LTD
3,221001,Older People Placements - East,OP 65&Over NursingCarePlacemts,Physical/ Sensory Support,4350,Residential Homes External,Adult Social Care,Third Party Payments,650,07-Jun-17,R,MANOR HOUSE RESIDENTIAL HOME
3,221001,Older People Placements - East,OP 65&Over NursingCarePlacemts,Physical/ Sensory Support,4350,Residential Homes External,Adult Social Care,Third Party Payments,650,07-Jun-17,R,MANOR HOUSE RESIDENTIAL HOME
3,221001,Older People Placements - East,OP 65&Over NursingCarePlacemts,Physical/ Sensory Support,4350,Residential Homes External,Adult Social Care,Third Party Payments,650,07-Jun-17,R,MANOR HOUSE RESIDENTIAL HOME
3,221001,Older People Placements - East,OP 65&Over NursingCarePlacemts,Physical/ Sensory Support,4350,Residential Homes External,Adult Social Care,Third Party Payments,650,07-Jun-17,R,MANOR HOUSE RESIDENTIAL HOME
3,221001,Older People Placements - East,OP 65&Over NursingCarePlacemts,Physical/ Sensory Support,4350,Residential Homes External,Adult Social Care,Third Party Payments,650,07-Jun-17,R,FURZE HILL LODGE
3,221001,Older People Placements - East,OP 65&Over NursingCarePlacemts,Physical/ Sensory Support,4350,Residential Homes External,Adult Social Care,Third Party Payments,650,07-Jun-17,R,FURZE HILL LODGE
3,221001,Older People Placements - East,OP 65&Over NursingCarePlacemts,Physical/ Sensory Support,4350,Residential Homes External,Adult Social Care,Third Party Payments,650,07-Jun-17,R,FURZE HILL LODGE
3,221001,Older People Placements - East,OP 65&Over NursingCarePlacemts,Physical/ Sensory Support,4350,Residential Homes External,Adult Social Care,Third Party Payments,650,07-Jun-17,R,FURZE HILL LODGE
3,221001,Older People Placements - East,OP 65&Over NursingCarePlacemts,Physical/ Sensory Support,4350,Residential Homes External,Adult Social Care,Third Party Payments,650,07-Jun-17,R,SOUTHPARK RESIDENTIAL HOME
3,221001,Older People Placements - East,OP 65&Over NursingCarePlacemts,Physical/ Sensory Support,4350,Residential Homes External,Adult Social Care,Third Party Payments,650,07-Jun-17,R,SOUTHPARK RESIDENTIAL HOME
3,221001,Older People Placements - East,OP 65&Over NursingCarePlacemts,Physical/ Sensory Support,4350,Residential Homes External,Adult Social Care,Third Party Payments,650,07-Jun-17,R,SOUTHPARK RESIDENTIAL HOME
3,221001,Older People Placements - East,OP 65&Over NursingCarePlacemts,Physical/ Sensory Support,4350,Residential Homes External,Adult Social Care,Third Party Payments,650,07-Jun-17,R,SOUTHPARK RESIDENTIAL HOME
3,221001,Older People Placements - East,OP 65&Over NursingCarePlacemts,Physical/ Sensory Support,4350,Residential Homes External,Adult Social Care,Third Party Payments,650,07-Jun-17,R,LIFESTYLE CARE MANAGEMENT LTD
3,221001,Older People Placements - East,OP 65&Over NursingCarePlacemts,Physical/ Sensory Support,4350,Residential Homes External,Adult Social Care,Third Party Payments,650,07-Jun-17,R,LIFESTYLE CARE MANAGEMENT LTD
3,221001,Older People Placements - East,OP 65&Over NursingCarePlacemts,Physical/ Sensory Support,4350,Residential Homes External,Adult Social Care,Third Party Payments,650,07-Jun-17,R,LIFESTYLE CARE MANAGEMENT LTD
3,221001,Older People Placements - East,OP 65&Over NursingCarePlacemts,Physical/ Sensory Support,4350,Residential Homes External,Adult Social Care,Third Party Payments,650,07-Jun-17,R,LIFESTYLE CARE MANAGEMENT LTD
3,221001,Older People Placements - East,OP 65&Over NursingCarePlacemts,Physical/ Sensory Support,4350,Residential Homes External,Adult Social Care,Third Party Payments,650,07-Jun-17,R,CARE UNLIMITED
3,221001,Older People Placements - East,OP 65&Over NursingCarePlacemts,Physical/ Sensory Support,4350,Residential Homes External,Adult Social Care,Third Party Payments,650,07-Jun-17,R,CARE UNLIMITED
3,221001,Older People Placements - East,OP 65&Over NursingCarePlacemts,Physical/ Sensory Support,4350,Residential Homes External,Adult Social Care,Third Party Payments,650,07-Jun-17,R,CARE UNLIMITED
3,221001,Older People Placements - East,OP 65&Over NursingCarePlacemts,Physical/ Sensory Support,4350,Residential Homes External,Adult Social Care,Third Party Payments,650,07-Jun-17,R,CARE UNLIMITED
3,221001,Older People Placements - East,OP 65&Over NursingCarePlacemts,Physical/ Sensory Support,4350,Residential Homes External,Adult Social Care,Third Party Payments,650,07-Jun-17,R,CARTER HOUSE
3,221001,Older People Placements - East,OP 65&Over NursingCarePlacemts,Physical/ Sensory Support,4350,Residential Homes External,Adult Social Care,Third Party Payments,650,07-Jun-17,R,CARTER HOUSE
3,221001,Older People Placements - East,OP 65&Over NursingCarePlacemts,Physical/ Sensory Support,4350,Residential Homes External,Adult Social Care,Third Party Payments,650,07-Jun-17,R,CARTER HOUSE
3,221001,Older People Placements - East,OP 65&Over NursingCarePlacemts,Physical/ Sensory Support,4350,Residential Homes External,Adult Social Care,Third Party Payments,650,07-Jun-17,R,CARTER HOUSE
3,221001,Older People Placements - East,OP 65&Over NursingCarePlacemts,Physical/ Sensory Support,4350,Residential Homes External,Adult Social Care,Third Party Payments,668.81,07-Jun-17,R,GARWOOD FOUNDATION
3,221001,Older People Placements - East,OP 65&Over NursingCarePlacemts,Physical/ Sensory Support,4350,Residential Homes External,Adult Social Care,Third Party Payments,668.81,07-Jun-17,R,GARWOOD FOUNDATION
3,221001,Older People Placements - East,OP 65&Over NursingCarePlacemts,Physical/ Sensory Support,4350,Residential Homes External,Adult Social Care,Third Party Payments,668.81,07-Jun-17,R,GARWOOD FOUNDATION
3,221001,Older People Placements - East,OP 65&Over NursingCarePlacemts,Physical/ Sensory Support,4350,Residential Homes External,Adult Social Care,Third Party Payments,668.81,07-Jun-17,R,GARWOOD FOUNDATION
3,221001,Older People Placements - East,OP 65&Over NursingCarePlacemts,Physical/ Sensory Support,4350,Residential Homes External,Adult Social Care,Third Party Payments,675,07-Jun-17,R,ROYAL CAMBRIDGE HOME
3,221001,Older People Placements - East,OP 65&Over NursingCarePlacemts,Physical/ Sensory Support,4350,Residential Homes External,Adult Social Care,Third Party Payments,675,07-Jun-17,R,ROYAL CAMBRIDGE HOME
3,221001,Older People Placements - East,OP 65&Over NursingCarePlacemts,Physical/ Sensory Support,4350,Residential Homes External,Adult Social Care,Third Party Payments,675,07-Jun-17,R,ROYAL CAMBRIDGE HOME
3,221001,Older People Placements - East,OP 65&Over NursingCarePlacemts,Physical/ Sensory Support,4350,Residential Homes External,Adult Social Care,Third Party Payments,675,07-Jun-17,R,ROYAL CAMBRIDGE HOME
3,221001,Older People Placements - East,OP 65&Over NursingCarePlacemts,Physical/ Sensory Support,4350,Residential Homes External,Adult Social Care,Third Party Payments,710,07-Jun-17,R,BUPA CARE HOMES
3,221001,Older People Placements - East,OP 65&Over NursingCarePlacemts,Physical/ Sensory Support,4350,Residential Homes External,Adult Social Care,Third Party Payments,710,07-Jun-17,R,BUPA CARE HOMES
3,221001,Older People Placements - East,OP 65&Over NursingCarePlacemts,Physical/ Sensory Support,4350,Residential Homes External,Adult Social Care,Third Party Payments,710,07-Jun-17,R,BUPA CARE HOMES
3,221001,Older People Placements - East,OP 65&Over NursingCarePlacemts,Physical/ Sensory Support,4350,Residential Homes External,Adult Social Care,Third Party Payments,710,07-Jun-17,R,BUPA CARE HOMES
3,221001,Older People Placements - East,OP 65&Over NursingCarePlacemts,Physical/ Sensory Support,4350,Residential Homes External,Adult Social Care,Third Party Payments,710,07-Jun-17,R,BUPA CARE HOMES
3,221001,Older People Placements - East,OP 65&Over NursingCarePlacemts,Physical/ Sensory Support,4350,Residential Homes External,Adult Social Care,Third Party Payments,710,07-Jun-17,R,BUPA CARE HOMES
3,221001,Older People Placements - East,OP 65&Over NursingCarePlacemts,Physical/ Sensory Support,4350,Residential Homes External,Adult Social Care,Third Party Payments,710,07-Jun-17,R,BUPA CARE HOMES
3,221001,Older People Placements - East,OP 65&Over NursingCarePlacemts,Physical/ Sensory Support,4350,Residential Homes External,Adult Social Care,Third Party Payments,710,07-Jun-17,R,BUPA CARE HOMES
3,221001,Older People Placements - East,OP 65&Over NursingCarePlacemts,Physical/ Sensory Support,4350,Residential Homes External,Adult Social Care,Third Party Payments,710,07-Jun-17,R,BUPA CARE HOMES
3,221001,Older People Placements - East,OP 65&Over NursingCarePlacemts,Physical/ Sensory Support,4350,Residential Homes External,Adult Social Care,Third Party Payments,710,07-Jun-17,R,BUPA CARE HOMES
3,221001,Older People Placements - East,OP 65&Over NursingCarePlacemts,Physical/ Sensory Support,4350,Residential Homes External,Adult Social Care,Third Party Payments,710,07-Jun-17,R,BUPA CARE HOMES
3,221001,Older People Placements - East,OP 65&Over NursingCarePlacemts,Physical/ Sensory Support,4350,Residential Homes External,Adult Social Care,Third Party Payments,710,07-Jun-17,R,BUPA CARE HOMES
3,221001,Older People Placements - East,OP 65&Over NursingCarePlacemts,Physical/ Sensory Support,4350,Residential Homes External,Adult Social Care,Third Party Payments,710,07-Jun-17,R,BUPA CARE HOMES
3,221001,Older People Placements - East,OP 65&Over NursingCarePlacemts,Physical/ Sensory Support,4350,Residential Homes External,Adult Social Care,Third Party Payments,710,07-Jun-17,R,BUPA CARE HOMES
3,221001,Older People Placements - East,OP 65&Over NursingCarePlacemts,Physical/ Sensory Support,4350,Residential Homes External,Adult Social Care,Third Party Payments,710,07-Jun-17,R,BUPA CARE HOMES
3,221001,Older People Placements - East,OP 65&Over NursingCarePlacemts,Physical/ Sensory Support,4350,Residential Homes External,Adult Social Care,Third Party Payments,710,07-Jun-17,R,BUPA CARE HOMES
3,221001,Older People Placements - East,OP 65&Over NursingCarePlacemts,Physical/ Sensory Support,4350,Residential Homes External,Adult Social Care,Third Party Payments,752.42,07-Jun-17,R,OATLANDS CARE LIMITED
3,221001,Older People Placements - East,OP 65&Over NursingCarePlacemts,Physical/ Sensory Support,4350,Residential Homes External,Adult Social Care,Third Party Payments,752.42,07-Jun-17,R,OATLANDS CARE LIMITED
3,221001,Older People Placements - East,OP 65&Over NursingCarePlacemts,Physical/ Sensory Support,4350,Residential Homes External,Adult Social Care,Third Party Payments,752.42,07-Jun-17,R,OATLANDS CARE LIMITED
3,221001,Older People Placements - East,OP 65&Over NursingCarePlacemts,Physical/ Sensory Support,4350,Residential Homes External,Adult Social Care,Third Party Payments,752.42,07-Jun-17,R,OATLANDS CARE LIMITED
3,221001,Older People Placements - East,OP 65&Over NursingCarePlacemts,Physical/ Sensory Support,4350,Residential Homes External,Adult Social Care,Third Party Payments,756.7,07-Jun-17,R,PARK LODGE
3,221001,Older People Placements - East,OP 65&Over NursingCarePlacemts,Physical/ Sensory Support,4350,Residential Homes External,Adult Social Care,Third Party Payments,756.7,07-Jun-17,R,PARK LODGE
3,221001,Older People Placements - East,OP 65&Over NursingCarePlacemts,Physical/ Sensory Support,4350,Residential Homes External,Adult Social Care,Third Party Payments,756.7,07-Jun-17,R,PARK LODGE
3,221001,Older People Placements - East,OP 65&Over NursingCarePlacemts,Physical/ Sensory Support,4350,Residential Homes External,Adult Social Care,Third Party Payments,756.7,07-Jun-17,R,PARK LODGE
3,221001,Older People Placements - East,OP 65&Over NursingCarePlacemts,Physical/ Sensory Support,4350,Residential Homes External,Adult Social Care,Third Party Payments,815,07-Jun-17,R,WOODLANDS
3,221001,Older People Placements - East,OP 65&Over NursingCarePlacemts,Physical/ Sensory Support,4350,Residential Homes External,Adult Social Care,Third Party Payments,815,07-Jun-17,R,WOODLANDS
3,221001,Older People Placements - East,OP 65&Over NursingCarePlacemts,Physical/ Sensory Support,4350,Residential Homes External,Adult Social Care,Third Party Payments,815,07-Jun-17,R,CARTER HOUSE
3,221001,Older People Placements - East,OP 65&Over NursingCarePlacemts,Physical/ Sensory Support,4350,Residential Homes External,Adult Social Care,Third Party Payments,815,07-Jun-17,R,CARTER HOUSE
3,221001,Older People Placements - East,OP 65&Over NursingCarePlacemts,Physical/ Sensory Support,4350,Residential Homes External,Adult Social Care,Third Party Payments,815,07-Jun-17,R,CARTER HOUSE
3,221001,Older People Placements - East,OP 65&Over NursingCarePlacemts,Physical/ Sensory Support,4350,Residential Homes External,Adult Social Care,Third Party Payments,815,07-Jun-17,R,CARTER HOUSE
3,221001,Older People Placements - East,OP 65&Over NursingCarePlacemts,Physical/ Sensory Support,4350,Residential Homes External,Adult Social Care,Third Party Payments,815,07-Jun-17,R,WOODLANDS
3,221001,Older People Placements - East,OP 65&Over NursingCarePlacemts,Physical/ Sensory Support,4350,Residential Homes External,Adult Social Care,Third Party Payments,815,07-Jun-17,R,WOODLANDS
3,221001,Older People Placements - East,OP 65&Over NursingCarePlacemts,Physical/ Sensory Support,4350,Residential Homes External,Adult Social Care,Third Party Payments,815,07-Jun-17,R,WOODLANDS
3,221001,Older People Placements - East,OP 65&Over NursingCarePlacemts,Physical/ Sensory Support,4350,Residential Homes External,Adult Social Care,Third Party Payments,815,07-Jun-17,R,LINK HOUSE
3,221001,Older People Placements - East,OP 65&Over NursingCarePlacemts,Physical/ Sensory Support,4350,Residential Homes External,Adult Social Care,Third Party Payments,815,07-Jun-17,R,LINK HOUSE
3,221001,Older People Placements - East,OP 65&Over NursingCarePlacemts,Physical/ Sensory Support,4350,Residential Homes External,Adult Social Care,Third Party Payments,815,07-Jun-17,R,LINK HOUSE
